Workbook

Sheet 09
A1: Исходные данные | H1: Частоты по столбцам (m·n2) | O1: …по строкам(n·m2) | V1: проверка "интересности"(n·m) | AB1: сумма по строке | AC1: Ответ:
A2: 11 | B2: 82 | C2: 68 | D2: 47 | E2: 41 | F2: 12 | H2: =COUNTIF(A:A,A2) -> 168 | I2: =COUNTIF(B:B,B2) -> 178 | J2: =COUNTIF(C:C,C2) -> 194 | K2: =COUNTIF(D:D,D2) -> 176 | L2: =COUNTIF(E:E,E2) -> 196 | M2: =COUNTIF(F:F,F2) -> 189 | O2: =COUNTIF($A2:$F2,A2) -> 1 | P2: 1 | Q2: 1 | R2: 1 | S2: 1 | T2: 1 | V2: =IF(AND(O2=1,H2<170),1,0) -> 1 | W2: 0 | X2: 0 | Y2: 0 | Z2: 0 | AA2: 0 | AB2: =SUM(V2:AA2) -> 1 | AC2: =COUNTIFS(AB:AB,">0",AB:AB,"<5") -> 11445
A3: 32 | B3: 86 | C3: 21 | D3: 31 | E3: 92 | F3: 49 | H3: 189 | I3: 181 | J3: 192 | K3: 184 | L3: 182 | M3: 168 | O3: =COUNTIF($A3:$F3,A3) -> 1 | P3: =COUNTIF($A3:$F3,B3) -> 1 | Q3: =COUNTIF($A3:$F3,C3) -> 1 | R3: =COUNTIF($A3:$F3,D3) -> 1 | S3: =COUNTIF($A3:$F3,E3) -> 1 | T3: =COUNTIF($A3:$F3,F3) -> 1 | V3: =IF(AND(O3=1,H3<170),1,0) -> 0 | W3: =IF(AND(P3=1,I3<170),1,0) -> 0 | X3: =IF(AND(Q3=1,J3<170),1,0) -> 0 | Y3: =IF(AND(R3=1,K3<170),1,0) -> 0 | Z3: =IF(AND(S3=1,L3<170),1,0) -> 0 | AA3: =IF(AND(T3=1,M3<170),1,0) -> 1 | AB3: =SUM(V3:AA3) -> 1
A4: 39 | B4: 29 | C4: 97 | D4: 83 | E4: 16 | F4: 53 | H4: 178 | I4: 202 | J4: 182 | K4: 196 | L4: 178 | M4: 176 | O4: 1 | P4: 1 | Q4: 1 | R4: 1 | S4: 1 | T4: 1 | V4: 0 | W4: 0 | X4: 0 | Y4: 0 | Z4: 0 | AA4: 0 | AB4: 0
A5: 63 | B5: 67 | C5: 30 | D5: 29 | E5: 89 | F5: 29 | H5: 189 | I5: 195 | J5: 163 | K5: 179 | L5: 157 | M5: 190 | O5: 1 | P5: 1 | Q5: 1 | R5: 2 | S5: 1 | T5: 2 | V5: 0 | W5: 0 | X5: 1 | Y5: 0 | Z5: 1 | AA5: 0 | AB5: 2
A6: 40 | B6: 58 | C6: 80 | D6: 92 | E6: 47 | F6: 66 | H6: 181 | I6: 186 | J6: 193 | K6: 180 | L6: 185 | M6: 179 | O6: 1 | P6: 1 | Q6: 1 | R6: 1 | S6: 1 | T6: 1 | V6: 0 | W6: 0 | X6: 0 | Y6: 0 | Z6: 0 | AA6: 0 | AB6: 0
A7: 60 | B7: 21 | C7: 42 | D7: 15 | E7: 15 | F7: 95 | H7: 163 | I7: 151 | J7: 161 | K7: 145 | L7: 204 | M7: 176 | O7: 1 | P7: 1 | Q7: 1 | R7: 2 | S7: 2 | T7: 1 | V7: 1 | W7: 1 | X7: 1 | Y7: 0 | Z7: 0 | AA7: 0 | AB7: 3
A8: 60 | B8: 76 | C8: 56 | D8: 60 | E8: 57 | F8: 27 | H8: 163 | I8: 191 | J8: 176 | K8: 173 | L8: 199 | M8: 173 | O8: 2 | P8: 1 | Q8: 1 | R8: 2 | S8: 1 | T8: 1 | V8: 0 | W8: 0 | X8: 0 | Y8: 0 | Z8: 0 | AA8: 0 | AB8: 0
A9: 38 | B9: 96 | C9: 97 | D9: 66 | E9: 56 | F9: 97 | H9: 190 | I9: 205 | J9: 182 | K9: 176 | L9: 157 | M9: 213 | O9: 1 | P9: 1 | Q9: 2 | R9: 1 | S9: 1 | T9: 2 | V9: 0 | W9: 0 | X9: 0 | Y9: 0 | Z9: 1 | AA9: 0 | AB9: 1
A10: 70 | B10: 88 | C10: 67 | D10: 84 | E10: 57 | F10: 73 | H10: 188 | I10: 158 | J10: 161 | K10: 172 | L10: 199 | M10: 190 | O10: 1 | P10: 1 | Q10: 1 | R10: 1 | S10: 1 | T10: 1 | V10: 0 | W10: 1 | X10: 1 | Y10: 0 | Z10: 0 | AA10: 0 | AB10: 2
A11: 35 | B11: 50 | C11: 27 | D11: 19 | E11: 94 | F11: 82 | H11: 162 | I11: 185 | J11: 179 | K11: 152 | L11: 167 | M11: 180 | O11: 1 | P11: 1 | Q11: 1 | R11: 1 | S11: 1 | T11: 1 | V11: 1 | W11: 0 | X11: 0 | Y11: 1 | Z11: 1 | AA11: 0 | AB11: 3
A12: 11 | B12: 30 | C12: 24 | D12: 71 | E12: 10 | F12: 21 | H12: 168 | I12: 193 | J12: 197 | K12: 194 | L12: 174 | M12: 168 | O12: 1 | P12: 1 | Q12: 1 | R12: 1 | S12: 1 | T12: 1 | V12: 1 | W12: 0 | X12: 0 | Y12: 0 | Z12: 0 | AA12: 1 | AB12: 2
A13: 45 | B13: 21 | C13: 39 | D13: 92 | E13: 91 | F13: 77 | H13: 183 | I13: 151 | J13: 178 | K13: 180 | L13: 164 | M13: 193 | O13: 1 | P13: 1 | Q13: 1 | R13: 1 | S13: 1 | T13: 1 | V13: 0 | W13: 1 | X13: 0 | Y13: 0 | Z13: 1 | AA13: 0 | AB13: 2
A14: 92 | B14: 57 | C14: 43 | D14: 18 | E14: 29 | F14: 29 | H14: 200 | I14: 166 | J14: 152 | K14: 168 | L14: 191 | M14: 190 | O14: 1 | P14: 1 | Q14: 1 | R14: 1 | S14: 2 | T14: 2 | V14: 0 | W14: 1 | X14: 1 | Y14: 1 | Z14: 0 | AA14: 0 | AB14: 3
A15: 83 | B15: 66 | C15: 42 | D15: 13 | E15: 73 | F15: 62 | H15: 190 | I15: 193 | J15: 161 | K15: 170 | L15: 185 | M15: 157 | O15: 1 | P15: 1 | Q15: 1 | R15: 1 | S15: 1 | T15: 1 | V15: 0 | W15: 0 | X15: 1 | Y15: 0 | Z15: 0 | AA15: 1 | AB15: 2
A16: 62 | B16: 46 | C16: 72 | D16: 16 | E16: 13 | F16: 71 | H16: 180 | I16: 222 | J16: 192 | K16: 191 | L16: 186 | M16: 143 | O16: 1 | P16: 1 | Q16: 1 | R16: 1 | S16: 1 | T16: 1 | V16: 0 | W16: 0 | X16: 0 | Y16: 0 | Z16: 0 | AA16: 1 | AB16: 1
A17: 30 | B17: 41 | C17: 94 | D17: 62 | E17: 20 | F17: 78 | H17: 158 | I17: 143 | J17: 191 | K17: 175 | L17: 165 | M17: 176 | O17: 1 | P17: 1 | Q17: 1 | R17: 1 | S17: 1 | T17: 1 | V17: 1 | W17: 1 | X17: 0 | Y17: 0 | Z17: 1 | AA17: 0 | AB17: 3
A18: 51 | B18: 63 | C18: 34 | D18: 80 | E18: 77 | F18: 34 | H18: 188 | I18: 167 | J18: 148 | K18: 172 | L18: 170 | M18: 153 | O18: 1 | P18: 1 | Q18: 2 | R18: 1 | S18: 1 | T18: 2 | V18: 0 | W18: 1 | X18: 0 | Y18: 0 | Z18: 0 | AA18: 0 | AB18: 1
A19: 11 | B19: 28 | C19: 46 | D19: 32 | E19: 33 | F19: 95 | H19: 168 | I19: 194 | J19: 173 | K19: 193 | L19: 173 | M19: 176 | O19: 1 | P19: 1 | Q19: 1 | R19: 1 | S19: 1 | T19: 1 | V19: 1 | W19: 0 | X19: 0 | Y19: 0 | Z19: 0 | AA19: 0 | AB19: 1
A20: 74 | B20: 77 | C20: 81 | D20: 94 | E20: 74 | F20: 92 | H20: 160 | I20: 177 | J20: 186 | K20: 199 | L20: 179 | M20: 179 | O20: 2 | P20: 1 | Q20: 1 | R20: 1 | S20: 2 | T20: 1 | V20: 0 | W20: 0 | X20: 0 | Y20: 0 | Z20: 0 | AA20: 0 | AB20: 0
A21: 97 | B21: 44 | C21: 91 | D21: 69 | E21: 78 | F21: 14 | H21: 172 | I21: 183 | J21: 172 | K21: 195 | L21: 180 | M21: 192 | O21: 1 | P21: 1 | Q21: 1 | R21: 1 | S21: 1 | T21: 1 | V21: 0 | W21: 0 | X21: 0 | Y21: 0 | Z21: 0 | AA21: 0 | AB21: 0
A22: 89 | B22: 14 | C22: 67 | D22: 58 | E22: 73 | F22: 24 | H22: 201 | I22: 185 | J22: 161 | K22: 175 | L22: 185 | M22: 173 | O22: 1 | P22: 1 | Q22: 1 | R22: 1 | S22: 1 | T22: 1 | V22: 0 | W22: 0 | X22: 1 | Y22: 0 | Z22: 0 | AA22: 0 | AB22: 1
A23: 25 | B23: 82 | C23: 23 | D23: 78 | E23: 81 | F23: 97 | H23: 174 | I23: 178 | J23: 157 | K23: 181 | L23: 162 | M23: 213 | O23: 1 | P23: 1 | Q23: 1 | R23: 1 | S23: 1 | T23: 1 | V23: 0 | W23: 0 | X23: 1 | Y23: 0 | Z23: 1 | AA23: 0 | AB23: 2
A24: 68 | B24: 54 | C24: 61 | D24: 18 | E24: 90 | F24: 69 | H24: 175 | I24: 182 | J24: 195 | K24: 168 | L24: 208 | M24: 187 | O24: 1 | P24: 1 | Q24: 1 | R24: 1 | S24: 1 | T24: 1 | V24: 0 | W24: 0 | X24: 0 | Y24: 1 | Z24: 0 | AA24: 0 | AB24: 1
A25: 65 | B25: 18 | C25: 28 | D25: 42 | E25: 78 | F25: 59 | H25: 190 | I25: 166 | J25: 187 | K25: 162 | L25: 180 | M25: 181 | O25: 1 | P25: 1 | Q25: 1 | R25: 1 | S25: 1 | T25: 1 | V25: 0 | W25: 1 | X25: 0 | Y25: 1 | Z25: 0 | AA25: 0 | AB25: 2
A26: 38 | B26: 60 | C26: 33 | D26: 45 | E26: 70 | F26: 82 | H26: 190 | I26: 187 | J26: 181 | K26: 171 | L26: 170 | M26: 180 | O26: 1 | P26: 1 | Q26: 1 | R26: 1 | S26: 1 | T26: 1 | V26: 0 | W26: 0 | X26: 0 | Y26: 0 | Z26: 0 | AA26: 0 | AB26: 0
A27: 42 | B27: 64 | C27: 28 | D27: 68 | E27: 45 | F27: 55 | H27: 189 | I27: 173 | J27: 187 | K27: 181 | L27: 187 | M27: 185 | O27: 1 | P27: 1 | Q27: 1 | R27: 1 | S27: 1 | T27: 1 | V27: 0 | W27: 0 | X27: 0 | Y27: 0 | Z27: 0 | AA27: 0 | AB27: 0
A28: 50 | B28: 54 | C28: 87 | D28: 18 | E28: 33 | F28: 13 | H28: 203 | I28: 182 | J28: 173 | K28: 168 | L28: 173 | M28: 173 | O28: 1 | P28: 1 | Q28: 1 | R28: 1 | S28: 1 | T28: 1 | V28: 0 | W28: 0 | X28: 0 | Y28: 1 | Z28: 0 | AA28: 0 | AB28: 1
A29: 75 | B29: 26 | C29: 48 | D29: 83 | E29: 43 | F29: 94 | H29: 179 | I29: 176 | J29: 203 | K29: 196 | L29: 184 | M29: 173 | O29: 1 | P29: 1 | Q29: 1 | R29: 1 | S29: 1 | T29: 1 | V29: 0 | W29: 0 | X29: 0 | Y29: 0 | Z29: 0 | AA29: 0 | AB29: 0
A30: 59 | B30: 80 | C30: 66 | D30: 81 | E30: 20 | F30: 81 | H30: 205 | I30: 173 | J30: 140 | K30: 167 | L30: 165 | M30: 192 | O30: 1 | P30: 1 | Q30: 1 | R30: 2 | S30: 1 | T30: 2 | V30: 0 | W30: 0 | X30: 1 | Y30: 0 | Z30: 1 | AA30: 0 | AB30: 2
A31: 60 | B31: 48 | C31: 49 | D31: 26 | E31: 15 | F31: 65 | H31: 163 | I31: 170 | J31: 176 | K31: 202 | L31: 204 | M31: 184 | O31: 1 | P31: 1 | Q31: 1 | R31: 1 | S31: 1 | T31: 1 | V31: 1 | W31: 0 | X31: 0 | Y31: 0 | Z31: 0 | AA31: 0 | AB31: 1
A32: 29 | B32: 76 | C32: 25 | D32: 89 | E32: 19 | F32: 55 | H32: 171 | I32: 191 | J32: 177 | K32: 183 | L32: 171 | M32: 185 | O32: 1 | P32: 1 | Q32: 1 | R32: 1 | S32: 1 | T32: 1 | V32: 0 | W32: 0 | X32: 0 | Y32: 0 | Z32: 0 | AA32: 0 | AB32: 0
A33: 26 | B33: 57 | C33: 41 | D33: 83 | E33: 32 | F33: 42 | H33: 193 | I33: 166 | J33: 180 | K33: 196 | L33: 184 | M33: 189 | O33: 1 | P33: 1 | Q33: 1 | R33: 1 | S33: 1 | T33: 1 | V33: 0 | W33: 1 | X33: 0 | Y33: 0 | Z33: 0 | AA33: 0 | AB33: 1
A34: 77 | B34: 42 | C34: 23 | D34: 55 | E34: 40 | F34: 32 | H34: 206 | I34: 174 | J34: 157 | K34: 182 | L34: 188 | M34: 155 | O34: 1 | P34: 1 | Q34: 1 | R34: 1 | S34: 1 | T34: 1 | V34: 0 | W34: 0 | X34: 1 | Y34: 0 | Z34: 0 | AA34: 1 | AB34: 2
A35: 85 | B35: 94 | C35: 62 | D35: 29 | E35: 23 | F35: 78 | H35: 188 | I35: 186 | J35: 188 | K35: 179 | L35: 210 | M35: 176 | O35: 1 | P35: 1 | Q35: 1 | R35: 1 | S35: 1 | T35: 1 | V35: 0 | W35: 0 | X35: 0 | Y35: 0 | Z35: 0 | AA35: 0 | AB35: 0
A36: 38 | B36: 63 | C36: 53 | D36: 98 | E36: 15 | F36: 81 | H36: 190 | I36: 167 | J36: 176 | K36: 175 | L36: 204 | M36: 192 | O36: 1 | P36: 1 | Q36: 1 | R36: 1 | S36: 1 | T36: 1 | V36: 0 | W36: 1 | X36: 0 | Y36: 0 | Z36: 0 | AA36: 0 | AB36: 1
A37: 11 | B37: 97 | C37: 55 | D37: 57 | E37: 43 | F37: 65 | H37: 168 | I37: 181 | J37: 218 | K37: 190 | L37: 184 | M37: 184 | O37: 1 | P37: 1 | Q37: 1 | R37: 1 | S37: 1 | T37: 1 | V37: 1 | W37: 0 | X37: 0 | Y37: 0 | Z37: 0 | AA37: 0 | AB37: 1
A38: 15 | B38: 98 | C38: 26 | D38: 89 | E38: 85 | F38: 94 | H38: 203 | I38: 182 | J38: 168 | K38: 183 | L38: 170 | M38: 173 | O38: 1 | P38: 1 | Q38: 1 | R38: 1 | S38: 1 | T38: 1 | V38: 0 | W38: 0 | X38: 1 | Y38: 0 | Z38: 0 | AA38: 0 | AB38: 1
A39: 68 | B39: 33 | C39: 50 | D39: 48 | E39: 28 | F39: 11 | H39: 175 | I39: 213 | J39: 181 | K39: 171 | L39: 170 | M39: 180 | O39: 1 | P39: 1 | Q39: 1 | R39: 1 | S39: 1 | T39: 1 | V39: 0 | W39: 0 | X39: 0 | Y39: 0 | Z39: 0 | AA39: 0 | AB39: 0
A40: 66 | B40: 18 | C40: 97 | D40: 87 | E40: 22 | F40: 35 | H40: 167 | I40: 166 | J40: 182 | K40: 185 | L40: 202 | M40: 166 | O40: 1 | P40: 1 | Q40: 1 | R40: 1 | S40: 1 | T40: 1 | V40: 1 | W40: 1 | X40: 0 | Y40: 0 | Z40: 0 | AA40: 1 | AB40: 3
A41: 80 | B41: 19 | C41: 12 | D41: 78 | E41: 21 | F41: 92 | H41: 182 | I41: 172 | J41: 197 | K41: 181 | L41: 163 | M41: 179 | O41: 1 | P41: 1 | Q41: 1 | R41: 1 | S41: 1 | T41: 1 | V41: 0 | W41: 0 | X41: 0 | Y41: 0 | Z41: 1 | AA41: 0 | AB41: 1
A42: 27 | B42: 36 | C42: 21 | D42: 92 | E42: 10 | F42: 53 | H42: 173 | I42: 185 | J42: 192 | K42: 180 | L42: 174 | M42: 176 | O42: 1 | P42: 1 | Q42: 1 | R42: 1 | S42: 1 | T42: 1 | V42: 0 | W42: 0 | X42: 0 | Y42: 0 | Z42: 0 | AA42: 0 | AB42: 0
A43: 95 | B43: 55 | C43: 86 | D43: 55 | E43: 95 | F43: 25 | H43: 179 | I43: 171 | J43: 170 | K43: 182 | L43: 181 | M43: 178 | O43: 2 | P43: 2 | Q43: 1 | R43: 2 | S43: 2 | T43: 1 | V43: 0 | W43: 0 | X43: 0 | Y43: 0 | Z43: 0 | AA43: 0 | AB43: 0
A44: 54 | B44: 44 | C44: 89 | D44: 27 | E44: 41 | F44: 69 | H44: 179 | I44: 183 | J44: 165 | K44: 211 | L44: 196 | M44: 187 | O44: 1 | P44: 1 | Q44: 1 | R44: 1 | S44: 1 | T44: 1 | V44: 0 | W44: 0 | X44: 1 | Y44: 0 | Z44: 0 | AA44: 0 | AB44: 1
A45: 43 | B45: 98 | C45: 12 | D45: 86 | E45: 86 | F45: 42 | H45: 192 | I45: 182 | J45: 197 | K45: 194 | L45: 167 | M45: 189 | O45: 1 | P45: 1 | Q45: 1 | R45: 2 | S45: 2 | T45: 1 | V45: 0 | W45: 0 | X45: 0 | Y45: 0 | Z45: 0 | AA45: 0 | AB45: 0
A46: 15 | B46: 49 | C46: 25 | D46: 32 | E46: 38 | F46: 39 | H46: 203 | I46: 192 | J46: 177 | K46: 193 | L46: 171 | M46: 200 | O46: 1 | P46: 1 | Q46: 1 | R46: 1 | S46: 1 | T46: 1 | V46: 0 | W46: 0 | X46: 0 | Y46: 0 | Z46: 0 | AA46: 0 | AB46: 0
A47: 78 | B47: 36 | C47: 21 | D47: 45 | E47: 48 | F47: 77 | H47: 204 | I47: 185 | J47: 192 | K47: 171 | L47: 179 | M47: 193 | O47: 1 | P47: 1 | Q47: 1 | R47: 1 | S47: 1 | T47: 1 | V47: 0 | W47: 0 | X47: 0 | Y47: 0 | Z47: 0 | AA47: 0 | AB47: 0
A48: 26 | B48: 43 | C48: 29 | D48: 55 | E48: 92 | F48: 96 | H48: 193 | I48: 197 | J48: 162 | K48: 182 | L48: 182 | M48: 157 | O48: 1 | P48: 1 | Q48: 1 | R48: 1 | S48: 1 | T48: 1 | V48: 0 | W48: 0 | X48: 1 | Y48: 0 | Z48: 0 | AA48: 1 | AB48: 2
A49: 94 | B49: 52 | C49: 95 | D49: 86 | E49: 25 | F49: 23 | H49: 166 | I49: 169 | J49: 202 | K49: 194 | L49: 191 | M49: 185 | O49: 1 | P49: 1 | Q49: 1 | R49: 1 | S49: 1 | T49: 1 | V49: 1 | W49: 1 | X49: 0 | Y49: 0 | Z49: 0 | AA49: 0 | AB49: 2
A50: 90 | B50: 24 | C50: 21 | D50: 21 | E50: 60 | F50: 37 | H50: 192 | I50: 186 | J50: 192 | K50: 188 | L50: 175 | M50: 164 | O50: 1 | P50: 1 | Q50: 2 | R50: 2 | S50: 1 | T50: 1 | V50: 0 | W50: 0 | X50: 0 | Y50: 0 | Z50: 0 | AA50: 1 | AB50: 1
A51: 81 | B51: 34 | C51: 13 | D51: 83 | E51: 77 | F51: 33 | H51: 181 | I51: 162 | J51: 158 | K51: 196 | L51: 170 | M51: 170 | O51: 1 | P51: 1 | Q51: 1 | R51: 1 | S51: 1 | T51: 1 | V51: 0 | W51: 1 | X51: 1 | Y51: 0 | Z51: 0 | AA51: 0 | AB51: 2
A52: 77 | B52: 39 | C52: 44 | D52: 30 | E52: 87 | F52: 21 | H52: 206 | I52: 166 | J52: 182 | K52: 161 | L52: 211 | M52: 168 | O52: 1 | P52: 1 | Q52: 1 | R52: 1 | S52: 1 | T52: 1 | V52: 0 | W52: 1 | X52: 0 | Y52: 1 | Z52: 0 | AA52: 1 | AB52: 3
A53: 66 | B53: 45 | C53: 82 | D53: 92 | E53: 74 | F53: 29 | H53: 167 | I53: 201 | J53: 189 | K53: 180 | L53: 179 | M53: 190 | O53: 1 | P53: 1 | Q53: 1 | R53: 1 | S53: 1 | T53: 1 | V53: 1 | W53: 0 | X53: 0 | Y53: 0 | Z53: 0 | AA53: 0 | AB53: 1
A54: 65 | B54: 34 | C54: 27 | D54: 35 | E54: 43 | F54: 23 | H54: 190 | I54: 162 | J54: 179 | K54: 198 | L54: 184 | M54: 185 | O54: 1 | P54: 1 | Q54: 1 | R54: 1 | S54: 1 | T54: 1 | V54: 0 | W54: 1 | X54: 0 | Y54: 0 | Z54: 0 | AA54: 0 | AB54: 1
A55: 84 | B55: 71 | C55: 21 | D55: 95 | E55: 81 | F55: 65 | H55: 189 | I55: 167 | J55: 192 | K55: 167 | L55: 162 | M55: 184 | O55: 1 | P55: 1 | Q55: 1 | R55: 1 | S55: 1 | T55: 1 | V55: 0 | W55: 1 | X55: 0 | Y55: 1 | Z55: 1 | AA55: 0 | AB55: 3
A56: 16 | B56: 72 | C56: 92 | D56: 59 | E56: 52 | F56: 25 | H56: 193 | I56: 158 | J56: 186 | K56: 184 | L56: 176 | M56: 178 | O56: 1 | P56: 1 | Q56: 1 | R56: 1 | S56: 1 | T56: 1 | V56: 0 | W56: 1 | X56: 0 | Y56: 0 | Z56: 0 | AA56: 0 | AB56: 1
A57: 16 | B57: 13 | C57: 77 | D57: 83 | E57: 33 | F57: 61 | H57: 193 | I57: 175 | J57: 190 | K57: 196 | L57: 173 | M57: 176 | O57: 1 | P57: 1 | Q57: 1 | R57: 1 | S57: 1 | T57: 1 | V57: 0 | W57: 0 | X57: 0 | Y57: 0 | Z57: 0 | AA57: 0 | AB57: 0
A58: 21 | B58: 29 | C58: 89 | D58: 41 | E58: 69 | F58: 29 | H58: 172 | I58: 202 | J58: 165 | K58: 185 | L58: 168 | M58: 190 | O58: 1 | P58: 2 | Q58: 1 | R58: 1 | S58: 1 | T58: 2 | V58: 0 | W58: 0 | X58: 1 | Y58: 0 | Z58: 1 | AA58: 0 | AB58: 2
A59: 28 | B59: 61 | C59: 96 | D59: 74 | E59: 43 | F59: 43 | H59: 187 | I59: 174 | J59: 177 | K59: 200 | L59: 184 | M59: 179 | O59: 1 | P59: 1 | Q59: 1 | R59: 1 | S59: 2 | T59: 2 | V59: 0 | W59: 0 | X59: 0 | Y59: 0 | Z59: 0 | AA59: 0 | AB59: 0
A60: 31 | B60: 72 | C60: 73 | D60: 71 | E60: 24 | F60: 98 | H60: 177 | I60: 158 | J60: 200 | K60: 194 | L60: 170 | M60: 191 | O60: 1 | P60: 1 | Q60: 1 | R60: 1 | S60: 1 | T60: 1 | V60: 0 | W60: 1 | X60: 0 | Y60: 0 | Z60: 0 | AA60: 0 | AB60: 1
A61: 41 | B61: 19 | C61: 20 | D61: 17 | E61: 28 | F61: 20 | H61: 191 | I61: 172 | J61: 188 | K61: 187 | L61: 170 | M61: 200 | O61: 1 | P61: 1 | Q61: 2 | R61: 1 | S61: 1 | T61: 2 | V61: 0 | W61: 0 | X61: 0 | Y61: 0 | Z61: 0 | AA61: 0 | AB61: 0
A62: 95 | B62: 11 | C62: 89 | D62: 61 | E62: 35 | F62: 25 | H62: 179 | I62: 171 | J62: 165 | K62: 176 | L62: 174 | M62: 178 | O62: 1 | P62: 1 | Q62: 1 | R62: 1 | S62: 1 | T62: 1 | V62: 0 | W62: 0 | X62: 1 | Y62: 0 | Z62: 0 | AA62: 0 | AB62: 1
A63: 72 | B63: 40 | C63: 19 | D63: 36 | E63: 91 | F63: 55 | H63: 199 | I63: 188 | J63: 158 | K63: 164 | L63: 164 | M63: 185 | O63: 1 | P63: 1 | Q63: 1 | R63: 1 | S63: 1 | T63: 1 | V63: 0 | W63: 0 | X63: 1 | Y63: 1 | Z63: 1 | AA63: 0 | AB63: 3
A64: 89 | B64: 74 | C64: 25 | D64: 79 | E64: 96 | F64: 55 | H64: 201 | I64: 181 | J64: 177 | K64: 182 | L64: 191 | M64: 185 | O64: 1 | P64: 1 | Q64: 1 | R64: 1 | S64: 1 | T64: 1 | V64: 0 | W64: 0 | X64: 0 | Y64: 0 | Z64: 0 | AA64: 0 | AB64: 0
A65: 51 | B65: 28 | C65: 82 | D65: 29 | E65: 11 | F65: 49 | H65: 188 | I65: 194 | J65: 189 | K65: 179 | L65: 166 | M65: 168 | O65: 1 | P65: 1 | Q65: 1 | R65: 1 | S65: 1 | T65: 1 | V65: 0 | W65: 0 | X65: 0 | Y65: 0 | Z65: 1 | AA65: 1 | AB65: 2
A66: 61 | B66: 57 | C66: 78 | D66: 77 | E66: 34 | F66: 97 | H66: =COUNTIF(A:A,A66) -> 186 | I66: =COUNTIF(B:B,B66) -> 166 | J66: =COUNTIF(C:C,C66) -> 172 | K66: =COUNTIF(D:D,D66) -> 181 | L66: =COUNTIF(E:E,E66) -> 186 | M66: =COUNTIF(F:F,F66) -> 213 | O66: 1 | P66: 1 | Q66: 1 | R66: 1 | S66: 1 | T66: 1 | V66: 0 | W66: 1 | X66: 0 | Y66: 0 | Z66: 0 | AA66: 0 | AB66: 1
A67: 36 | B67: 39 | C67: 58 | D67: 71 | E67: 29 | F67: 61 | H67: 172 | I67: 166 | J67: 204 | K67: 194 | L67: 191 | M67: 176 | O67: =COUNTIF($A67:$F67,A67) -> 1 | P67: =COUNTIF($A67:$F67,B67) -> 1 | Q67: =COUNTIF($A67:$F67,C67) -> 1 | R67: =COUNTIF($A67:$F67,D67) -> 1 | S67: =COUNTIF($A67:$F67,E67) -> 1 | T67: =COUNTIF($A67:$F67,F67) -> 1 | V67: =IF(AND(O67=1,H67<170),1,0) -> 0 | W67: =IF(AND(P67=1,I67<170),1,0) -> 1 | X67: =IF(AND(Q67=1,J67<170),1,0) -> 0 | Y67: =IF(AND(R67=1,K67<170),1,0) -> 0 | Z67: =IF(AND(S67=1,L67<170),1,0) -> 0 | AA67: =IF(AND(T67=1,M67<170),1,0) -> 0 | AB67: =SUM(V67:AA67) -> 1
A68: 58 | B68: 81 | C68: 30 | D68: 37 | E68: 93 | F68: 76 | H68: 171 | I68: 186 | J68: 163 | K68: 141 | L68: 168 | M68: 192 | O68: 1 | P68: 1 | Q68: 1 | R68: 1 | S68: 1 | T68: 1 | V68: 0 | W68: 0 | X68: 1 | Y68: 1 | Z68: 1 | AA68: 0 | AB68: 3
A69: 56 | B69: 25 | C69: 82 | D69: 21 | E69: 72 | F69: 60 | H69: 204 | I69: 191 | J69: 189 | K69: 188 | L69: 156 | M69: 197 | O69: 1 | P69: 1 | Q69: 1 | R69: 1 | S69: 1 | T69: 1 | V69: 0 | W69: 0 | X69: 0 | Y69: 0 | Z69: 1 | AA69: 0 | AB69: 1
A70: 92 | B70: 37 | C70: 81 | D70: 62 | E70: 20 | F70: 32 | H70: 200 | I70: 192 | J70: 186 | K70: 175 | L70: 165 | M70: 155 | O70: 1 | P70: 1 | Q70: 1 | R70: 1 | S70: 1 | T70: 1 | V70: 0 | W70: 0 | X70: 0 | Y70: 0 | Z70: 1 | AA70: 1 | AB70: 2
A71: 85 | B71: 90 | C71: 50 | D71: 19 | E71: 68 | F71: 63 | H71: 188 | I71: 173 | J71: 181 | K71: 152 | L71: 179 | M71: 182 | O71: 1 | P71: 1 | Q71: 1 | R71: 1 | S71: 1 | T71: 1 | V71: 0 | W71: 0 | X71: 0 | Y71: 1 | Z71: 0 | AA71: 0 | AB71: 1
A72: 18 | B72: 71 | C72: 91 | D72: 43 | E72: 95 | F72: 38 | H72: 132 | I72: 167 | J72: 172 | K72: 184 | L72: 181 | M72: 162 | O72: 1 | P72: 1 | Q72: 1 | R72: 1 | S72: 1 | T72: 1 | V72: 1 | W72: 1 | X72: 0 | Y72: 0 | Z72: 0 | AA72: 1 | AB72: 3
A73: 42 | B73: 89 | C73: 22 | D73: 43 | E73: 21 | F73: 35 | H73: 189 | I73: 177 | J73: 206 | K73: 184 | L73: 163 | M73: 166 | O73: 1 | P73: 1 | Q73: 1 | R73: 1 | S73: 1 | T73: 1 | V73: 0 | W73: 0 | X73: 0 | Y73: 0 | Z73: 1 | AA73: 1 | AB73: 2
A74: 87 | B74: 36 | C74: 18 | D74: 22 | E74: 20 | F74: 49 | H74: 173 | I74: 185 | J74: 169 | K74: 180 | L74: 165 | M74: 168 | O74: 1 | P74: 1 | Q74: 1 | R74: 1 | S74: 1 | T74: 1 | V74: 0 | W74: 0 | X74: 1 | Y74: 0 | Z74: 1 | AA74: 1 | AB74: 3
A75: 63 | B75: 74 | C75: 94 | D75: 34 | E75: 62 | F75: 32 | H75: 189 | I75: 181 | J75: 191 | K75: 182 | L75: 173 | M75: 155 | O75: 1 | P75: 1 | Q75: 1 | R75: 1 | S75: 1 | T75: 1 | V75: 0 | W75: 0 | X75: 0 | Y75: 0 | Z75: 0 | AA75: 1 | AB75: 1
A76: 36 | B76: 13 | C76: 88 | D76: 39 | E76: 76 | F76: 66 | H76: 172 | I76: 175 | J76: 176 | K76: 190 | L76: 161 | M76: 179 | O76: 1 | P76: 1 | Q76: 1 | R76: 1 | S76: 1 | T76: 1 | V76: 0 | W76: 0 | X76: 0 | Y76: 0 | Z76: 1 | AA76: 0 | AB76: 1
A77: 29 | B77: 38 | C77: 53 | D77: 28 | E77: 78 | F77: 19 | H77: 171 | I77: 159 | J77: 176 | K77: 182 | L77: 180 | M77: 189 | O77: 1 | P77: 1 | Q77: 1 | R77: 1 | S77: 1 | T77: 1 | V77: 0 | W77: 1 | X77: 0 | Y77: 0 | Z77: 0 | AA77: 0 | AB77: 1
A78: 78 | B78: 88 | C78: 83 | D78: 34 | E78: 70 | F78: 12 | H78: 204 | I78: 158 | J78: 190 | K78: 182 | L78: 170 | M78: 189 | O78: 1 | P78: 1 | Q78: 1 | R78: 1 | S78: 1 | T78: 1 | V78: 0 | W78: 1 | X78: 0 | Y78: 0 | Z78: 0 | AA78: 0 | AB78: 1
A79: 11 | B79: 45 | C79: 97 | D79: 82 | E79: 75 | F79: 49 | H79: 168 | I79: 201 | J79: 182 | K79: 160 | L79: 176 | M79: 168 | O79: 1 | P79: 1 | Q79: 1 | R79: 1 | S79: 1 | T79: 1 | V79: 1 | W79: 0 | X79: 0 | Y79: 1 | Z79: 0 | AA79: 1 | AB79: 3
A80: 71 | B80: 98 | C80: 80 | D80: 25 | E80: 30 | F80: 82 | H80: 169 | I80: 182 | J80: 193 | K80: 190 | L80: 173 | M80: 180 | O80: 1 | P80: 1 | Q80: 1 | R80: 1 | S80: 1 | T80: 1 | V80: 1 | W80: 0 | X80: 0 | Y80: 0 | Z80: 0 | AA80: 0 | AB80: 1
A81: 79 | B81: 49 | C81: 55 | D81: 59 | E81: 94 | F81: 50 | H81: 176 | I81: 192 | J81: 218 | K81: 184 | L81: 167 | M81: 153 | O81: 1 | P81: 1 | Q81: 1 | R81: 1 | S81: 1 | T81: 1 | V81: 0 | W81: 0 | X81: 0 | Y81: 0 | Z81: 1 | AA81: 1 | AB81: 2
A82: 65 | B82: 84 | C82: 23 | D82: 54 | E82: 41 | F82: 42 | H82: 190 | I82: 152 | J82: 157 | K82: 166 | L82: 196 | M82: 189 | O82: 1 | P82: 1 | Q82: 1 | R82: 1 | S82: 1 | T82: 1 | V82: 0 | W82: 1 | X82: 1 | Y82: 1 | Z82: 0 | AA82: 0 | AB82: 3
A83: 57 | B83: 27 | C83: 42 | D83: 84 | E83: 51 | F83: 33 | H83: 190 | I83: 179 | J83: 161 | K83: 172 | L83: 230 | M83: 170 | O83: 1 | P83: 1 | Q83: 1 | R83: 1 | S83: 1 | T83: 1 | V83: 0 | W83: 0 | X83: 1 | Y83: 0 | Z83: 0 | AA83: 0 | AB83: 1
A84: 15 | B84: 38 | C84: 33 | D84: 81 | E84: 95 | F84: 77 | H84: 203 | I84: 159 | J84: 181 | K84: 167 | L84: 181 | M84: 193 | O84: 1 | P84: 1 | Q84: 1 | R84: 1 | S84: 1 | T84: 1 | V84: 0 | W84: 1 | X84: 0 | Y84: 1 | Z84: 0 | AA84: 0 | AB84: 2
A85: 96 | B85: 87 | C85: 95 | D85: 49 | E85: 14 | F85: 16 | H85: 190 | I85: 175 | J85: 202 | K85: 164 | L85: 195 | M85: 172 | O85: 1 | P85: 1 | Q85: 1 | R85: 1 | S85: 1 | T85: 1 | V85: 0 | W85: 0 | X85: 0 | Y85: 1 | Z85: 0 | AA85: 0 | AB85: 1
A86: 24 | B86: 88 | C86: 43 | D86: 24 | E86: 35 | F86: 21 | H86: 188 | I86: 158 | J86: 152 | K86: 217 | L86: 174 | M86: 168 | O86: 2 | P86: 1 | Q86: 1 | R86: 2 | S86: 1 | T86: 1 | V86: 0 | W86: 1 | X86: 1 | Y86: 0 | Z86: 0 | AA86: 1 | AB86: 3
A87: 37 | B87: 97 | C87: 31 | D87: 17 | E87: 89 | F87: 44 | H87: 178 | I87: 181 | J87: 180 | K87: 187 | L87: 157 | M87: 183 | O87: 1 | P87: 1 | Q87: 1 | R87: 1 | S87: 1 | T87: 1 | V87: 0 | W87: 0 | X87: 0 | Y87: 0 | Z87: 1 | AA87: 0 | AB87: 1
A88: 84 | B88: 27 | C88: 45 | D88: 65 | E88: 15 | F88: 97 | H88: 189 | I88: 179 | J88: 179 | K88: 169 | L88: 204 | M88: 213 | O88: 1 | P88: 1 | Q88: 1 | R88: 1 | S88: 1 | T88: 1 | V88: 0 | W88: 0 | X88: 0 | Y88: 1 | Z88: 0 | AA88: 0 | AB88: 1
A89: 87 | B89: 44 | C89: 95 | D89: 10 | E89: 82 | F89: 90 | H89: 173 | I89: 183 | J89: 202 | K89: 198 | L89: 182 | M89: 184 | O89: 1 | P89: 1 | Q89: 1 | R89: 1 | S89: 1 | T89: 1 | V89: 0 | W89: 0 | X89: 0 | Y89: 0 | Z89: 0 | AA89: 0 | AB89: 0
A90: 42 | B90: 54 | C90: 91 | D90: 90 | E90: 85 | F90: 15 | H90: 189 | I90: 182 | J90: 172 | K90: 189 | L90: 170 | M90: 187 | O90: 1 | P90: 1 | Q90: 1 | R90: 1 | S90: 1 | T90: 1 | V90: 0 | W90: 0 | X90: 0 | Y90: 0 | Z90: 0 | AA90: 0 | AB90: 0
A91: 10 | B91: 50 | C91: 66 | D91: 90 | E91: 35 | F91: 82 | H91: 163 | I91: 185 | J91: 140 | K91: 189 | L91: 174 | M91: 180 | O91: 1 | P91: 1 | Q91: 1 | R91: 1 | S91: 1 | T91: 1 | V91: 1 | W91: 0 | X91: 1 | Y91: 0 | Z91: 0 | AA91: 0 | AB91: 2
A92: 60 | B92: 15 | C92: 40 | D92: 40 | E92: 67 | F92: 89 | H92: 163 | I92: 199 | J92: 183 | K92: 189 | L92: 162 | M92: 161 | O92: 1 | P92: 1 | Q92: 2 | R92: 2 | S92: 1 | T92: 1 | V92: 1 | W92: 0 | X92: 0 | Y92: 0 | Z92: 1 | AA92: 1 | AB92: 3
A93: 76 | B93: 93 | C93: 40 | D93: 69 | E93: 22 | F93: 23 | H93: 190 | I93: 172 | J93: 183 | K93: 195 | L93: 202 | M93: 185 | O93: 1 | P93: 1 | Q93: 1 | R93: 1 | S93: 1 | T93: 1 | V93: 0 | W93: 0 | X93: 0 | Y93: 0 | Z93: 0 | AA93: 0 | AB93: 0
A94: 61 | B94: 74 | C94: 37 | D94: 26 | E94: 29 | F94: 95 | H94: 186 | I94: 181 | J94: 191 | K94: 202 | L94: 191 | M94: 176 | O94: 1 | P94: 1 | Q94: 1 | R94: 1 | S94: 1 | T94: 1 | V94: 0 | W94: 0 | X94: 0 | Y94: 0 | Z94: 0 | AA94: 0 | AB94: 0
A95: 51 | B95: 91 | C95: 18 | D95: 71 | E95: 84 | F95: 72 | H95: 188 | I95: 167 | J95: 169 | K95: 194 | L95: 173 | M95: 174 | O95: 1 | P95: 1 | Q95: 1 | R95: 1 | S95: 1 | T95: 1 | V95: 0 | W95: 1 | X95: 1 | Y95: 0 | Z95: 0 | AA95: 0 | AB95: 2
A96: 20 | B96: 84 | C96: 80 | D96: 94 | E96: 45 | F96: 69 | H96: 204 | I96: 152 | J96: 193 | K96: 199 | L96: 187 | M96: 187 | O96: 1 | P96: 1 | Q96: 1 | R96: 1 | S96: 1 | T96: 1 | V96: 0 | W96: 1 | X96: 0 | Y96: 0 | Z96: 0 | AA96: 0 | AB96: 1
A97: 73 | B97: 33 | C97: 30 | D97: 75 | E97: 95 | F97: 40 | H97: 177 | I97: 213 | J97: 163 | K97: 173 | L97: 181 | M97: 176 | O97: 1 | P97: 1 | Q97: 1 | R97: 1 | S97: 1 | T97: 1 | V97: 0 | W97: 0 | X97: 1 | Y97: 0 | Z97: 0 | AA97: 0 | AB97: 1
A98: 92 | B98: 74 | C98: 13 | D98: 70 | E98: 34 | F98: 23 | H98: 200 | I98: 181 | J98: 158 | K98: 181 | L98: 186 | M98: 185 | O98: 1 | P98: 1 | Q98: 1 | R98: 1 | S98: 1 | T98: 1 | V98: 0 | W98: 0 | X98: 1 | Y98: 0 | Z98: 0 | AA98: 0 | AB98: 1
A99: 77 | B99: 26 | C99: 79 | D99: 35 | E99: 51 | F99: 15 | H99: 206 | I99: 176 | J99: 158 | K99: 198 | L99: 230 | M99: 187 | O99: 1 | P99: 1 | Q99: 1 | R99: 1 | S99: 1 | T99: 1 | V99: 0 | W99: 0 | X99: 1 | Y99: 0 | Z99: 0 | AA99: 0 | AB99: 1
A100: 66 | B100: 26 | C100: 54 | D100: 29 | E100: 68 | F100: 43 | H100: 167 | I100: 176 | J100: 190 | K100: 179 | L100: 179 | M100: 179 | O100: 1 | P100: 1 | Q100: 1 | R100: 1 | S100: 1 | T100: 1 | V100: 1 | W100: 0 | X100: 0 | Y100: 0 | Z100: 0 | AA100: 0 | AB100: 1
A101: 95 | B101: 66 | C101: 91 | D101: 74 | E101: 67 | F101: 39 | H101: 179 | I101: 193 | J101: 172 | K101: 200 | L101: 162 | M101: 200 | O101: 1 | P101: 1 | Q101: 1 | R101: 1 | S101: 1 | T101: 1 | V101: 0 | W101: 0 | X101: 0 | Y101: 0 | Z101: 1 | AA101: 0 | AB101: 1
A102: 10 | B102: 26 | C102: 50 | D102: 28 | E102: 26 | F102: 30 | H102: 163 | I102: 176 | J102: 181 | K102: 182 | L102: 155 | M102: 181 | O102: 1 | P102: 2 | Q102: 1 | R102: 1 | S102: 2 | T102: 1 | V102: 1 | W102: 0 | X102: 0 | Y102: 0 | Z102: 0 | AA102: 0 | AB102: 1
A103: 95 | B103: 31 | C103: 28 | D103: 30 | E103: 68 | F103: 94 | H103: 179 | I103: 171 | J103: 187 | K103: 161 | L103: 179 | M103: 173 | O103: 1 | P103: 1 | Q103: 1 | R103: 1 | S103: 1 | T103: 1 | V103: 0 | W103: 0 | X103: 0 | Y103: 1 | Z103: 0 | AA103: 0 | AB103: 1
A104: 92 | B104: 22 | C104: 63 | D104: 88 | E104: 79 | F104: 17 | H104: 200 | I104: 214 | J104: 204 | K104: 186 | L104: 184 | M104: 180 | O104: 1 | P104: 1 | Q104: 1 | R104: 1 | S104: 1 | T104: 1 | V104: 0 | W104: 0 | X104: 0 | Y104: 0 | Z104: 0 | AA104: 0 | AB104: 0
A105: 29 | B105: 15 | C105: 38 | D105: 88 | E105: 86 | F105: 98 | H105: 171 | I105: 199 | J105: 180 | K105: 186 | L105: 167 | M105: 191 | O105: 1 | P105: 1 | Q105: 1 | R105: 1 | S105: 1 | T105: 1 | V105: 0 | W105: 0 | X105: 0 | Y105: 0 | Z105: 1 | AA105: 0 | AB105: 1
A106: 85 | B106: 70 | C106: 79 | D106: 50 | E106: 70 | F106: 90 | H106: 188 | I106: 204 | J106: 158 | K106: 200 | L106: 170 | M106: 184 | O106: 1 | P106: 2 | Q106: 1 | R106: 1 | S106: 2 | T106: 1 | V106: 0 | W106: 0 | X106: 1 | Y106: 0 | Z106: 0 | AA106: 0 | AB106: 1
A107: 57 | B107: 10 | C107: 59 | D107: 92 | E107: 60 | F107: 91 | H107: 190 | I107: 168 | J107: 171 | K107: 180 | L107: 175 | M107: 176 | O107: 1 | P107: 1 | Q107: 1 | R107: 1 | S107: 1 | T107: 1 | V107: 0 | W107: 1 | X107: 0 | Y107: 0 | Z107: 0 | AA107: 0 | AB107: 1
A108: 58 | B108: 58 | C108: 24 | D108: 89 | E108: 60 | F108: 32 | H108: 171 | I108: 186 | J108: 197 | K108: 183 | L108: 175 | M108: 155 | O108: 2 | P108: 2 | Q108: 1 | R108: 1 | S108: 1 | T108: 1 | V108: 0 | W108: 0 | X108: 0 | Y108: 0 | Z108: 0 | AA108: 1 | AB108: 1
A109: 63 | B109: 55 | C109: 64 | D109: 44 | E109: 43 | F109: 44 | H109: 189 | I109: 171 | J109: 166 | K109: 152 | L109: 184 | M109: 183 | O109: 1 | P109: 1 | Q109: 1 | R109: 2 | S109: 1 | T109: 2 | V109: 0 | W109: 0 | X109: 1 | Y109: 0 | Z109: 0 | AA109: 0 | AB109: 1
A110: 31 | B110: 65 | C110: 33 | D110: 59 | E110: 30 | F110: 68 | H110: 177 | I110: 183 | J110: 181 | K110: 184 | L110: 173 | M110: 186 | O110: 1 | P110: 1 | Q110: 1 | R110: 1 | S110: 1 | T110: 1 | V110: 0 | W110: 0 | X110: 0 | Y110: 0 | Z110: 0 | AA110: 0 | AB110: 0
A111: 57 | B111: 90 | C111: 51 | D111: 27 | E111: 16 | F111: 69 | H111: 190 | I111: 173 | J111: 159 | K111: 211 | L111: 178 | M111: 187 | O111: 1 | P111: 1 | Q111: 1 | R111: 1 | S111: 1 | T111: 1 | V111: 0 | W111: 0 | X111: 1 | Y111: 0 | Z111: 0 | AA111: 0 | AB111: 1
A112: 56 | B112: 84 | C112: 40 | D112: 13 | E112: 69 | F112: 10 | H112: 204 | I112: 152 | J112: 183 | K112: 170 | L112: 168 | M112: 187 | O112: 1 | P112: 1 | Q112: 1 | R112: 1 | S112: 1 | T112: 1 | V112: 0 | W112: 1 | X112: 0 | Y112: 0 | Z112: 1 | AA112: 0 | AB112: 2
A113: 83 | B113: 49 | C113: 85 | D113: 20 | E113: 64 | F113: 64 | H113: 190 | I113: 192 | J113: 184 | K113: 168 | L113: 201 | M113: 199 | O113: 1 | P113: 1 | Q113: 1 | R113: 1 | S113: 2 | T113: 2 | V113: 0 | W113: 0 | X113: 0 | Y113: 1 | Z113: 0 | AA113: 0 | AB113: 1
A114: 55 | B114: 61 | C114: 92 | D114: 51 | E114: 36 | F114: 70 | H114: 182 | I114: 174 | J114: 186 | K114: 172 | L114: 172 | M114: 191 | O114: 1 | P114: 1 | Q114: 1 | R114: 1 | S114: 1 | T114: 1 | V114: 0 | W114: 0 | X114: 0 | Y114: 0 | Z114: 0 | AA114: 0 | AB114: 0
A115: 77 | B115: 88 | C115: 16 | D115: 22 | E115: 74 | F115: 52 | H115: 206 | I115: 158 | J115: 170 | K115: 180 | L115: 179 | M115: 169 | O115: 1 | P115: 1 | Q115: 1 | R115: 1 | S115: 1 | T115: 1 | V115: 0 | W115: 1 | X115: 0 | Y115: 0 | Z115: 0 | AA115: 1 | AB115: 2
A116: 56 | B116: 44 | C116: 58 | D116: 27 | E116: 88 | F116: 46 | H116: 204 | I116: 183 | J116: 204 | K116: 211 | L116: 183 | M116: 196 | O116: 1 | P116: 1 | Q116: 1 | R116: 1 | S116: 1 | T116: 1 | V116: 0 | W116: 0 | X116: 0 | Y116: 0 | Z116: 0 | AA116: 0 | AB116: 0
A117: 14 | B117: 71 | C117: 95 | D117: 97 | E117: 64 | F117: 39 | H117: 204 | I117: 167 | J117: 202 | K117: 157 | L117: 201 | M117: 200 | O117: 1 | P117: 1 | Q117: 1 | R117: 1 | S117: 1 | T117: 1 | V117: 0 | W117: 1 | X117: 0 | Y117: 1 | Z117: 0 | AA117: 0 | AB117: 2
A118: 54 | B118: 59 | C118: 75 | D118: 35 | E118: 28 | F118: 35 | H118: 179 | I118: 193 | J118: 181 | K118: 198 | L118: 170 | M118: 166 | O118: 1 | P118: 1 | Q118: 1 | R118: 2 | S118: 1 | T118: 2 | V118: 0 | W118: 0 | X118: 0 | Y118: 0 | Z118: 0 | AA118: 0 | AB118: 0
A119: 89 | B119: 87 | C119: 10 | D119: 37 | E119: 74 | F119: 66 | H119: 201 | I119: 175 | J119: 167 | K119: 141 | L119: 179 | M119: 179 | O119: 1 | P119: 1 | Q119: 1 | R119: 1 | S119: 1 | T119: 1 | V119: 0 | W119: 0 | X119: 1 | Y119: 1 | Z119: 0 | AA119: 0 | AB119: 2
A120: 72 | B120: 29 | C120: 97 | D120: 47 | E120: 62 | F120: 62 | H120: 199 | I120: 202 | J120: 182 | K120: 176 | L120: 173 | M120: 157 | O120: 1 | P120: 1 | Q120: 1 | R120: 1 | S120: 2 | T120: 2 | V120: 0 | W120: 0 | X120: 0 | Y120: 0 | Z120: 0 | AA120: 0 | AB120: 0
A121: 51 | B121: 58 | C121: 39 | D121: 30 | E121: 22 | F121: 63 | H121: 188 | I121: 186 | J121: 178 | K121: 161 | L121: 202 | M121: 182 | O121: 1 | P121: 1 | Q121: 1 | R121: 1 | S121: 1 | T121: 1 | V121: 0 | W121: 0 | X121: 0 | Y121: 1 | Z121: 0 | AA121: 0 | AB121: 1
A122: 24 | B122: 42 | C122: 77 | D122: 20 | E122: 40 | F122: 27 | H122: 188 | I122: 174 | J122: 190 | K122: 168 | L122: 188 | M122: 173 | O122: 1 | P122: 1 | Q122: 1 | R122: 1 | S122: 1 | T122: 1 | V122: 0 | W122: 0 | X122: 0 | Y122: 1 | Z122: 0 | AA122: 0 | AB122: 1
A123: 40 | B123: 53 | C123: 20 | D123: 47 | E123: 56 | F123: 88 | H123: 181 | I123: 185 | J123: 188 | K123: 176 | L123: 157 | M123: 190 | O123: 1 | P123: 1 | Q123: 1 | R123: 1 | S123: 1 | T123: 1 | V123: 0 | W123: 0 | X123: 0 | Y123: 0 | Z123: 1 | AA123: 0 | AB123: 1
A124: 56 | B124: 17 | C124: 80 | D124: 24 | E124: 91 | F124: 11 | H124: 204 | I124: 143 | J124: 193 | K124: 217 | L124: 164 | M124: 180 | O124: 1 | P124: 1 | Q124: 1 | R124: 1 | S124: 1 | T124: 1 | V124: 0 | W124: 1 | X124: 0 | Y124: 0 | Z124: 1 | AA124: 0 | AB124: 2
A125: 15 | B125: 91 | C125: 66 | D125: 73 | E125: 22 | F125: 26 | H125: 203 | I125: 167 | J125: 140 | K125: 194 | L125: 202 | M125: 169 | O125: 1 | P125: 1 | Q125: 1 | R125: 1 | S125: 1 | T125: 1 | V125: 0 | W125: 1 | X125: 1 | Y125: 0 | Z125: 0 | AA125: 1 | AB125: 3
A126: 89 | B126: 26 | C126: 27 | D126: 12 | E126: 18 | F126: 35 | H126: 201 | I126: 176 | J126: 179 | K126: 157 | L126: 205 | M126: 166 | O126: 1 | P126: 1 | Q126: 1 | R126: 1 | S126: 1 | T126: 1 | V126: 0 | W126: 0 | X126: 0 | Y126: 1 | Z126: 0 | AA126: 1 | AB126: 2
A127: 87 | B127: 67 | C127: 25 | D127: 61 | E127: 35 | F127: 21 | H127: 173 | I127: 195 | J127: 177 | K127: 176 | L127: 174 | M127: 168 | O127: 1 | P127: 1 | Q127: 1 | R127: 1 | S127: 1 | T127: 1 | V127: 0 | W127: 0 | X127: 0 | Y127: 0 | Z127: 0 | AA127: 1 | AB127: 1
A128: 62 | B128: 18 | C128: 12 | D128: 59 | E128: 68 | F128: 58 | H128: 180 | I128: 166 | J128: 197 | K128: 184 | L128: 179 | M128: 180 | O128: 1 | P128: 1 | Q128: 1 | R128: 1 | S128: 1 | T128: 1 | V128: 0 | W128: 1 | X128: 0 | Y128: 0 | Z128: 0 | AA128: 0 | AB128: 1
A129: 45 | B129: 66 | C129: 31 | D129: 59 | E129: 65 | F129: 54 | H129: 183 | I129: 193 | J129: 180 | K129: 184 | L129: 165 | M129: 182 | O129: 1 | P129: 1 | Q129: 1 | R129: 1 | S129: 1 | T129: 1 | V129: 0 | W129: 0 | X129: 0 | Y129: 0 | Z129: 1 | AA129: 0 | AB129: 1
A130: 26 | B130: 73 | C130: 71 | D130: 64 | E130: 14 | F130: 53 | H130: =COUNTIF(A:A,A130) -> 193 | I130: =COUNTIF(B:B,B130) -> 183 | J130: =COUNTIF(C:C,C130) -> 191 | K130: =COUNTIF(D:D,D130) -> 174 | L130: =COUNTIF(E:E,E130) -> 195 | M130: =COUNTIF(F:F,F130) -> 176 | O130: 1 | P130: 1 | Q130: 1 | R130: 1 | S130: 1 | T130: 1 | V130: 0 | W130: 0 | X130: 0 | Y130: 0 | Z130: 0 | AA130: 0 | AB130: 0
A131: 62 | B131: 46 | C131: 83 | D131: 86 | E131: 28 | F131: 42 | H131: 180 | I131: 222 | J131: 190 | K131: 194 | L131: 170 | M131: 189 | O131: =COUNTIF($A131:$F131,A131) -> 1 | P131: =COUNTIF($A131:$F131,B131) -> 1 | Q131: =COUNTIF($A131:$F131,C131) -> 1 | R131: =COUNTIF($A131:$F131,D131) -> 1 | S131: =COUNTIF($A131:$F131,E131) -> 1 | T131: =COUNTIF($A131:$F131,F131) -> 1 | V131: =IF(AND(O131=1,H131<170),1,0) -> 0 | W131: =IF(AND(P131=1,I131<170),1,0) -> 0 | X131: =IF(AND(Q131=1,J131<170),1,0) -> 0 | Y131: =IF(AND(R131=1,K131<170),1,0) -> 0 | Z131: =IF(AND(S131=1,L131<170),1,0) -> 0 | AA131: =IF(AND(T131=1,M131<170),1,0) -> 0 | AB131: =SUM(V131:AA131) -> 0
A132: 25 | B132: 41 | C132: 31 | D132: 57 | E132: 51 | F132: 20 | H132: 174 | I132: 143 | J132: 180 | K132: 190 | L132: 230 | M132: 200 | O132: 1 | P132: 1 | Q132: 1 | R132: 1 | S132: 1 | T132: 1 | V132: 0 | W132: 1 | X132: 0 | Y132: 0 | Z132: 0 | AA132: 0 | AB132: 1
A133: 21 | B133: 86 | C133: 82 | D133: 39 | E133: 90 | F133: 11 | H133: 172 | I133: 181 | J133: 189 | K133: 190 | L133: 208 | M133: 180 | O133: 1 | P133: 1 | Q133: 1 | R133: 1 | S133: 1 | T133: 1 | V133: 0 | W133: 0 | X133: 0 | Y133: 0 | Z133: 0 | AA133: 0 | AB133: 0
A134: 44 | B134: 82 | C134: 94 | D134: 87 | E134: 94 | F134: 44 | H134: 161 | I134: 178 | J134: 191 | K134: 185 | L134: 167 | M134: 183 | O134: 2 | P134: 1 | Q134: 2 | R134: 1 | S134: 2 | T134: 2 | V134: 0 | W134: 0 | X134: 0 | Y134: 0 | Z134: 0 | AA134: 0 | AB134: 0
A135: 69 | B135: 39 | C135: 86 | D135: 20 | E135: 51 | F135: 26 | H135: 165 | I135: 166 | J135: 170 | K135: 168 | L135: 230 | M135: 169 | O135: 1 | P135: 1 | Q135: 1 | R135: 1 | S135: 1 | T135: 1 | V135: 1 | W135: 1 | X135: 0 | Y135: 1 | Z135: 0 | AA135: 1 | AB135: 4
A136: 51 | B136: 55 | C136: 93 | D136: 87 | E136: 88 | F136: 72 | H136: 188 | I136: 171 | J136: 204 | K136: 185 | L136: 183 | M136: 174 | O136: 1 | P136: 1 | Q136: 1 | R136: 1 | S136: 1 | T136: 1 | V136: 0 | W136: 0 | X136: 0 | Y136: 0 | Z136: 0 | AA136: 0 | AB136: 0
A137: 84 | B137: 44 | C137: 33 | D137: 72 | E137: 97 | F137: 92 | H137: 189 | I137: 183 | J137: 181 | K137: 192 | L137: 173 | M137: 179 | O137: 1 | P137: 1 | Q137: 1 | R137: 1 | S137: 1 | T137: 1 | V137: 0 | W137: 0 | X137: 0 | Y137: 0 | Z137: 0 | AA137: 0 | AB137: 0
A138: 43 | B138: 50 | C138: 35 | D138: 76 | E138: 17 | F138: 91 | H138: 192 | I138: 185 | J138: 177 | K138: 188 | L138: 176 | M138: 176 | O138: 1 | P138: 1 | Q138: 1 | R138: 1 | S138: 1 | T138: 1 | V138: 0 | W138: 0 | X138: 0 | Y138: 0 | Z138: 0 | AA138: 0 | AB138: 0
A139: 47 | B139: 87 | C139: 25 | D139: 15 | E139: 44 | F139: 83 | H139: 167 | I139: 175 | J139: 177 | K139: 145 | L139: 202 | M139: 185 | O139: 1 | P139: 1 | Q139: 1 | R139: 1 | S139: 1 | T139: 1 | V139: 1 | W139: 0 | X139: 0 | Y139: 1 | Z139: 0 | AA139: 0 | AB139: 2
A140: 55 | B140: 72 | C140: 58 | D140: 98 | E140: 19 | F140: 86 | H140: 182 | I140: 158 | J140: 204 | K140: 175 | L140: 171 | M140: 175 | O140: 1 | P140: 1 | Q140: 1 | R140: 1 | S140: 1 | T140: 1 | V140: 0 | W140: 1 | X140: 0 | Y140: 0 | Z140: 0 | AA140: 0 | AB140: 1
A141: 12 | B141: 24 | C141: 66 | D141: 70 | E141: 98 | F141: 46 | H141: 183 | I141: 186 | J141: 140 | K141: 181 | L141: 201 | M141: 196 | O141: 1 | P141: 1 | Q141: 1 | R141: 1 | S141: 1 | T141: 1 | V141: 0 | W141: 0 | X141: 1 | Y141: 0 | Z141: 0 | AA141: 0 | AB141: 1
A142: 88 | B142: 46 | C142: 88 | D142: 71 | E142: 90 | F142: 41 | H142: 188 | I142: 222 | J142: 176 | K142: 194 | L142: 208 | M142: 164 | O142: 2 | P142: 1 | Q142: 2 | R142: 1 | S142: 1 | T142: 1 | V142: 0 | W142: 0 | X142: 0 | Y142: 0 | Z142: 0 | AA142: 1 | AB142: 1
A143: 58 | B143: 39 | C143: 61 | D143: 81 | E143: 48 | F143: 94 | H143: 171 | I143: 166 | J143: 195 | K143: 167 | L143: 179 | M143: 173 | O143: 1 | P143: 1 | Q143: 1 | R143: 1 | S143: 1 | T143: 1 | V143: 0 | W143: 1 | X143: 0 | Y143: 1 | Z143: 0 | AA143: 0 | AB143: 2
A144: 43 | B144: 19 | C144: 57 | D144: 66 | E144: 10 | F144: 54 | H144: 192 | I144: 172 | J144: 164 | K144: 176 | L144: 174 | M144: 182 | O144: 1 | P144: 1 | Q144: 1 | R144: 1 | S144: 1 | T144: 1 | V144: 0 | W144: 0 | X144: 1 | Y144: 0 | Z144: 0 | AA144: 0 | AB144: 1
A145: 17 | B145: 38 | C145: 73 | D145: 17 | E145: 25 | F145: 92 | H145: 179 | I145: 159 | J145: 200 | K145: 187 | L145: 191 | M145: 179 | O145: 2 | P145: 1 | Q145: 1 | R145: 2 | S145: 1 | T145: 1 | V145: 0 | W145: 1 | X145: 0 | Y145: 0 | Z145: 0 | AA145: 0 | AB145: 1
A146: 96 | B146: 78 | C146: 65 | D146: 60 | E146: 52 | F146: 23 | H146: 190 | I146: 200 | J146: 193 | K146: 173 | L146: 176 | M146: 185 | O146: 1 | P146: 1 | Q146: 1 | R146: 1 | S146: 1 | T146: 1 | V146: 0 | W146: 0 | X146: 0 | Y146: 0 | Z146: 0 | AA146: 0 | AB146: 0
A147: 69 | B147: 67 | C147: 25 | D147: 40 | E147: 46 | F147: 12 | H147: 165 | I147: 195 | J147: 177 | K147: 189 | L147: 166 | M147: 189 | O147: 1 | P147: 1 | Q147: 1 | R147: 1 | S147: 1 | T147: 1 | V147: 1 | W147: 0 | X147: 0 | Y147: 0 | Z147: 1 | AA147: 0 | AB147: 2
A148: 17 | B148: 92 | C148: 83 | D148: 89 | E148: 12 | F148: 17 | H148: 179 | I148: 195 | J148: 190 | K148: 183 | L148: 178 | M148: 180 | O148: 2 | P148: 1 | Q148: 1 | R148: 1 | S148: 1 | T148: 2 | V148: 0 | W148: 0 | X148: 0 | Y148: 0 | Z148: 0 | AA148: 0 | AB148: 0
A149: 61 | B149: 97 | C149: 54 | D149: 71 | E149: 62 | F149: 42 | H149: 186 | I149: 181 | J149: 190 | K149: 194 | L149: 173 | M149: 189 | O149: 1 | P149: 1 | Q149: 1 | R149: 1 | S149: 1 | T149: 1 | V149: 0 | W149: 0 | X149: 0 | Y149: 0 | Z149: 0 | AA149: 0 | AB149: 0
A150: 14 | B150: 41 | C150: 61 | D150: 55 | E150: 55 | F150: 90 | H150: 204 | I150: 143 | J150: 195 | K150: 182 | L150: 169 | M150: 184 | O150: 1 | P150: 1 | Q150: 1 | R150: 2 | S150: 2 | T150: 1 | V150: 0 | W150: 1 | X150: 0 | Y150: 0 | Z150: 0 | AA150: 0 | AB150: 1
A151: 37 | B151: 88 | C151: 33 | D151: 87 | E151: 75 | F151: 20 | H151: 178 | I151: 158 | J151: 181 | K151: 185 | L151: 176 | M151: 200 | O151: 1 | P151: 1 | Q151: 1 | R151: 1 | S151: 1 | T151: 1 | V151: 0 | W151: 1 | X151: 0 | Y151: 0 | Z151: 0 | AA151: 0 | AB151: 1
A152: 52 | B152: 17 | C152: 78 | D152: 91 | E152: 15 | F152: 93 | H152: 158 | I152: 143 | J152: 172 | K152: 190 | L152: 204 | M152: 173 | O152: 1 | P152: 1 | Q152: 1 | R152: 1 | S152: 1 | T152: 1 | V152: 1 | W152: 1 | X152: 0 | Y152: 0 | Z152: 0 | AA152: 0 | AB152: 2
A153: 98 | B153: 38 | C153: 96 | D153: 35 | E153: 50 | F153: 78 | H153: 168 | I153: 159 | J153: 177 | K153: 198 | L153: 186 | M153: 176 | O153: 1 | P153: 1 | Q153: 1 | R153: 1 | S153: 1 | T153: 1 | V153: 1 | W153: 1 | X153: 0 | Y153: 0 | Z153: 0 | AA153: 0 | AB153: 2
A154: 88 | B154: 88 | C154: 16 | D154: 25 | E154: 86 | F154: 67 | H154: 188 | I154: 158 | J154: 170 | K154: 190 | L154: 167 | M154: 198 | O154: 2 | P154: 2 | Q154: 1 | R154: 1 | S154: 1 | T154: 1 | V154: 0 | W154: 0 | X154: 0 | Y154: 0 | Z154: 1 | AA154: 0 | AB154: 1
A155: 95 | B155: 81 | C155: 84 | D155: 46 | E155: 25 | F155: 62 | H155: 179 | I155: 186 | J155: 152 | K155: 175 | L155: 191 | M155: 157 | O155: 1 | P155: 1 | Q155: 1 | R155: 1 | S155: 1 | T155: 1 | V155: 0 | W155: 0 | X155: 1 | Y155: 0 | Z155: 0 | AA155: 1 | AB155: 2
A156: 56 | B156: 80 | C156: 94 | D156: 90 | E156: 46 | F156: 59 | H156: 204 | I156: 173 | J156: 191 | K156: 189 | L156: 166 | M156: 181 | O156: 1 | P156: 1 | Q156: 1 | R156: 1 | S156: 1 | T156: 1 | V156: 0 | W156: 0 | X156: 0 | Y156: 0 | Z156: 1 | AA156: 0 | AB156: 1
A157: 42 | B157: 62 | C157: 22 | D157: 67 | E157: 58 | F157: 44 | H157: 189 | I157: 177 | J157: 206 | K157: 186 | L157: 191 | M157: 183 | O157: 1 | P157: 1 | Q157: 1 | R157: 1 | S157: 1 | T157: 1 | V157: 0 | W157: 0 | X157: 0 | Y157: 0 | Z157: 0 | AA157: 0 | AB157: 0
A158: 57 | B158: 76 | C158: 71 | D158: 90 | E158: 88 | F158: 20 | H158: 190 | I158: 191 | J158: 191 | K158: 189 | L158: 183 | M158: 200 | O158: 1 | P158: 1 | Q158: 1 | R158: 1 | S158: 1 | T158: 1 | V158: 0 | W158: 0 | X158: 0 | Y158: 0 | Z158: 0 | AA158: 0 | AB158: 0
A159: 24 | B159: 20 | C159: 73 | D159: 34 | E159: 20 | F159: 10 | H159: 188 | I159: 182 | J159: 200 | K159: 182 | L159: 165 | M159: 187 | O159: 1 | P159: 2 | Q159: 1 | R159: 1 | S159: 2 | T159: 1 | V159: 0 | W159: 0 | X159: 0 | Y159: 0 | Z159: 0 | AA159: 0 | AB159: 0
A160: 37 | B160: 33 | C160: 41 | D160: 90 | E160: 12 | F160: 80 | H160: 178 | I160: 213 | J160: 180 | K160: 189 | L160: 178 | M160: 171 | O160: 1 | P160: 1 | Q160: 1 | R160: 1 | S160: 1 | T160: 1 | V160: 0 | W160: 0 | X160: 0 | Y160: 0 | Z160: 0 | AA160: 0 | AB160: 0
A161: 60 | B161: 16 | C161: 53 | D161: 40 | E161: 32 | F161: 57 | H161: 163 | I161: 174 | J161: 176 | K161: 189 | L161: 184 | M161: 182 | O161: 1 | P161: 1 | Q161: 1 | R161: 1 | S161: 1 | T161: 1 | V161: 1 | W161: 0 | X161: 0 | Y161: 0 | Z161: 0 | AA161: 0 | AB161: 1
A162: 56 | B162: 81 | C162: 32 | D162: 36 | E162: 84 | F162: 78 | H162: 204 | I162: 186 | J162: 209 | K162: 164 | L162: 173 | M162: 176 | O162: 1 | P162: 1 | Q162: 1 | R162: 1 | S162: 1 | T162: 1 | V162: 0 | W162: 0 | X162: 0 | Y162: 1 | Z162: 0 | AA162: 0 | AB162: 1
A163: 23 | B163: 63 | C163: 46 | D163: 97 | E163: 44 | F163: 31 | H163: 179 | I163: 167 | J163: 173 | K163: 157 | L163: 202 | M163: 206 | O163: 1 | P163: 1 | Q163: 1 | R163: 1 | S163: 1 | T163: 1 | V163: 0 | W163: 1 | X163: 0 | Y163: 1 | Z163: 0 | AA163: 0 | AB163: 2
A164: 77 | B164: 61 | C164: 40 | D164: 32 | E164: 63 | F164: 15 | H164: 206 | I164: 174 | J164: 183 | K164: 193 | L164: 171 | M164: 187 | O164: 1 | P164: 1 | Q164: 1 | R164: 1 | S164: 1 | T164: 1 | V164: 0 | W164: 0 | X164: 0 | Y164: 0 | Z164: 0 | AA164: 0 | AB164: 0
A165: 87 | B165: 35 | C165: 12 | D165: 94 | E165: 45 | F165: 77 | H165: 173 | I165: 180 | J165: 197 | K165: 199 | L165: 187 | M165: 193 | O165: 1 | P165: 1 | Q165: 1 | R165: 1 | S165: 1 | T165: 1 | V165: 0 | W165: 0 | X165: 0 | Y165: 0 | Z165: 0 | AA165: 0 | AB165: 0
A166: 63 | B166: 31 | C166: 90 | D166: 34 | E166: 56 | F166: 75 | H166: 189 | I166: 171 | J166: 179 | K166: 182 | L166: 157 | M166: 170 | O166: 1 | P166: 1 | Q166: 1 | R166: 1 | S166: 1 | T166: 1 | V166: 0 | W166: 0 | X166: 0 | Y166: 0 | Z166: 1 | AA166: 0 | AB166: 1
A167: 20 | B167: 25 | C167: 52 | D167: 78 | E167: 43 | F167: 40 | H167: 204 | I167: 191 | J167: 194 | K167: 181 | L167: 184 | M167: 176 | O167: 1 | P167: 1 | Q167: 1 | R167: 1 | S167: 1 | T167: 1 | V167: 0 | W167: 0 | X167: 0 | Y167: 0 | Z167: 0 | AA167: 0 | AB167: 0
A168: 77 | B168: 52 | C168: 39 | D168: 48 | E168: 94 | F168: 23 | H168: 206 | I168: 169 | J168: 178 | K168: 171 | L168: 167 | M168: 185 | O168: 1 | P168: 1 | Q168: 1 | R168: 1 | S168: 1 | T168: 1 | V168: 0 | W168: 1 | X168: 0 | Y168: 0 | Z168: 1 | AA168: 0 | AB168: 2
A169: 32 | B169: 68 | C169: 19 | D169: 42 | E169: 32 | F169: 15 | H169: 189 | I169: 178 | J169: 158 | K169: 162 | L169: 184 | M169: 187 | O169: 2 | P169: 1 | Q169: 1 | R169: 1 | S169: 2 | T169: 1 | V169: 0 | W169: 0 | X169: 1 | Y169: 1 | Z169: 0 | AA169: 0 | AB169: 2
A170: 33 | B170: 97 | C170: 98 | D170: 83 | E170: 92 | F170: 83 | H170: 184 | I170: 181 | J170: 182 | K170: 196 | L170: 182 | M170: 185 | O170: 1 | P170: 1 | Q170: 1 | R170: 2 | S170: 1 | T170: 2 | V170: 0 | W170: 0 | X170: 0 | Y170: 0 | Z170: 0 | AA170: 0 | AB170: 0
A171: 42 | B171: 76 | C171: 35 | D171: 28 | E171: 16 | F171: 65 | H171: 189 | I171: 191 | J171: 177 | K171: 182 | L171: 178 | M171: 184 | O171: 1 | P171: 1 | Q171: 1 | R171: 1 | S171: 1 | T171: 1 | V171: 0 | W171: 0 | X171: 0 | Y171: 0 | Z171: 0 | AA171: 0 | AB171: 0
A172: 59 | B172: 85 | C172: 79 | D172: 80 | E172: 43 | F172: 74 | H172: 205 | I172: 187 | J172: 158 | K172: 172 | L172: 184 | M172: 170 | O172: 1 | P172: 1 | Q172: 1 | R172: 1 | S172: 1 | T172: 1 | V172: 0 | W172: 0 | X172: 1 | Y172: 0 | Z172: 0 | AA172: 0 | AB172: 1
A173: 85 | B173: 22 | C173: 28 | D173: 91 | E173: 92 | F173: 59 | H173: 188 | I173: 214 | J173: 187 | K173: 190 | L173: 182 | M173: 181 | O173: 1 | P173: 1 | Q173: 1 | R173: 1 | S173: 1 | T173: 1 | V173: 0 | W173: 0 | X173: 0 | Y173: 0 | Z173: 0 | AA173: 0 | AB173: 0
A174: 35 | B174: 83 | C174: 10 | D174: 35 | E174: 60 | F174: 77 | H174: 162 | I174: 178 | J174: 167 | K174: 198 | L174: 175 | M174: 193 | O174: 2 | P174: 1 | Q174: 1 | R174: 2 | S174: 1 | T174: 1 | V174: 0 | W174: 0 | X174: 1 | Y174: 0 | Z174: 0 | AA174: 0 | AB174: 1
A175: 18 | B175: 37 | C175: 87 | D175: 85 | E175: 80 | F175: 37 | H175: 132 | I175: 192 | J175: 173 | K175: 160 | L175: 175 | M175: 164 | O175: 1 | P175: 2 | Q175: 1 | R175: 1 | S175: 1 | T175: 2 | V175: 1 | W175: 0 | X175: 0 | Y175: 1 | Z175: 0 | AA175: 0 | AB175: 2
A176: 27 | B176: 38 | C176: 84 | D176: 82 | E176: 38 | F176: 49 | H176: 173 | I176: 159 | J176: 152 | K176: 160 | L176: 171 | M176: 168 | O176: 1 | P176: 2 | Q176: 1 | R176: 1 | S176: 2 | T176: 1 | V176: 0 | W176: 0 | X176: 1 | Y176: 1 | Z176: 0 | AA176: 1 | AB176: 3
A177: 71 | B177: 91 | C177: 43 | D177: 66 | E177: 98 | F177: 87 | H177: 169 | I177: 167 | J177: 152 | K177: 176 | L177: 201 | M177: 170 | O177: 1 | P177: 1 | Q177: 1 | R177: 1 | S177: 1 | T177: 1 | V177: 1 | W177: 1 | X177: 1 | Y177: 0 | Z177: 0 | AA177: 0 | AB177: 3
A178: 37 | B178: 16 | C178: 20 | D178: 47 | E178: 48 | F178: 10 | H178: 178 | I178: 174 | J178: 188 | K178: 176 | L178: 179 | M178: 187 | O178: 1 | P178: 1 | Q178: 1 | R178: 1 | S178: 1 | T178: 1 | V178: 0 | W178: 0 | X178: 0 | Y178: 0 | Z178: 0 | AA178: 0 | AB178: 0
A179: 90 | B179: 29 | C179: 77 | D179: 88 | E179: 97 | F179: 91 | H179: 192 | I179: 202 | J179: 190 | K179: 186 | L179: 173 | M179: 176 | O179: 1 | P179: 1 | Q179: 1 | R179: 1 | S179: 1 | T179: 1 | V179: 0 | W179: 0 | X179: 0 | Y179: 0 | Z179: 0 | AA179: 0 | AB179: 0
A180: 59 | B180: 39 | C180: 41 | D180: 86 | E180: 75 | F180: 90 | H180: 205 | I180: 166 | J180: 180 | K180: 194 | L180: 176 | M180: 184 | O180: 1 | P180: 1 | Q180: 1 | R180: 1 | S180: 1 | T180: 1 | V180: 0 | W180: 1 | X180: 0 | Y180: 0 | Z180: 0 | AA180: 0 | AB180: 1
A181: 84 | B181: 63 | C181: 82 | D181: 26 | E181: 67 | F181: 88 | H181: 189 | I181: 167 | J181: 189 | K181: 202 | L181: 162 | M181: 190 | O181: 1 | P181: 1 | Q181: 1 | R181: 1 | S181: 1 | T181: 1 | V181: 0 | W181: 1 | X181: 0 | Y181: 0 | Z181: 1 | AA181: 0 | AB181: 2
A182: 17 | B182: 58 | C182: 63 | D182: 72 | E182: 17 | F182: 85 | H182: 179 | I182: 186 | J182: 204 | K182: 192 | L182: 176 | M182: 183 | O182: 2 | P182: 1 | Q182: 1 | R182: 1 | S182: 2 | T182: 1 | V182: 0 | W182: 0 | X182: 0 | Y182: 0 | Z182: 0 | AA182: 0 | AB182: 0
A183: 23 | B183: 43 | C183: 86 | D183: 29 | E183: 32 | F183: 92 | H183: 179 | I183: 197 | J183: 170 | K183: 179 | L183: 184 | M183: 179 | O183: 1 | P183: 1 | Q183: 1 | R183: 1 | S183: 1 | T183: 1 | V183: 0 | W183: 0 | X183: 0 | Y183: 0 | Z183: 0 | AA183: 0 | AB183: 0
A184: 37 | B184: 35 | C184: 83 | D184: 49 | E184: 39 | F184: 40 | H184: 178 | I184: 180 | J184: 190 | K184: 164 | L184: 178 | M184: 176 | O184: 1 | P184: 1 | Q184: 1 | R184: 1 | S184: 1 | T184: 1 | V184: 0 | W184: 0 | X184: 0 | Y184: 1 | Z184: 0 | AA184: 0 | AB184: 1
A185: 70 | B185: 59 | C185: 17 | D185: 77 | E185: 20 | F185: 12 | H185: 188 | I185: 193 | J185: 191 | K185: 181 | L185: 165 | M185: 189 | O185: 1 | P185: 1 | Q185: 1 | R185: 1 | S185: 1 | T185: 1 | V185: 0 | W185: 0 | X185: 0 | Y185: 0 | Z185: 1 | AA185: 0 | AB185: 1
A186: 67 | B186: 25 | C186: 27 | D186: 50 | E186: 60 | F186: 20 | H186: 164 | I186: 191 | J186: 179 | K186: 200 | L186: 175 | M186: 200 | O186: 1 | P186: 1 | Q186: 1 | R186: 1 | S186: 1 | T186: 1 | V186: 1 | W186: 0 | X186: 0 | Y186: 0 | Z186: 0 | AA186: 0 | AB186: 1
A187: 39 | B187: 47 | C187: 39 | D187: 48 | E187: 11 | F187: 63 | H187: 178 | I187: 153 | J187: 178 | K187: 171 | L187: 166 | M187: 182 | O187: 2 | P187: 1 | Q187: 2 | R187: 1 | S187: 1 | T187: 1 | V187: 0 | W187: 1 | X187: 0 | Y187: 0 | Z187: 1 | AA187: 0 | AB187: 2
A188: 49 | B188: 76 | C188: 85 | D188: 16 | E188: 92 | F188: 88 | H188: 184 | I188: 191 | J188: 184 | K188: 191 | L188: 182 | M188: 190 | O188: 1 | P188: 1 | Q188: 1 | R188: 1 | S188: 1 | T188: 1 | V188: 0 | W188: 0 | X188: 0 | Y188: 0 | Z188: 0 | AA188: 0 | AB188: 0
A189: 83 | B189: 82 | C189: 82 | D189: 43 | E189: 89 | F189: 77 | H189: 190 | I189: 178 | J189: 189 | K189: 184 | L189: 157 | M189: 193 | O189: 1 | P189: 2 | Q189: 2 | R189: 1 | S189: 1 | T189: 1 | V189: 0 | W189: 0 | X189: 0 | Y189: 0 | Z189: 1 | AA189: 0 | AB189: 1
A190: 34 | B190: 14 | C190: 65 | D190: 39 | E190: 84 | F190: 73 | H190: 164 | I190: 185 | J190: 193 | K190: 190 | L190: 173 | M190: 190 | O190: 1 | P190: 1 | Q190: 1 | R190: 1 | S190: 1 | T190: 1 | V190: 1 | W190: 0 | X190: 0 | Y190: 0 | Z190: 0 | AA190: 0 | AB190: 1
A191: 87 | B191: 67 | C191: 52 | D191: 43 | E191: 48 | F191: 84 | H191: 173 | I191: 195 | J191: 194 | K191: 184 | L191: 179 | M191: 192 | O191: 1 | P191: 1 | Q191: 1 | R191: 1 | S191: 1 | T191: 1 | V191: 0 | W191: 0 | X191: 0 | Y191: 0 | Z191: 0 | AA191: 0 | AB191: 0
A192: 21 | B192: 38 | C192: 75 | D192: 23 | E192: 52 | F192: 17 | H192: 172 | I192: 159 | J192: 181 | K192: 179 | L192: 176 | M192: 180 | O192: 1 | P192: 1 | Q192: 1 | R192: 1 | S192: 1 | T192: 1 | V192: 0 | W192: 1 | X192: 0 | Y192: 0 | Z192: 0 | AA192: 0 | AB192: 1
A193: 68 | B193: 55 | C193: 97 | D193: 52 | E193: 25 | F193: 32 | H193: 175 | I193: 171 | J193: 182 | K193: 187 | L193: 191 | M193: 155 | O193: 1 | P193: 1 | Q193: 1 | R193: 1 | S193: 1 | T193: 1 | V193: 0 | W193: 0 | X193: 0 | Y193: 0 | Z193: 0 | AA193: 1 | AB193: 1
A194: 89 | B194: 56 | C194: 50 | D194: 40 | E194: 63 | F194: 17 | H194: =COUNTIF(A:A,A194) -> 201 | I194: =COUNTIF(B:B,B194) -> 178 | J194: =COUNTIF(C:C,C194) -> 181 | K194: =COUNTIF(D:D,D194) -> 189 | L194: =COUNTIF(E:E,E194) -> 171 | M194: =COUNTIF(F:F,F194) -> 180 | O194: 1 | P194: 1 | Q194: 1 | R194: 1 | S194: 1 | T194: 1 | V194: 0 | W194: 0 | X194: 0 | Y194: 0 | Z194: 0 | AA194: 0 | AB194: 0
A195: 38 | B195: 25 | C195: 62 | D195: 42 | E195: 53 | F195: 44 | H195: 190 | I195: 191 | J195: 188 | K195: 162 | L195: 197 | M195: 183 | O195: =COUNTIF($A195:$F195,A195) -> 1 | P195: =COUNTIF($A195:$F195,B195) -> 1 | Q195: =COUNTIF($A195:$F195,C195) -> 1 | R195: =COUNTIF($A195:$F195,D195) -> 1 | S195: =COUNTIF($A195:$F195,E195) -> 1 | T195: =COUNTIF($A195:$F195,F195) -> 1 | V195: =IF(AND(O195=1,H195<170),1,0) -> 0 | W195: =IF(AND(P195=1,I195<170),1,0) -> 0 | X195: =IF(AND(Q195=1,J195<170),1,0) -> 0 | Y195: =IF(AND(R195=1,K195<170),1,0) -> 1 | Z195: =IF(AND(S195=1,L195<170),1,0) -> 0 | AA195: =IF(AND(T195=1,M195<170),1,0) -> 0 | AB195: =SUM(V195:AA195) -> 1
A196: 75 | B196: 30 | C196: 41 | D196: 71 | E196: 35 | F196: 81 | H196: 179 | I196: 193 | J196: 180 | K196: 194 | L196: 174 | M196: 192 | O196: 1 | P196: 1 | Q196: 1 | R196: 1 | S196: 1 | T196: 1 | V196: 0 | W196: 0 | X196: 0 | Y196: 0 | Z196: 0 | AA196: 0 | AB196: 0
A197: 52 | B197: 66 | C197: 16 | D197: 46 | E197: 21 | F197: 25 | H197: 158 | I197: 193 | J197: 170 | K197: 175 | L197: 163 | M197: 178 | O197: 1 | P197: 1 | Q197: 1 | R197: 1 | S197: 1 | T197: 1 | V197: 1 | W197: 0 | X197: 0 | Y197: 0 | Z197: 1 | AA197: 0 | AB197: 2
A198: 53 | B198: 60 | C198: 91 | D198: 13 | E198: 58 | F198: 85 | H198: 185 | I198: 187 | J198: 172 | K198: 170 | L198: 191 | M198: 183 | O198: 1 | P198: 1 | Q198: 1 | R198: 1 | S198: 1 | T198: 1 | V198: 0 | W198: 0 | X198: 0 | Y198: 0 | Z198: 0 | AA198: 0 | AB198: 0
A199: 18 | B199: 71 | C199: 11 | D199: 64 | E199: 54 | F199: 60 | H199: 132 | I199: 167 | J199: 167 | K199: 174 | L199: 174 | M199: 197 | O199: 1 | P199: 1 | Q199: 1 | R199: 1 | S199: 1 | T199: 1 | V199: 1 | W199: 1 | X199: 1 | Y199: 0 | Z199: 0 | AA199: 0 | AB199: 3
A200: 98 | B200: 55 | C200: 87 | D200: 97 | E200: 69 | F200: 31 | H200: 168 | I200: 171 | J200: 173 | K200: 157 | L200: 168 | M200: 206 | O200: 1 | P200: 1 | Q200: 1 | R200: 1 | S200: 1 | T200: 1 | V200: 1 | W200: 0 | X200: 0 | Y200: 1 | Z200: 1 | AA200: 0 | AB200: 3
... 2050 more rows

Sheet Лист1
A1: Число | B1: Частоты чисел от 2 до 99 (число в столбце A) для A-F | I1: Частоты по столбцам (100·m·n) | O1: Частоты по столбцам (1·m·n), (используется getValue(r,c))
A2: 2 | B2: =COUNTIF('09'!A:A,$A2) -> 0 | C2: =COUNTIF('09'!B:B,$A2) -> 0 | D2: =COUNTIF('09'!C:C,$A2) -> 0 | E2: =COUNTIF('09'!D:D,$A2) -> 0 | F2: =COUNTIF('09'!E:E,$A2) -> 0 | G2: =COUNTIF('09'!F:F,$A2) -> 0 | I2: =VLOOKUP('09'!A2,Лист1!$A$2:$G$102,2) -> 168 | J2: =VLOOKUP('09'!B2,Лист1!$A$2:$G$102,3) -> 178 | K2: =VLOOKUP('09'!C2,Лист1!$A$2:$G$102,4) -> 194 | L2: =VLOOKUP('09'!D2,Лист1!$A$2:$G$102,5) -> 176 | M2: =VLOOKUP('09'!E2,Лист1!$A$2:$G$102,6) -> 196 | N2: =VLOOKUP('09'!F2,Лист1!$A$2:$G$102,7) -> 189 | O2: =getValue('09'!A2,2) -> 168 | P2: =getValue('09'!B2,3) -> 178 | Q2: =getValue('09'!C2,4) -> 194 | R2: =getValue('09'!D2,5) -> 176 | S2: =getValue('09'!E2,6) -> 196 | T2: =getValue('09'!F2,7) -> 189
A3: 3 | B3: =COUNTIF('09'!A:A,$A3) -> 0 | C3: =COUNTIF('09'!B:B,$A3) -> 0 | D3: =COUNTIF('09'!C:C,$A3) -> 0 | E3: =COUNTIF('09'!D:D,$A3) -> 0 | F3: =COUNTIF('09'!E:E,$A3) -> 0 | G3: =COUNTIF('09'!F:F,$A3) -> 0 | I3: =VLOOKUP('09'!A3,Лист1!$A$2:$G$102,2) -> 189 | J3: =VLOOKUP('09'!B3,Лист1!$A$2:$G$102,3) -> 181 | K3: =VLOOKUP('09'!C3,Лист1!$A$2:$G$102,4) -> 192 | L3: =VLOOKUP('09'!D3,Лист1!$A$2:$G$102,5) -> 184 | M3: =VLOOKUP('09'!E3,Лист1!$A$2:$G$102,6) -> 182 | N3: =VLOOKUP('09'!F3,Лист1!$A$2:$G$102,7) -> 168 | O3: =getValue('09'!A3,2) -> 189 | P3: =getValue('09'!B3,3) -> 181 | Q3: =getValue('09'!C3,4) -> 192 | R3: =getValue('09'!D3,5) -> 184 | S3: =getValue('09'!E3,6) -> 182 | T3: =getValue('09'!F3,7) -> 168
A4: 4 | B4: =COUNTIF('09'!A:A,$A4) -> 0 | C4: =COUNTIF('09'!B:B,$A4) -> 0 | D4: =COUNTIF('09'!C:C,$A4) -> 0 | E4: =COUNTIF('09'!D:D,$A4) -> 0 | F4: =COUNTIF('09'!E:E,$A4) -> 0 | G4: =COUNTIF('09'!F:F,$A4) -> 0 | I4: =VLOOKUP('09'!A4,Лист1!$A$2:$G$102,2) -> 178 | J4: =VLOOKUP('09'!B4,Лист1!$A$2:$G$102,3) -> 202 | K4: =VLOOKUP('09'!C4,Лист1!$A$2:$G$102,4) -> 182 | L4: =VLOOKUP('09'!D4,Лист1!$A$2:$G$102,5) -> 196 | M4: =VLOOKUP('09'!E4,Лист1!$A$2:$G$102,6) -> 178 | N4: =VLOOKUP('09'!F4,Лист1!$A$2:$G$102,7) -> 176 | O4: =getValue('09'!A4,2) -> 178 | P4: =getValue('09'!B4,3) -> 202 | Q4: =getValue('09'!C4,4) -> 182 | R4: =getValue('09'!D4,5) -> 196 | S4: =getValue('09'!E4,6) -> 178 | T4: =getValue('09'!F4,7) -> 176
A5: 5 | B5: =COUNTIF('09'!A:A,$A5) -> 0 | C5: =COUNTIF('09'!B:B,$A5) -> 0 | D5: =COUNTIF('09'!C:C,$A5) -> 0 | E5: =COUNTIF('09'!D:D,$A5) -> 0 | F5: =COUNTIF('09'!E:E,$A5) -> 0 | G5: =COUNTIF('09'!F:F,$A5) -> 0 | I5: =VLOOKUP('09'!A5,Лист1!$A$2:$G$102,2) -> 189 | J5: =VLOOKUP('09'!B5,Лист1!$A$2:$G$102,3) -> 195 | K5: =VLOOKUP('09'!C5,Лист1!$A$2:$G$102,4) -> 163 | L5: =VLOOKUP('09'!D5,Лист1!$A$2:$G$102,5) -> 179 | M5: =VLOOKUP('09'!E5,Лист1!$A$2:$G$102,6) -> 157 | N5: =VLOOKUP('09'!F5,Лист1!$A$2:$G$102,7) -> 190 | O5: =getValue('09'!A5,2) -> 189 | P5: =getValue('09'!B5,3) -> 195 | Q5: =getValue('09'!C5,4) -> 163 | R5: =getValue('09'!D5,5) -> 179 | S5: =getValue('09'!E5,6) -> 157 | T5: =getValue('09'!F5,7) -> 190
A6: 6 | B6: =COUNTIF('09'!A:A,$A6) -> 0 | C6: =COUNTIF('09'!B:B,$A6) -> 0 | D6: =COUNTIF('09'!C:C,$A6) -> 0 | E6: =COUNTIF('09'!D:D,$A6) -> 0 | F6: =COUNTIF('09'!E:E,$A6) -> 0 | G6: =COUNTIF('09'!F:F,$A6) -> 0 | I6: =VLOOKUP('09'!A6,Лист1!$A$2:$G$102,2) -> 181 | J6: =VLOOKUP('09'!B6,Лист1!$A$2:$G$102,3) -> 186 | K6: =VLOOKUP('09'!C6,Лист1!$A$2:$G$102,4) -> 193 | L6: =VLOOKUP('09'!D6,Лист1!$A$2:$G$102,5) -> 180 | M6: =VLOOKUP('09'!E6,Лист1!$A$2:$G$102,6) -> 185 | N6: =VLOOKUP('09'!F6,Лист1!$A$2:$G$102,7) -> 179 | O6: =getValue('09'!A6,2) -> 181 | P6: =getValue('09'!B6,3) -> 186 | Q6: =getValue('09'!C6,4) -> 193 | R6: =getValue('09'!D6,5) -> 180 | S6: =getValue('09'!E6,6) -> 185 | T6: =getValue('09'!F6,7) -> 179
A7: 7 | B7: =COUNTIF('09'!A:A,$A7) -> 0 | C7: =COUNTIF('09'!B:B,$A7) -> 0 | D7: =COUNTIF('09'!C:C,$A7) -> 0 | E7: =COUNTIF('09'!D:D,$A7) -> 0 | F7: =COUNTIF('09'!E:E,$A7) -> 0 | G7: =COUNTIF('09'!F:F,$A7) -> 0 | I7: =VLOOKUP('09'!A7,Лист1!$A$2:$G$102,2) -> 163 | J7: =VLOOKUP('09'!B7,Лист1!$A$2:$G$102,3) -> 151 | K7: =VLOOKUP('09'!C7,Лист1!$A$2:$G$102,4) -> 161 | L7: =VLOOKUP('09'!D7,Лист1!$A$2:$G$102,5) -> 145 | M7: =VLOOKUP('09'!E7,Лист1!$A$2:$G$102,6) -> 204 | N7: =VLOOKUP('09'!F7,Лист1!$A$2:$G$102,7) -> 176 | O7: =getValue('09'!A7,2) -> 163 | P7: =getValue('09'!B7,3) -> 151 | Q7: =getValue('09'!C7,4) -> 161 | R7: =getValue('09'!D7,5) -> 145 | S7: =getValue('09'!E7,6) -> 204 | T7: =getValue('09'!F7,7) -> 176
A8: 8 | B8: =COUNTIF('09'!A:A,$A8) -> 0 | C8: =COUNTIF('09'!B:B,$A8) -> 0 | D8: =COUNTIF('09'!C:C,$A8) -> 0 | E8: =COUNTIF('09'!D:D,$A8) -> 0 | F8: =COUNTIF('09'!E:E,$A8) -> 0 | G8: =COUNTIF('09'!F:F,$A8) -> 0 | I8: =VLOOKUP('09'!A8,Лист1!$A$2:$G$102,2) -> 163 | J8: =VLOOKUP('09'!B8,Лист1!$A$2:$G$102,3) -> 191 | K8: =VLOOKUP('09'!C8,Лист1!$A$2:$G$102,4) -> 176 | L8: =VLOOKUP('09'!D8,Лист1!$A$2:$G$102,5) -> 173 | M8: =VLOOKUP('09'!E8,Лист1!$A$2:$G$102,6) -> 199 | N8: =VLOOKUP('09'!F8,Лист1!$A$2:$G$102,7) -> 173 | O8: =getValue('09'!A8,2) -> 163 | P8: =getValue('09'!B8,3) -> 191 | Q8: =getValue('09'!C8,4) -> 176 | R8: =getValue('09'!D8,5) -> 173 | S8: =getValue('09'!E8,6) -> 199 | T8: =getValue('09'!F8,7) -> 173
A9: 9 | B9: =COUNTIF('09'!A:A,$A9) -> 0 | C9: =COUNTIF('09'!B:B,$A9) -> 0 | D9: =COUNTIF('09'!C:C,$A9) -> 0 | E9: =COUNTIF('09'!D:D,$A9) -> 0 | F9: =COUNTIF('09'!E:E,$A9) -> 0 | G9: =COUNTIF('09'!F:F,$A9) -> 0 | I9: =VLOOKUP('09'!A9,$A$2:$G$102,2) -> 190 | J9: =VLOOKUP('09'!B9,$A$2:$G$102,3) -> 205 | K9: =VLOOKUP('09'!C9,$A$2:$G$102,4) -> 182 | L9: =VLOOKUP('09'!D9,$A$2:$G$102,5) -> 176 | M9: =VLOOKUP('09'!E9,$A$2:$G$102,6) -> 157 | N9: =VLOOKUP('09'!F9,$A$2:$G$102,7) -> 213 | O9: =getValue('09'!A9,2) -> 190 | P9: =getValue('09'!B9,3) -> 205 | Q9: =getValue('09'!C9,4) -> 182 | R9: =getValue('09'!D9,5) -> 176 | S9: =getValue('09'!E9,6) -> 157 | T9: =getValue('09'!F9,7) -> 213
A10: 10 | B10: =COUNTIF('09'!A:A,$A10) -> 163 | C10: =COUNTIF('09'!B:B,$A10) -> 168 | D10: =COUNTIF('09'!C:C,$A10) -> 167 | E10: =COUNTIF('09'!D:D,$A10) -> 198 | F10: =COUNTIF('09'!E:E,$A10) -> 174 | G10: =COUNTIF('09'!F:F,$A10) -> 187 | I10: =VLOOKUP('09'!A10,$A$2:$G$102,2) -> 188 | J10: =VLOOKUP('09'!B10,$A$2:$G$102,3) -> 158 | K10: =VLOOKUP('09'!C10,$A$2:$G$102,4) -> 161 | L10: =VLOOKUP('09'!D10,$A$2:$G$102,5) -> 172 | M10: =VLOOKUP('09'!E10,$A$2:$G$102,6) -> 199 | N10: =VLOOKUP('09'!F10,$A$2:$G$102,7) -> 190 | O10: =getValue('09'!A10,2) -> 188 | P10: =getValue('09'!B10,3) -> 158 | Q10: =getValue('09'!C10,4) -> 161 | R10: =getValue('09'!D10,5) -> 172 | S10: =getValue('09'!E10,6) -> 199 | T10: =getValue('09'!F10,7) -> 190
A11: 11 | B11: =COUNTIF('09'!A:A,$A11) -> 168 | C11: =COUNTIF('09'!B:B,$A11) -> 171 | D11: =COUNTIF('09'!C:C,$A11) -> 167 | E11: =COUNTIF('09'!D:D,$A11) -> 154 | F11: =COUNTIF('09'!E:E,$A11) -> 166 | G11: =COUNTIF('09'!F:F,$A11) -> 180 | I11: =VLOOKUP('09'!A11,$A$2:$G$102,2) -> 162 | J11: =VLOOKUP('09'!B11,$A$2:$G$102,3) -> 185 | K11: =VLOOKUP('09'!C11,$A$2:$G$102,4) -> 179 | L11: =VLOOKUP('09'!D11,$A$2:$G$102,5) -> 152 | M11: =VLOOKUP('09'!E11,$A$2:$G$102,6) -> 167 | N11: =VLOOKUP('09'!F11,$A$2:$G$102,7) -> 180 | O11: =getValue('09'!A11,2) -> 162 | P11: =getValue('09'!B11,3) -> 185 | Q11: =getValue('09'!C11,4) -> 179 | R11: =getValue('09'!D11,5) -> 152 | S11: =getValue('09'!E11,6) -> 167 | T11: =getValue('09'!F11,7) -> 180
A12: 12 | B12: =COUNTIF('09'!A:A,$A12) -> 183 | C12: =COUNTIF('09'!B:B,$A12) -> 200 | D12: =COUNTIF('09'!C:C,$A12) -> 197 | E12: =COUNTIF('09'!D:D,$A12) -> 157 | F12: =COUNTIF('09'!E:E,$A12) -> 178 | G12: =COUNTIF('09'!F:F,$A12) -> 189 | I12: =VLOOKUP('09'!A12,$A$2:$G$102,2) -> 168 | J12: =VLOOKUP('09'!B12,$A$2:$G$102,3) -> 193 | K12: =VLOOKUP('09'!C12,$A$2:$G$102,4) -> 197 | L12: =VLOOKUP('09'!D12,$A$2:$G$102,5) -> 194 | M12: =VLOOKUP('09'!E12,$A$2:$G$102,6) -> 174 | N12: =VLOOKUP('09'!F12,$A$2:$G$102,7) -> 168 | O12: =getValue('09'!A12,2) -> 168 | P12: =getValue('09'!B12,3) -> 193 | Q12: =getValue('09'!C12,4) -> 197 | R12: =getValue('09'!D12,5) -> 194 | S12: =getValue('09'!E12,6) -> 174 | T12: =getValue('09'!F12,7) -> 168
A13: 13 | B13: =COUNTIF('09'!A:A,$A13) -> 159 | C13: =COUNTIF('09'!B:B,$A13) -> 175 | D13: =COUNTIF('09'!C:C,$A13) -> 158 | E13: =COUNTIF('09'!D:D,$A13) -> 170 | F13: =COUNTIF('09'!E:E,$A13) -> 186 | G13: =COUNTIF('09'!F:F,$A13) -> 173 | I13: =VLOOKUP('09'!A13,$A$2:$G$102,2) -> 183 | J13: =VLOOKUP('09'!B13,$A$2:$G$102,3) -> 151 | K13: =VLOOKUP('09'!C13,$A$2:$G$102,4) -> 178 | L13: =VLOOKUP('09'!D13,$A$2:$G$102,5) -> 180 | M13: =VLOOKUP('09'!E13,$A$2:$G$102,6) -> 164 | N13: =VLOOKUP('09'!F13,$A$2:$G$102,7) -> 193 | O13: =getValue('09'!A13,2) -> 183 | P13: =getValue('09'!B13,3) -> 151 | Q13: =getValue('09'!C13,4) -> 178 | R13: =getValue('09'!D13,5) -> 180 | S13: =getValue('09'!E13,6) -> 164 | T13: =getValue('09'!F13,7) -> 193
A14: 14 | B14: =COUNTIF('09'!A:A,$A14) -> 204 | C14: =COUNTIF('09'!B:B,$A14) -> 185 | D14: =COUNTIF('09'!C:C,$A14) -> 193 | E14: =COUNTIF('09'!D:D,$A14) -> 188 | F14: =COUNTIF('09'!E:E,$A14) -> 195 | G14: =COUNTIF('09'!F:F,$A14) -> 192 | I14: =VLOOKUP('09'!A14,$A$2:$G$102,2) -> 200 | J14: =VLOOKUP('09'!B14,$A$2:$G$102,3) -> 166 | K14: =VLOOKUP('09'!C14,$A$2:$G$102,4) -> 152 | L14: =VLOOKUP('09'!D14,$A$2:$G$102,5) -> 168 | M14: =VLOOKUP('09'!E14,$A$2:$G$102,6) -> 191 | N14: =VLOOKUP('09'!F14,$A$2:$G$102,7) -> 190 | O14: =getValue('09'!A14,2) -> 200 | P14: =getValue('09'!B14,3) -> 166 | Q14: =getValue('09'!C14,4) -> 152 | R14: =getValue('09'!D14,5) -> 168 | S14: =getValue('09'!E14,6) -> 191 | T14: =getValue('09'!F14,7) -> 190
A15: 15 | B15: =COUNTIF('09'!A:A,$A15) -> 203 | C15: =COUNTIF('09'!B:B,$A15) -> 199 | D15: =COUNTIF('09'!C:C,$A15) -> 184 | E15: =COUNTIF('09'!D:D,$A15) -> 145 | F15: =COUNTIF('09'!E:E,$A15) -> 204 | G15: =COUNTIF('09'!F:F,$A15) -> 187 | I15: =VLOOKUP('09'!A15,$A$2:$G$102,2) -> 190 | J15: =VLOOKUP('09'!B15,$A$2:$G$102,3) -> 193 | K15: =VLOOKUP('09'!C15,$A$2:$G$102,4) -> 161 | L15: =VLOOKUP('09'!D15,$A$2:$G$102,5) -> 170 | M15: =VLOOKUP('09'!E15,$A$2:$G$102,6) -> 185 | N15: =VLOOKUP('09'!F15,$A$2:$G$102,7) -> 157 | O15: =getValue('09'!A15,2) -> 190 | P15: =getValue('09'!B15,3) -> 193 | Q15: =getValue('09'!C15,4) -> 161 | R15: =getValue('09'!D15,5) -> 170 | S15: =getValue('09'!E15,6) -> 185 | T15: =getValue('09'!F15,7) -> 157
A16: 16 | B16: =COUNTIF('09'!A:A,$A16) -> 193 | C16: =COUNTIF('09'!B:B,$A16) -> 174 | D16: =COUNTIF('09'!C:C,$A16) -> 170 | E16: =COUNTIF('09'!D:D,$A16) -> 191 | F16: =COUNTIF('09'!E:E,$A16) -> 178 | G16: =COUNTIF('09'!F:F,$A16) -> 172 | I16: =VLOOKUP('09'!A16,$A$2:$G$102,2) -> 180 | J16: =VLOOKUP('09'!B16,$A$2:$G$102,3) -> 222 | K16: =VLOOKUP('09'!C16,$A$2:$G$102,4) -> 192 | L16: =VLOOKUP('09'!D16,$A$2:$G$102,5) -> 191 | M16: =VLOOKUP('09'!E16,$A$2:$G$102,6) -> 186 | N16: =VLOOKUP('09'!F16,$A$2:$G$102,7) -> 143 | O16: =getValue('09'!A16,2) -> 180 | P16: =getValue('09'!B16,3) -> 222 | Q16: =getValue('09'!C16,4) -> 192 | R16: =getValue('09'!D16,5) -> 191 | S16: =getValue('09'!E16,6) -> 186 | T16: =getValue('09'!F16,7) -> 143
A17: 17 | B17: =COUNTIF('09'!A:A,$A17) -> 179 | C17: =COUNTIF('09'!B:B,$A17) -> 143 | D17: =COUNTIF('09'!C:C,$A17) -> 191 | E17: =COUNTIF('09'!D:D,$A17) -> 187 | F17: =COUNTIF('09'!E:E,$A17) -> 176 | G17: =COUNTIF('09'!F:F,$A17) -> 180 | I17: =VLOOKUP('09'!A17,$A$2:$G$102,2) -> 158 | J17: =VLOOKUP('09'!B17,$A$2:$G$102,3) -> 143 | K17: =VLOOKUP('09'!C17,$A$2:$G$102,4) -> 191 | L17: =VLOOKUP('09'!D17,$A$2:$G$102,5) -> 175 | M17: =VLOOKUP('09'!E17,$A$2:$G$102,6) -> 165 | N17: =VLOOKUP('09'!F17,$A$2:$G$102,7) -> 176 | O17: =getValue('09'!A17,2) -> 158 | P17: =getValue('09'!B17,3) -> 143 | Q17: =getValue('09'!C17,4) -> 191 | R17: =getValue('09'!D17,5) -> 175 | S17: =getValue('09'!E17,6) -> 165 | T17: =getValue('09'!F17,7) -> 176
A18: 18 | B18: =COUNTIF('09'!A:A,$A18) -> 132 | C18: =COUNTIF('09'!B:B,$A18) -> 166 | D18: =COUNTIF('09'!C:C,$A18) -> 169 | E18: =COUNTIF('09'!D:D,$A18) -> 168 | F18: =COUNTIF('09'!E:E,$A18) -> 205 | G18: =COUNTIF('09'!F:F,$A18) -> 172 | I18: =VLOOKUP('09'!A18,$A$2:$G$102,2) -> 188 | J18: =VLOOKUP('09'!B18,$A$2:$G$102,3) -> 167 | K18: =VLOOKUP('09'!C18,$A$2:$G$102,4) -> 148 | L18: =VLOOKUP('09'!D18,$A$2:$G$102,5) -> 172 | M18: =VLOOKUP('09'!E18,$A$2:$G$102,6) -> 170 | N18: =VLOOKUP('09'!F18,$A$2:$G$102,7) -> 153 | O18: =getValue('09'!A18,2) -> 188 | P18: =getValue('09'!B18,3) -> 167 | Q18: =getValue('09'!C18,4) -> 148 | R18: =getValue('09'!D18,5) -> 172 | S18: =getValue('09'!E18,6) -> 170 | T18: =getValue('09'!F18,7) -> 153
A19: 19 | B19: =COUNTIF('09'!A:A,$A19) -> 195 | C19: =COUNTIF('09'!B:B,$A19) -> 172 | D19: =COUNTIF('09'!C:C,$A19) -> 158 | E19: =COUNTIF('09'!D:D,$A19) -> 152 | F19: =COUNTIF('09'!E:E,$A19) -> 171 | G19: =COUNTIF('09'!F:F,$A19) -> 189 | I19: =VLOOKUP('09'!A19,Лист1!$A$2:$G$102,2) -> 168 | J19: =VLOOKUP('09'!B19,Лист1!$A$2:$G$102,3) -> 194 | K19: =VLOOKUP('09'!C19,Лист1!$A$2:$G$102,4) -> 173 | L19: =VLOOKUP('09'!D19,Лист1!$A$2:$G$102,5) -> 193 | M19: =VLOOKUP('09'!E19,Лист1!$A$2:$G$102,6) -> 173 | N19: =VLOOKUP('09'!F19,Лист1!$A$2:$G$102,7) -> 176 | O19: =getValue('09'!A19,2) -> 168 | P19: =getValue('09'!B19,3) -> 194 | Q19: =getValue('09'!C19,4) -> 173 | R19: =getValue('09'!D19,5) -> 193 | S19: =getValue('09'!E19,6) -> 173 | T19: =getValue('09'!F19,7) -> 176
A20: 20 | B20: =COUNTIF('09'!A:A,$A20) -> 204 | C20: =COUNTIF('09'!B:B,$A20) -> 182 | D20: =COUNTIF('09'!C:C,$A20) -> 188 | E20: =COUNTIF('09'!D:D,$A20) -> 168 | F20: =COUNTIF('09'!E:E,$A20) -> 165 | G20: =COUNTIF('09'!F:F,$A20) -> 200 | I20: =VLOOKUP('09'!A20,Лист1!$A$2:$G$102,2) -> 160 | J20: =VLOOKUP('09'!B20,Лист1!$A$2:$G$102,3) -> 177 | K20: =VLOOKUP('09'!C20,Лист1!$A$2:$G$102,4) -> 186 | L20: =VLOOKUP('09'!D20,Лист1!$A$2:$G$102,5) -> 199 | M20: =VLOOKUP('09'!E20,Лист1!$A$2:$G$102,6) -> 179 | N20: =VLOOKUP('09'!F20,Лист1!$A$2:$G$102,7) -> 179 | O20: =getValue('09'!A20,2) -> 160 | P20: =getValue('09'!B20,3) -> 177 | Q20: =getValue('09'!C20,4) -> 186 | R20: =getValue('09'!D20,5) -> 199 | S20: =getValue('09'!E20,6) -> 179 | T20: =getValue('09'!F20,7) -> 179
A21: 21 | B21: =COUNTIF('09'!A:A,$A21) -> 172 | C21: =COUNTIF('09'!B:B,$A21) -> 151 | D21: =COUNTIF('09'!C:C,$A21) -> 192 | E21: =COUNTIF('09'!D:D,$A21) -> 188 | F21: =COUNTIF('09'!E:E,$A21) -> 163 | G21: =COUNTIF('09'!F:F,$A21) -> 168 | I21: =VLOOKUP('09'!A21,Лист1!$A$2:$G$102,2) -> 172 | J21: =VLOOKUP('09'!B21,Лист1!$A$2:$G$102,3) -> 183 | K21: =VLOOKUP('09'!C21,Лист1!$A$2:$G$102,4) -> 172 | L21: =VLOOKUP('09'!D21,Лист1!$A$2:$G$102,5) -> 195 | M21: =VLOOKUP('09'!E21,Лист1!$A$2:$G$102,6) -> 180 | N21: =VLOOKUP('09'!F21,Лист1!$A$2:$G$102,7) -> 192 | O21: =getValue('09'!A21,2) -> 172 | P21: =getValue('09'!B21,3) -> 183 | Q21: =getValue('09'!C21,4) -> 172 | R21: =getValue('09'!D21,5) -> 195 | S21: =getValue('09'!E21,6) -> 180 | T21: =getValue('09'!F21,7) -> 192
A22: 22 | B22: =COUNTIF('09'!A:A,$A22) -> 167 | C22: =COUNTIF('09'!B:B,$A22) -> 214 | D22: =COUNTIF('09'!C:C,$A22) -> 206 | E22: =COUNTIF('09'!D:D,$A22) -> 180 | F22: =COUNTIF('09'!E:E,$A22) -> 202 | G22: =COUNTIF('09'!F:F,$A22) -> 203 | I22: =VLOOKUP('09'!A22,Лист1!$A$2:$G$102,2) -> 201 | J22: =VLOOKUP('09'!B22,Лист1!$A$2:$G$102,3) -> 185 | K22: =VLOOKUP('09'!C22,Лист1!$A$2:$G$102,4) -> 161 | L22: =VLOOKUP('09'!D22,Лист1!$A$2:$G$102,5) -> 175 | M22: =VLOOKUP('09'!E22,Лист1!$A$2:$G$102,6) -> 185 | N22: =VLOOKUP('09'!F22,Лист1!$A$2:$G$102,7) -> 173 | O22: =getValue('09'!A22,2) -> 201 | P22: =getValue('09'!B22,3) -> 185 | Q22: =getValue('09'!C22,4) -> 161 | R22: =getValue('09'!D22,5) -> 175 | S22: =getValue('09'!E22,6) -> 185 | T22: =getValue('09'!F22,7) -> 173
A23: 23 | B23: =COUNTIF('09'!A:A,$A23) -> 179 | C23: =COUNTIF('09'!B:B,$A23) -> 176 | D23: =COUNTIF('09'!C:C,$A23) -> 157 | E23: =COUNTIF('09'!D:D,$A23) -> 179 | F23: =COUNTIF('09'!E:E,$A23) -> 210 | G23: =COUNTIF('09'!F:F,$A23) -> 185 | I23: =VLOOKUP('09'!A23,Лист1!$A$2:$G$102,2) -> 174 | J23: =VLOOKUP('09'!B23,Лист1!$A$2:$G$102,3) -> 178 | K23: =VLOOKUP('09'!C23,Лист1!$A$2:$G$102,4) -> 157 | L23: =VLOOKUP('09'!D23,Лист1!$A$2:$G$102,5) -> 181 | M23: =VLOOKUP('09'!E23,Лист1!$A$2:$G$102,6) -> 162 | N23: =VLOOKUP('09'!F23,Лист1!$A$2:$G$102,7) -> 213 | O23: =getValue('09'!A23,2) -> 174 | P23: =getValue('09'!B23,3) -> 178 | Q23: =getValue('09'!C23,4) -> 157 | R23: =getValue('09'!D23,5) -> 181 | S23: =getValue('09'!E23,6) -> 162 | T23: =getValue('09'!F23,7) -> 213
A24: 24 | B24: =COUNTIF('09'!A:A,$A24) -> 188 | C24: =COUNTIF('09'!B:B,$A24) -> 186 | D24: =COUNTIF('09'!C:C,$A24) -> 197 | E24: =COUNTIF('09'!D:D,$A24) -> 217 | F24: =COUNTIF('09'!E:E,$A24) -> 170 | G24: =COUNTIF('09'!F:F,$A24) -> 173 | I24: =VLOOKUP('09'!A24,Лист1!$A$2:$G$102,2) -> 175 | J24: =VLOOKUP('09'!B24,Лист1!$A$2:$G$102,3) -> 182 | K24: =VLOOKUP('09'!C24,Лист1!$A$2:$G$102,4) -> 195 | L24: =VLOOKUP('09'!D24,Лист1!$A$2:$G$102,5) -> 168 | M24: =VLOOKUP('09'!E24,Лист1!$A$2:$G$102,6) -> 208 | N24: =VLOOKUP('09'!F24,Лист1!$A$2:$G$102,7) -> 187 | O24: =getValue('09'!A24,2) -> 175 | P24: =getValue('09'!B24,3) -> 182 | Q24: =getValue('09'!C24,4) -> 195 | R24: =getValue('09'!D24,5) -> 168 | S24: =getValue('09'!E24,6) -> 208 | T24: =getValue('09'!F24,7) -> 187
A25: 25 | B25: =COUNTIF('09'!A:A,$A25) -> 174 | C25: =COUNTIF('09'!B:B,$A25) -> 191 | D25: =COUNTIF('09'!C:C,$A25) -> 177 | E25: =COUNTIF('09'!D:D,$A25) -> 190 | F25: =COUNTIF('09'!E:E,$A25) -> 191 | G25: =COUNTIF('09'!F:F,$A25) -> 178 | I25: =VLOOKUP('09'!A25,Лист1!$A$2:$G$102,2) -> 190 | J25: =VLOOKUP('09'!B25,Лист1!$A$2:$G$102,3) -> 166 | K25: =VLOOKUP('09'!C25,Лист1!$A$2:$G$102,4) -> 187 | L25: =VLOOKUP('09'!D25,Лист1!$A$2:$G$102,5) -> 162 | M25: =VLOOKUP('09'!E25,Лист1!$A$2:$G$102,6) -> 180 | N25: =VLOOKUP('09'!F25,Лист1!$A$2:$G$102,7) -> 181 | O25: =getValue('09'!A25,2) -> 190 | P25: =getValue('09'!B25,3) -> 166 | Q25: =getValue('09'!C25,4) -> 187 | R25: =getValue('09'!D25,5) -> 162 | S25: =getValue('09'!E25,6) -> 180 | T25: =getValue('09'!F25,7) -> 181
A26: 26 | B26: =COUNTIF('09'!A:A,$A26) -> 193 | C26: =COUNTIF('09'!B:B,$A26) -> 176 | D26: =COUNTIF('09'!C:C,$A26) -> 168 | E26: =COUNTIF('09'!D:D,$A26) -> 202 | F26: =COUNTIF('09'!E:E,$A26) -> 155 | G26: =COUNTIF('09'!F:F,$A26) -> 169 | I26: =VLOOKUP('09'!A26,Лист1!$A$2:$G$102,2) -> 190 | J26: =VLOOKUP('09'!B26,Лист1!$A$2:$G$102,3) -> 187 | K26: =VLOOKUP('09'!C26,Лист1!$A$2:$G$102,4) -> 181 | L26: =VLOOKUP('09'!D26,Лист1!$A$2:$G$102,5) -> 171 | M26: =VLOOKUP('09'!E26,Лист1!$A$2:$G$102,6) -> 170 | N26: =VLOOKUP('09'!F26,Лист1!$A$2:$G$102,7) -> 180 | O26: =getValue('09'!A26,2) -> 190 | P26: =getValue('09'!B26,3) -> 187 | Q26: =getValue('09'!C26,4) -> 181 | R26: =getValue('09'!D26,5) -> 171 | S26: =getValue('09'!E26,6) -> 170 | T26: =getValue('09'!F26,7) -> 180
A27: 27 | B27: =COUNTIF('09'!A:A,$A27) -> 173 | C27: =COUNTIF('09'!B:B,$A27) -> 179 | D27: =COUNTIF('09'!C:C,$A27) -> 179 | E27: =COUNTIF('09'!D:D,$A27) -> 211 | F27: =COUNTIF('09'!E:E,$A27) -> 174 | G27: =COUNTIF('09'!F:F,$A27) -> 173 | I27: =VLOOKUP('09'!A27,Лист1!$A$2:$G$102,2) -> 189 | J27: =VLOOKUP('09'!B27,Лист1!$A$2:$G$102,3) -> 173 | K27: =VLOOKUP('09'!C27,Лист1!$A$2:$G$102,4) -> 187 | L27: =VLOOKUP('09'!D27,Лист1!$A$2:$G$102,5) -> 181 | M27: =VLOOKUP('09'!E27,Лист1!$A$2:$G$102,6) -> 187 | N27: =VLOOKUP('09'!F27,Лист1!$A$2:$G$102,7) -> 185 | O27: =getValue('09'!A27,2) -> 189 | P27: =getValue('09'!B27,3) -> 173 | Q27: =getValue('09'!C27,4) -> 187 | R27: =getValue('09'!D27,5) -> 181 | S27: =getValue('09'!E27,6) -> 187 | T27: =getValue('09'!F27,7) -> 185
A28: 28 | B28: =COUNTIF('09'!A:A,$A28) -> 187 | C28: =COUNTIF('09'!B:B,$A28) -> 194 | D28: =COUNTIF('09'!C:C,$A28) -> 187 | E28: =COUNTIF('09'!D:D,$A28) -> 182 | F28: =COUNTIF('09'!E:E,$A28) -> 170 | G28: =COUNTIF('09'!F:F,$A28) -> 171 | I28: =VLOOKUP('09'!A28,Лист1!$A$2:$G$102,2) -> 203 | J28: =VLOOKUP('09'!B28,Лист1!$A$2:$G$102,3) -> 182 | K28: =VLOOKUP('09'!C28,Лист1!$A$2:$G$102,4) -> 173 | L28: =VLOOKUP('09'!D28,Лист1!$A$2:$G$102,5) -> 168 | M28: =VLOOKUP('09'!E28,Лист1!$A$2:$G$102,6) -> 173 | N28: =VLOOKUP('09'!F28,Лист1!$A$2:$G$102,7) -> 173 | O28: =getValue('09'!A28,2) -> 203 | P28: =getValue('09'!B28,3) -> 182 | Q28: =getValue('09'!C28,4) -> 173 | R28: =getValue('09'!D28,5) -> 168 | S28: =getValue('09'!E28,6) -> 173 | T28: =getValue('09'!F28,7) -> 173
A29: 29 | B29: =COUNTIF('09'!A:A,$A29) -> 171 | C29: =COUNTIF('09'!B:B,$A29) -> 202 | D29: =COUNTIF('09'!C:C,$A29) -> 162 | E29: =COUNTIF('09'!D:D,$A29) -> 179 | F29: =COUNTIF('09'!E:E,$A29) -> 191 | G29: =COUNTIF('09'!F:F,$A29) -> 190 | I29: =VLOOKUP('09'!A29,Лист1!$A$2:$G$102,2) -> 179 | J29: =VLOOKUP('09'!B29,Лист1!$A$2:$G$102,3) -> 176 | K29: =VLOOKUP('09'!C29,Лист1!$A$2:$G$102,4) -> 203 | L29: =VLOOKUP('09'!D29,Лист1!$A$2:$G$102,5) -> 196 | M29: =VLOOKUP('09'!E29,Лист1!$A$2:$G$102,6) -> 184 | N29: =VLOOKUP('09'!F29,Лист1!$A$2:$G$102,7) -> 173 | O29: =getValue('09'!A29,2) -> 179 | P29: =getValue('09'!B29,3) -> 176 | Q29: =getValue('09'!C29,4) -> 203 | R29: =getValue('09'!D29,5) -> 196 | S29: =getValue('09'!E29,6) -> 184 | T29: =getValue('09'!F29,7) -> 173
A30: 30 | B30: =COUNTIF('09'!A:A,$A30) -> 158 | C30: =COUNTIF('09'!B:B,$A30) -> 193 | D30: =COUNTIF('09'!C:C,$A30) -> 163 | E30: =COUNTIF('09'!D:D,$A30) -> 161 | F30: =COUNTIF('09'!E:E,$A30) -> 173 | G30: =COUNTIF('09'!F:F,$A30) -> 181 | I30: =VLOOKUP('09'!A30,Лист1!$A$2:$G$102,2) -> 205 | J30: =VLOOKUP('09'!B30,Лист1!$A$2:$G$102,3) -> 173 | K30: =VLOOKUP('09'!C30,Лист1!$A$2:$G$102,4) -> 140 | L30: =VLOOKUP('09'!D30,Лист1!$A$2:$G$102,5) -> 167 | M30: =VLOOKUP('09'!E30,Лист1!$A$2:$G$102,6) -> 165 | N30: =VLOOKUP('09'!F30,Лист1!$A$2:$G$102,7) -> 192 | O30: =getValue('09'!A30,2) -> 205 | P30: =getValue('09'!B30,3) -> 173 | Q30: =getValue('09'!C30,4) -> 140 | R30: =getValue('09'!D30,5) -> 167 | S30: =getValue('09'!E30,6) -> 165 | T30: =getValue('09'!F30,7) -> 192
A31: 31 | B31: =COUNTIF('09'!A:A,$A31) -> 177 | C31: =COUNTIF('09'!B:B,$A31) -> 171 | D31: =COUNTIF('09'!C:C,$A31) -> 180 | E31: =COUNTIF('09'!D:D,$A31) -> 184 | F31: =COUNTIF('09'!E:E,$A31) -> 180 | G31: =COUNTIF('09'!F:F,$A31) -> 206 | I31: =VLOOKUP('09'!A31,Лист1!$A$2:$G$102,2) -> 163 | J31: =VLOOKUP('09'!B31,Лист1!$A$2:$G$102,3) -> 170 | K31: =VLOOKUP('09'!C31,Лист1!$A$2:$G$102,4) -> 176 | L31: =VLOOKUP('09'!D31,Лист1!$A$2:$G$102,5) -> 202 | M31: =VLOOKUP('09'!E31,Лист1!$A$2:$G$102,6) -> 204 | N31: =VLOOKUP('09'!F31,Лист1!$A$2:$G$102,7) -> 184 | O31: =getValue('09'!A31,2) -> 163 | P31: =getValue('09'!B31,3) -> 170 | Q31: =getValue('09'!C31,4) -> 176 | R31: =getValue('09'!D31,5) -> 202 | S31: =getValue('09'!E31,6) -> 204 | T31: =getValue('09'!F31,7) -> 184
A32: 32 | B32: =COUNTIF('09'!A:A,$A32) -> 189 | C32: =COUNTIF('09'!B:B,$A32) -> 190 | D32: =COUNTIF('09'!C:C,$A32) -> 209 | E32: =COUNTIF('09'!D:D,$A32) -> 193 | F32: =COUNTIF('09'!E:E,$A32) -> 184 | G32: =COUNTIF('09'!F:F,$A32) -> 155 | I32: =VLOOKUP('09'!A32,Лист1!$A$2:$G$102,2) -> 171 | J32: =VLOOKUP('09'!B32,Лист1!$A$2:$G$102,3) -> 191 | K32: =VLOOKUP('09'!C32,Лист1!$A$2:$G$102,4) -> 177 | L32: =VLOOKUP('09'!D32,Лист1!$A$2:$G$102,5) -> 183 | M32: =VLOOKUP('09'!E32,Лист1!$A$2:$G$102,6) -> 171 | N32: =VLOOKUP('09'!F32,Лист1!$A$2:$G$102,7) -> 185 | O32: =getValue('09'!A32,2) -> 171 | P32: =getValue('09'!B32,3) -> 191 | Q32: =getValue('09'!C32,4) -> 177 | R32: =getValue('09'!D32,5) -> 183 | S32: =getValue('09'!E32,6) -> 171 | T32: =getValue('09'!F32,7) -> 185
A33: 33 | B33: =COUNTIF('09'!A:A,$A33) -> 184 | C33: =COUNTIF('09'!B:B,$A33) -> 213 | D33: =COUNTIF('09'!C:C,$A33) -> 181 | E33: =COUNTIF('09'!D:D,$A33) -> 201 | F33: =COUNTIF('09'!E:E,$A33) -> 173 | G33: =COUNTIF('09'!F:F,$A33) -> 170 | I33: =VLOOKUP('09'!A33,Лист1!$A$2:$G$102,2) -> 193 | J33: =VLOOKUP('09'!B33,Лист1!$A$2:$G$102,3) -> 166 | K33: =VLOOKUP('09'!C33,Лист1!$A$2:$G$102,4) -> 180 | L33: =VLOOKUP('09'!D33,Лист1!$A$2:$G$102,5) -> 196 | M33: =VLOOKUP('09'!E33,Лист1!$A$2:$G$102,6) -> 184 | N33: =VLOOKUP('09'!F33,Лист1!$A$2:$G$102,7) -> 189 | O33: =getValue('09'!A33,2) -> 193 | P33: =getValue('09'!B33,3) -> 166 | Q33: =getValue('09'!C33,4) -> 180 | R33: =getValue('09'!D33,5) -> 196 | S33: =getValue('09'!E33,6) -> 184 | T33: =getValue('09'!F33,7) -> 189
A34: 34 | B34: =COUNTIF('09'!A:A,$A34) -> 164 | C34: =COUNTIF('09'!B:B,$A34) -> 162 | D34: =COUNTIF('09'!C:C,$A34) -> 148 | E34: =COUNTIF('09'!D:D,$A34) -> 182 | F34: =COUNTIF('09'!E:E,$A34) -> 186 | G34: =COUNTIF('09'!F:F,$A34) -> 153 | I34: =VLOOKUP('09'!A34,Лист1!$A$2:$G$102,2) -> 206 | J34: =VLOOKUP('09'!B34,Лист1!$A$2:$G$102,3) -> 174 | K34: =VLOOKUP('09'!C34,Лист1!$A$2:$G$102,4) -> 157 | L34: =VLOOKUP('09'!D34,Лист1!$A$2:$G$102,5) -> 182 | M34: =VLOOKUP('09'!E34,Лист1!$A$2:$G$102,6) -> 188 | N34: =VLOOKUP('09'!F34,Лист1!$A$2:$G$102,7) -> 155 | O34: =getValue('09'!A34,2) -> 206 | P34: =getValue('09'!B34,3) -> 174 | Q34: =getValue('09'!C34,4) -> 157 | R34: =getValue('09'!D34,5) -> 182 | S34: =getValue('09'!E34,6) -> 188 | T34: =getValue('09'!F34,7) -> 155
A35: 35 | B35: =COUNTIF('09'!A:A,$A35) -> 162 | C35: =COUNTIF('09'!B:B,$A35) -> 180 | D35: =COUNTIF('09'!C:C,$A35) -> 177 | E35: =COUNTIF('09'!D:D,$A35) -> 198 | F35: =COUNTIF('09'!E:E,$A35) -> 174 | G35: =COUNTIF('09'!F:F,$A35) -> 166 | I35: =VLOOKUP('09'!A35,Лист1!$A$2:$G$102,2) -> 188 | J35: =VLOOKUP('09'!B35,Лист1!$A$2:$G$102,3) -> 186 | K35: =VLOOKUP('09'!C35,Лист1!$A$2:$G$102,4) -> 188 | L35: =VLOOKUP('09'!D35,Лист1!$A$2:$G$102,5) -> 179 | M35: =VLOOKUP('09'!E35,Лист1!$A$2:$G$102,6) -> 210 | N35: =VLOOKUP('09'!F35,Лист1!$A$2:$G$102,7) -> 176 | O35: =getValue('09'!A35,2) -> 188 | P35: =getValue('09'!B35,3) -> 186 | Q35: =getValue('09'!C35,4) -> 188 | R35: =getValue('09'!D35,5) -> 179 | S35: =getValue('09'!E35,6) -> 210 | T35: =getValue('09'!F35,7) -> 176
A36: 36 | B36: =COUNTIF('09'!A:A,$A36) -> 172 | C36: =COUNTIF('09'!B:B,$A36) -> 185 | D36: =COUNTIF('09'!C:C,$A36) -> 194 | E36: =COUNTIF('09'!D:D,$A36) -> 164 | F36: =COUNTIF('09'!E:E,$A36) -> 172 | G36: =COUNTIF('09'!F:F,$A36) -> 174 | I36: =VLOOKUP('09'!A36,Лист1!$A$2:$G$102,2) -> 190 | J36: =VLOOKUP('09'!B36,Лист1!$A$2:$G$102,3) -> 167 | K36: =VLOOKUP('09'!C36,Лист1!$A$2:$G$102,4) -> 176 | L36: =VLOOKUP('09'!D36,Лист1!$A$2:$G$102,5) -> 175 | M36: =VLOOKUP('09'!E36,Лист1!$A$2:$G$102,6) -> 204 | N36: =VLOOKUP('09'!F36,Лист1!$A$2:$G$102,7) -> 192 | O36: =getValue('09'!A36,2) -> 190 | P36: =getValue('09'!B36,3) -> 167 | Q36: =getValue('09'!C36,4) -> 176 | R36: =getValue('09'!D36,5) -> 175 | S36: =getValue('09'!E36,6) -> 204 | T36: =getValue('09'!F36,7) -> 192
A37: 37 | B37: =COUNTIF('09'!A:A,$A37) -> 178 | C37: =COUNTIF('09'!B:B,$A37) -> 192 | D37: =COUNTIF('09'!C:C,$A37) -> 191 | E37: =COUNTIF('09'!D:D,$A37) -> 141 | F37: =COUNTIF('09'!E:E,$A37) -> 196 | G37: =COUNTIF('09'!F:F,$A37) -> 164 | I37: =VLOOKUP('09'!A37,Лист1!$A$2:$G$102,2) -> 168 | J37: =VLOOKUP('09'!B37,Лист1!$A$2:$G$102,3) -> 181 | K37: =VLOOKUP('09'!C37,Лист1!$A$2:$G$102,4) -> 218 | L37: =VLOOKUP('09'!D37,Лист1!$A$2:$G$102,5) -> 190 | M37: =VLOOKUP('09'!E37,Лист1!$A$2:$G$102,6) -> 184 | N37: =VLOOKUP('09'!F37,Лист1!$A$2:$G$102,7) -> 184 | O37: =getValue('09'!A37,2) -> 168 | P37: =getValue('09'!B37,3) -> 181 | Q37: =getValue('09'!C37,4) -> 218 | R37: =getValue('09'!D37,5) -> 190 | S37: =getValue('09'!E37,6) -> 184 | T37: =getValue('09'!F37,7) -> 184
A38: 38 | B38: =COUNTIF('09'!A:A,$A38) -> 190 | C38: =COUNTIF('09'!B:B,$A38) -> 159 | D38: =COUNTIF('09'!C:C,$A38) -> 180 | E38: =COUNTIF('09'!D:D,$A38) -> 193 | F38: =COUNTIF('09'!E:E,$A38) -> 171 | G38: =COUNTIF('09'!F:F,$A38) -> 162 | I38: =VLOOKUP('09'!A38,Лист1!$A$2:$G$102,2) -> 203 | J38: =VLOOKUP('09'!B38,Лист1!$A$2:$G$102,3) -> 182 | K38: =VLOOKUP('09'!C38,Лист1!$A$2:$G$102,4) -> 168 | L38: =VLOOKUP('09'!D38,Лист1!$A$2:$G$102,5) -> 183 | M38: =VLOOKUP('09'!E38,Лист1!$A$2:$G$102,6) -> 170 | N38: =VLOOKUP('09'!F38,Лист1!$A$2:$G$102,7) -> 173 | O38: =getValue('09'!A38,2) -> 203 | P38: =getValue('09'!B38,3) -> 182 | Q38: =getValue('09'!C38,4) -> 168 | R38: =getValue('09'!D38,5) -> 183 | S38: =getValue('09'!E38,6) -> 170 | T38: =getValue('09'!F38,7) -> 173
A39: 39 | B39: =COUNTIF('09'!A:A,$A39) -> 178 | C39: =COUNTIF('09'!B:B,$A39) -> 166 | D39: =COUNTIF('09'!C:C,$A39) -> 178 | E39: =COUNTIF('09'!D:D,$A39) -> 190 | F39: =COUNTIF('09'!E:E,$A39) -> 178 | G39: =COUNTIF('09'!F:F,$A39) -> 200 | I39: =VLOOKUP('09'!A39,Лист1!$A$2:$G$102,2) -> 175 | J39: =VLOOKUP('09'!B39,Лист1!$A$2:$G$102,3) -> 213 | K39: =VLOOKUP('09'!C39,Лист1!$A$2:$G$102,4) -> 181 | L39: =VLOOKUP('09'!D39,Лист1!$A$2:$G$102,5) -> 171 | M39: =VLOOKUP('09'!E39,Лист1!$A$2:$G$102,6) -> 170 | N39: =VLOOKUP('09'!F39,Лист1!$A$2:$G$102,7) -> 180 | O39: =getValue('09'!A39,2) -> 175 | P39: =getValue('09'!B39,3) -> 213 | Q39: =getValue('09'!C39,4) -> 181 | R39: =getValue('09'!D39,5) -> 171 | S39: =getValue('09'!E39,6) -> 170 | T39: =getValue('09'!F39,7) -> 180
A40: 40 | B40: =COUNTIF('09'!A:A,$A40) -> 181 | C40: =COUNTIF('09'!B:B,$A40) -> 188 | D40: =COUNTIF('09'!C:C,$A40) -> 183 | E40: =COUNTIF('09'!D:D,$A40) -> 189 | F40: =COUNTIF('09'!E:E,$A40) -> 188 | G40: =COUNTIF('09'!F:F,$A40) -> 176 | I40: =VLOOKUP('09'!A40,Лист1!$A$2:$G$102,2) -> 167 | J40: =VLOOKUP('09'!B40,Лист1!$A$2:$G$102,3) -> 166 | K40: =VLOOKUP('09'!C40,Лист1!$A$2:$G$102,4) -> 182 | L40: =VLOOKUP('09'!D40,Лист1!$A$2:$G$102,5) -> 185 | M40: =VLOOKUP('09'!E40,Лист1!$A$2:$G$102,6) -> 202 | N40: =VLOOKUP('09'!F40,Лист1!$A$2:$G$102,7) -> 166 | O40: =getValue('09'!A40,2) -> 167 | P40: =getValue('09'!B40,3) -> 166 | Q40: =getValue('09'!C40,4) -> 182 | R40: =getValue('09'!D40,5) -> 185 | S40: =getValue('09'!E40,6) -> 202 | T40: =getValue('09'!F40,7) -> 166
A41: 41 | B41: =COUNTIF('09'!A:A,$A41) -> 191 | C41: =COUNTIF('09'!B:B,$A41) -> 143 | D41: =COUNTIF('09'!C:C,$A41) -> 180 | E41: =COUNTIF('09'!D:D,$A41) -> 185 | F41: =COUNTIF('09'!E:E,$A41) -> 196 | G41: =COUNTIF('09'!F:F,$A41) -> 164 | I41: =VLOOKUP('09'!A41,Лист1!$A$2:$G$102,2) -> 182 | J41: =VLOOKUP('09'!B41,Лист1!$A$2:$G$102,3) -> 172 | K41: =VLOOKUP('09'!C41,Лист1!$A$2:$G$102,4) -> 197 | L41: =VLOOKUP('09'!D41,Лист1!$A$2:$G$102,5) -> 181 | M41: =VLOOKUP('09'!E41,Лист1!$A$2:$G$102,6) -> 163 | N41: =VLOOKUP('09'!F41,Лист1!$A$2:$G$102,7) -> 179 | O41: =getValue('09'!A41,2) -> 182 | P41: =getValue('09'!B41,3) -> 172 | Q41: =getValue('09'!C41,4) -> 197 | R41: =getValue('09'!D41,5) -> 181 | S41: =getValue('09'!E41,6) -> 163 | T41: =getValue('09'!F41,7) -> 179
A42: 42 | B42: =COUNTIF('09'!A:A,$A42) -> 189 | C42: =COUNTIF('09'!B:B,$A42) -> 174 | D42: =COUNTIF('09'!C:C,$A42) -> 161 | E42: =COUNTIF('09'!D:D,$A42) -> 162 | F42: =COUNTIF('09'!E:E,$A42) -> 167 | G42: =COUNTIF('09'!F:F,$A42) -> 189 | I42: =VLOOKUP('09'!A42,Лист1!$A$2:$G$102,2) -> 173 | J42: =VLOOKUP('09'!B42,Лист1!$A$2:$G$102,3) -> 185 | K42: =VLOOKUP('09'!C42,Лист1!$A$2:$G$102,4) -> 192 | L42: =VLOOKUP('09'!D42,Лист1!$A$2:$G$102,5) -> 180 | M42: =VLOOKUP('09'!E42,Лист1!$A$2:$G$102,6) -> 174 | N42: =VLOOKUP('09'!F42,Лист1!$A$2:$G$102,7) -> 176 | O42: =getValue('09'!A42,2) -> 173 | P42: =getValue('09'!B42,3) -> 185 | Q42: =getValue('09'!C42,4) -> 192 | R42: =getValue('09'!D42,5) -> 180 | S42: =getValue('09'!E42,6) -> 174 | T42: =getValue('09'!F42,7) -> 176
A43: 43 | B43: =COUNTIF('09'!A:A,$A43) -> 192 | C43: =COUNTIF('09'!B:B,$A43) -> 197 | D43: =COUNTIF('09'!C:C,$A43) -> 152 | E43: =COUNTIF('09'!D:D,$A43) -> 184 | F43: =COUNTIF('09'!E:E,$A43) -> 184 | G43: =COUNTIF('09'!F:F,$A43) -> 179 | I43: =VLOOKUP('09'!A43,Лист1!$A$2:$G$102,2) -> 179 | J43: =VLOOKUP('09'!B43,Лист1!$A$2:$G$102,3) -> 171 | K43: =VLOOKUP('09'!C43,Лист1!$A$2:$G$102,4) -> 170 | L43: =VLOOKUP('09'!D43,Лист1!$A$2:$G$102,5) -> 182 | M43: =VLOOKUP('09'!E43,Лист1!$A$2:$G$102,6) -> 181 | N43: =VLOOKUP('09'!F43,Лист1!$A$2:$G$102,7) -> 178 | O43: =getValue('09'!A43,2) -> 179 | P43: =getValue('09'!B43,3) -> 171 | Q43: =getValue('09'!C43,4) -> 170 | R43: =getValue('09'!D43,5) -> 182 | S43: =getValue('09'!E43,6) -> 181 | T43: =getValue('09'!F43,7) -> 178
A44: 44 | B44: =COUNTIF('09'!A:A,$A44) -> 161 | C44: =COUNTIF('09'!B:B,$A44) -> 183 | D44: =COUNTIF('09'!C:C,$A44) -> 182 | E44: =COUNTIF('09'!D:D,$A44) -> 152 | F44: =COUNTIF('09'!E:E,$A44) -> 202 | G44: =COUNTIF('09'!F:F,$A44) -> 183 | I44: =VLOOKUP('09'!A44,Лист1!$A$2:$G$102,2) -> 179 | J44: =VLOOKUP('09'!B44,Лист1!$A$2:$G$102,3) -> 183 | K44: =VLOOKUP('09'!C44,Лист1!$A$2:$G$102,4) -> 165 | L44: =VLOOKUP('09'!D44,Лист1!$A$2:$G$102,5) -> 211 | M44: =VLOOKUP('09'!E44,Лист1!$A$2:$G$102,6) -> 196 | N44: =VLOOKUP('09'!F44,Лист1!$A$2:$G$102,7) -> 187 | O44: =getValue('09'!A44,2) -> 179 | P44: =getValue('09'!B44,3) -> 183 | Q44: =getValue('09'!C44,4) -> 165 | R44: =getValue('09'!D44,5) -> 211 | S44: =getValue('09'!E44,6) -> 196 | T44: =getValue('09'!F44,7) -> 187
A45: 45 | B45: =COUNTIF('09'!A:A,$A45) -> 183 | C45: =COUNTIF('09'!B:B,$A45) -> 201 | D45: =COUNTIF('09'!C:C,$A45) -> 179 | E45: =COUNTIF('09'!D:D,$A45) -> 171 | F45: =COUNTIF('09'!E:E,$A45) -> 187 | G45: =COUNTIF('09'!F:F,$A45) -> 195 | I45: =VLOOKUP('09'!A45,Лист1!$A$2:$G$102,2) -> 192 | J45: =VLOOKUP('09'!B45,Лист1!$A$2:$G$102,3) -> 182 | K45: =VLOOKUP('09'!C45,Лист1!$A$2:$G$102,4) -> 197 | L45: =VLOOKUP('09'!D45,Лист1!$A$2:$G$102,5) -> 194 | M45: =VLOOKUP('09'!E45,Лист1!$A$2:$G$102,6) -> 167 | N45: =VLOOKUP('09'!F45,Лист1!$A$2:$G$102,7) -> 189 | O45: =getValue('09'!A45,2) -> 192 | P45: =getValue('09'!B45,3) -> 182 | Q45: =getValue('09'!C45,4) -> 197 | R45: =getValue('09'!D45,5) -> 194 | S45: =getValue('09'!E45,6) -> 167 | T45: =getValue('09'!F45,7) -> 189
A46: 46 | B46: =COUNTIF('09'!A:A,$A46) -> 175 | C46: =COUNTIF('09'!B:B,$A46) -> 222 | D46: =COUNTIF('09'!C:C,$A46) -> 173 | E46: =COUNTIF('09'!D:D,$A46) -> 175 | F46: =COUNTIF('09'!E:E,$A46) -> 166 | G46: =COUNTIF('09'!F:F,$A46) -> 196 | I46: =VLOOKUP('09'!A46,Лист1!$A$2:$G$102,2) -> 203 | J46: =VLOOKUP('09'!B46,Лист1!$A$2:$G$102,3) -> 192 | K46: =VLOOKUP('09'!C46,Лист1!$A$2:$G$102,4) -> 177 | L46: =VLOOKUP('09'!D46,Лист1!$A$2:$G$102,5) -> 193 | M46: =VLOOKUP('09'!E46,Лист1!$A$2:$G$102,6) -> 171 | N46: =VLOOKUP('09'!F46,Лист1!$A$2:$G$102,7) -> 200 | O46: =getValue('09'!A46,2) -> 203 | P46: =getValue('09'!B46,3) -> 192 | Q46: =getValue('09'!C46,4) -> 177 | R46: =getValue('09'!D46,5) -> 193 | S46: =getValue('09'!E46,6) -> 171 | T46: =getValue('09'!F46,7) -> 200
A47: 47 | B47: =COUNTIF('09'!A:A,$A47) -> 167 | C47: =COUNTIF('09'!B:B,$A47) -> 153 | D47: =COUNTIF('09'!C:C,$A47) -> 172 | E47: =COUNTIF('09'!D:D,$A47) -> 176 | F47: =COUNTIF('09'!E:E,$A47) -> 185 | G47: =COUNTIF('09'!F:F,$A47) -> 210 | I47: =VLOOKUP('09'!A47,Лист1!$A$2:$G$102,2) -> 204 | J47: =VLOOKUP('09'!B47,Лист1!$A$2:$G$102,3) -> 185 | K47: =VLOOKUP('09'!C47,Лист1!$A$2:$G$102,4) -> 192 | L47: =VLOOKUP('09'!D47,Лист1!$A$2:$G$102,5) -> 171 | M47: =VLOOKUP('09'!E47,Лист1!$A$2:$G$102,6) -> 179 | N47: =VLOOKUP('09'!F47,Лист1!$A$2:$G$102,7) -> 193 | O47: =getValue('09'!A47,2) -> 204 | P47: =getValue('09'!B47,3) -> 185 | Q47: =getValue('09'!C47,4) -> 192 | R47: =getValue('09'!D47,5) -> 171 | S47: =getValue('09'!E47,6) -> 179 | T47: =getValue('09'!F47,7) -> 193
A48: 48 | B48: =COUNTIF('09'!A:A,$A48) -> 179 | C48: =COUNTIF('09'!B:B,$A48) -> 170 | D48: =COUNTIF('09'!C:C,$A48) -> 203 | E48: =COUNTIF('09'!D:D,$A48) -> 171 | F48: =COUNTIF('09'!E:E,$A48) -> 179 | G48: =COUNTIF('09'!F:F,$A48) -> 176 | I48: =VLOOKUP('09'!A48,Лист1!$A$2:$G$102,2) -> 193 | J48: =VLOOKUP('09'!B48,Лист1!$A$2:$G$102,3) -> 197 | K48: =VLOOKUP('09'!C48,Лист1!$A$2:$G$102,4) -> 162 | L48: =VLOOKUP('09'!D48,Лист1!$A$2:$G$102,5) -> 182 | M48: =VLOOKUP('09'!E48,Лист1!$A$2:$G$102,6) -> 182 | N48: =VLOOKUP('09'!F48,Лист1!$A$2:$G$102,7) -> 157 | O48: =getValue('09'!A48,2) -> 193 | P48: =getValue('09'!B48,3) -> 197 | Q48: =getValue('09'!C48,4) -> 162 | R48: =getValue('09'!D48,5) -> 182 | S48: =getValue('09'!E48,6) -> 182 | T48: =getValue('09'!F48,7) -> 157
A49: 49 | B49: =COUNTIF('09'!A:A,$A49) -> 184 | C49: =COUNTIF('09'!B:B,$A49) -> 192 | D49: =COUNTIF('09'!C:C,$A49) -> 176 | E49: =COUNTIF('09'!D:D,$A49) -> 164 | F49: =COUNTIF('09'!E:E,$A49) -> 190 | G49: =COUNTIF('09'!F:F,$A49) -> 168 | I49: =VLOOKUP('09'!A49,Лист1!$A$2:$G$102,2) -> 166 | J49: =VLOOKUP('09'!B49,Лист1!$A$2:$G$102,3) -> 169 | K49: =VLOOKUP('09'!C49,Лист1!$A$2:$G$102,4) -> 202 | L49: =VLOOKUP('09'!D49,Лист1!$A$2:$G$102,5) -> 194 | M49: =VLOOKUP('09'!E49,Лист1!$A$2:$G$102,6) -> 191 | N49: =VLOOKUP('09'!F49,Лист1!$A$2:$G$102,7) -> 185 | O49: =getValue('09'!A49,2) -> 166 | P49: =getValue('09'!B49,3) -> 169 | Q49: =getValue('09'!C49,4) -> 202 | R49: =getValue('09'!D49,5) -> 194 | S49: =getValue('09'!E49,6) -> 191 | T49: =getValue('09'!F49,7) -> 185
A50: 50 | B50: =COUNTIF('09'!A:A,$A50) -> 203 | C50: =COUNTIF('09'!B:B,$A50) -> 185 | D50: =COUNTIF('09'!C:C,$A50) -> 181 | E50: =COUNTIF('09'!D:D,$A50) -> 200 | F50: =COUNTIF('09'!E:E,$A50) -> 186 | G50: =COUNTIF('09'!F:F,$A50) -> 153 | I50: =VLOOKUP('09'!A50,Лист1!$A$2:$G$102,2) -> 192 | J50: =VLOOKUP('09'!B50,Лист1!$A$2:$G$102,3) -> 186 | K50: =VLOOKUP('09'!C50,Лист1!$A$2:$G$102,4) -> 192 | L50: =VLOOKUP('09'!D50,Лист1!$A$2:$G$102,5) -> 188 | M50: =VLOOKUP('09'!E50,Лист1!$A$2:$G$102,6) -> 175 | N50: =VLOOKUP('09'!F50,Лист1!$A$2:$G$102,7) -> 164 | O50: =getValue('09'!A50,2) -> 192 | P50: =getValue('09'!B50,3) -> 186 | Q50: =getValue('09'!C50,4) -> 192 | R50: =getValue('09'!D50,5) -> 188 | S50: =getValue('09'!E50,6) -> 175 | T50: =getValue('09'!F50,7) -> 164
A51: 51 | B51: =COUNTIF('09'!A:A,$A51) -> 188 | C51: =COUNTIF('09'!B:B,$A51) -> 155 | D51: =COUNTIF('09'!C:C,$A51) -> 159 | E51: =COUNTIF('09'!D:D,$A51) -> 172 | F51: =COUNTIF('09'!E:E,$A51) -> 230 | G51: =COUNTIF('09'!F:F,$A51) -> 191 | I51: =VLOOKUP('09'!A51,Лист1!$A$2:$G$102,2) -> 181 | J51: =VLOOKUP('09'!B51,Лист1!$A$2:$G$102,3) -> 162 | K51: =VLOOKUP('09'!C51,Лист1!$A$2:$G$102,4) -> 158 | L51: =VLOOKUP('09'!D51,Лист1!$A$2:$G$102,5) -> 196 | M51: =VLOOKUP('09'!E51,Лист1!$A$2:$G$102,6) -> 170 | N51: =VLOOKUP('09'!F51,Лист1!$A$2:$G$102,7) -> 170 | O51: =getValue('09'!A51,2) -> 181 | P51: =getValue('09'!B51,3) -> 162 | Q51: =getValue('09'!C51,4) -> 158 | R51: =getValue('09'!D51,5) -> 196 | S51: =getValue('09'!E51,6) -> 170 | T51: =getValue('09'!F51,7) -> 170
A52: 52 | B52: =COUNTIF('09'!A:A,$A52) -> 158 | C52: =COUNTIF('09'!B:B,$A52) -> 169 | D52: =COUNTIF('09'!C:C,$A52) -> 194 | E52: =COUNTIF('09'!D:D,$A52) -> 187 | F52: =COUNTIF('09'!E:E,$A52) -> 176 | G52: =COUNTIF('09'!F:F,$A52) -> 169 | I52: =VLOOKUP('09'!A52,Лист1!$A$2:$G$102,2) -> 206 | J52: =VLOOKUP('09'!B52,Лист1!$A$2:$G$102,3) -> 166 | K52: =VLOOKUP('09'!C52,Лист1!$A$2:$G$102,4) -> 182 | L52: =VLOOKUP('09'!D52,Лист1!$A$2:$G$102,5) -> 161 | M52: =VLOOKUP('09'!E52,Лист1!$A$2:$G$102,6) -> 211 | N52: =VLOOKUP('09'!F52,Лист1!$A$2:$G$102,7) -> 168 | O52: =getValue('09'!A52,2) -> 206 | P52: =getValue('09'!B52,3) -> 166 | Q52: =getValue('09'!C52,4) -> 182 | R52: =getValue('09'!D52,5) -> 161 | S52: =getValue('09'!E52,6) -> 211 | T52: =getValue('09'!F52,7) -> 168
A53: 53 | B53: =COUNTIF('09'!A:A,$A53) -> 185 | C53: =COUNTIF('09'!B:B,$A53) -> 185 | D53: =COUNTIF('09'!C:C,$A53) -> 176 | E53: =COUNTIF('09'!D:D,$A53) -> 184 | F53: =COUNTIF('09'!E:E,$A53) -> 197 | G53: =COUNTIF('09'!F:F,$A53) -> 176 | I53: =VLOOKUP('09'!A53,Лист1!$A$2:$G$102,2) -> 167 | J53: =VLOOKUP('09'!B53,Лист1!$A$2:$G$102,3) -> 201 | K53: =VLOOKUP('09'!C53,Лист1!$A$2:$G$102,4) -> 189 | L53: =VLOOKUP('09'!D53,Лист1!$A$2:$G$102,5) -> 180 | M53: =VLOOKUP('09'!E53,Лист1!$A$2:$G$102,6) -> 179 | N53: =VLOOKUP('09'!F53,Лист1!$A$2:$G$102,7) -> 190 | O53: =getValue('09'!A53,2) -> 167 | P53: =getValue('09'!B53,3) -> 201 | Q53: =getValue('09'!C53,4) -> 189 | R53: =getValue('09'!D53,5) -> 180 | S53: =getValue('09'!E53,6) -> 179 | T53: =getValue('09'!F53,7) -> 190
A54: 54 | B54: =COUNTIF('09'!A:A,$A54) -> 179 | C54: =COUNTIF('09'!B:B,$A54) -> 182 | D54: =COUNTIF('09'!C:C,$A54) -> 190 | E54: =COUNTIF('09'!D:D,$A54) -> 166 | F54: =COUNTIF('09'!E:E,$A54) -> 174 | G54: =COUNTIF('09'!F:F,$A54) -> 182 | I54: =VLOOKUP('09'!A54,Лист1!$A$2:$G$102,2) -> 190 | J54: =VLOOKUP('09'!B54,Лист1!$A$2:$G$102,3) -> 162 | K54: =VLOOKUP('09'!C54,Лист1!$A$2:$G$102,4) -> 179 | L54: =VLOOKUP('09'!D54,Лист1!$A$2:$G$102,5) -> 198 | M54: =VLOOKUP('09'!E54,Лист1!$A$2:$G$102,6) -> 184 | N54: =VLOOKUP('09'!F54,Лист1!$A$2:$G$102,7) -> 185 | O54: =getValue('09'!A54,2) -> 190 | P54: =getValue('09'!B54,3) -> 162 | Q54: =getValue('09'!C54,4) -> 179 | R54: =getValue('09'!D54,5) -> 198 | S54: =getValue('09'!E54,6) -> 184 | T54: =getValue('09'!F54,7) -> 185
A55: 55 | B55: =COUNTIF('09'!A:A,$A55) -> 182 | C55: =COUNTIF('09'!B:B,$A55) -> 171 | D55: =COUNTIF('09'!C:C,$A55) -> 218 | E55: =COUNTIF('09'!D:D,$A55) -> 182 | F55: =COUNTIF('09'!E:E,$A55) -> 169 | G55: =COUNTIF('09'!F:F,$A55) -> 185 | I55: =VLOOKUP('09'!A55,Лист1!$A$2:$G$102,2) -> 189 | J55: =VLOOKUP('09'!B55,Лист1!$A$2:$G$102,3) -> 167 | K55: =VLOOKUP('09'!C55,Лист1!$A$2:$G$102,4) -> 192 | L55: =VLOOKUP('09'!D55,Лист1!$A$2:$G$102,5) -> 167 | M55: =VLOOKUP('09'!E55,Лист1!$A$2:$G$102,6) -> 162 | N55: =VLOOKUP('09'!F55,Лист1!$A$2:$G$102,7) -> 184 | O55: =getValue('09'!A55,2) -> 189 | P55: =getValue('09'!B55,3) -> 167 | Q55: =getValue('09'!C55,4) -> 192 | R55: =getValue('09'!D55,5) -> 167 | S55: =getValue('09'!E55,6) -> 162 | T55: =getValue('09'!F55,7) -> 184
A56: 56 | B56: =COUNTIF('09'!A:A,$A56) -> 204 | C56: =COUNTIF('09'!B:B,$A56) -> 178 | D56: =COUNTIF('09'!C:C,$A56) -> 176 | E56: =COUNTIF('09'!D:D,$A56) -> 170 | F56: =COUNTIF('09'!E:E,$A56) -> 157 | G56: =COUNTIF('09'!F:F,$A56) -> 153 | I56: =VLOOKUP('09'!A56,Лист1!$A$2:$G$102,2) -> 193 | J56: =VLOOKUP('09'!B56,Лист1!$A$2:$G$102,3) -> 158 | K56: =VLOOKUP('09'!C56,Лист1!$A$2:$G$102,4) -> 186 | L56: =VLOOKUP('09'!D56,Лист1!$A$2:$G$102,5) -> 184 | M56: =VLOOKUP('09'!E56,Лист1!$A$2:$G$102,6) -> 176 | N56: =VLOOKUP('09'!F56,Лист1!$A$2:$G$102,7) -> 178 | O56: =getValue('09'!A56,2) -> 193 | P56: =getValue('09'!B56,3) -> 158 | Q56: =getValue('09'!C56,4) -> 186 | R56: =getValue('09'!D56,5) -> 184 | S56: =getValue('09'!E56,6) -> 176 | T56: =getValue('09'!F56,7) -> 178
A57: 57 | B57: =COUNTIF('09'!A:A,$A57) -> 190 | C57: =COUNTIF('09'!B:B,$A57) -> 166 | D57: =COUNTIF('09'!C:C,$A57) -> 164 | E57: =COUNTIF('09'!D:D,$A57) -> 190 | F57: =COUNTIF('09'!E:E,$A57) -> 199 | G57: =COUNTIF('09'!F:F,$A57) -> 182 | I57: =VLOOKUP('09'!A57,Лист1!$A$2:$G$102,2) -> 193 | J57: =VLOOKUP('09'!B57,Лист1!$A$2:$G$102,3) -> 175 | K57: =VLOOKUP('09'!C57,Лист1!$A$2:$G$102,4) -> 190 | L57: =VLOOKUP('09'!D57,Лист1!$A$2:$G$102,5) -> 196 | M57: =VLOOKUP('09'!E57,Лист1!$A$2:$G$102,6) -> 173 | N57: =VLOOKUP('09'!F57,Лист1!$A$2:$G$102,7) -> 176 | O57: =getValue('09'!A57,2) -> 193 | P57: =getValue('09'!B57,3) -> 175 | Q57: =getValue('09'!C57,4) -> 190 | R57: =getValue('09'!D57,5) -> 196 | S57: =getValue('09'!E57,6) -> 173 | T57: =getValue('09'!F57,7) -> 176
A58: 58 | B58: =COUNTIF('09'!A:A,$A58) -> 171 | C58: =COUNTIF('09'!B:B,$A58) -> 186 | D58: =COUNTIF('09'!C:C,$A58) -> 204 | E58: =COUNTIF('09'!D:D,$A58) -> 175 | F58: =COUNTIF('09'!E:E,$A58) -> 191 | G58: =COUNTIF('09'!F:F,$A58) -> 180 | I58: =VLOOKUP('09'!A58,Лист1!$A$2:$G$102,2) -> 172 | J58: =VLOOKUP('09'!B58,Лист1!$A$2:$G$102,3) -> 202 | K58: =VLOOKUP('09'!C58,Лист1!$A$2:$G$102,4) -> 165 | L58: =VLOOKUP('09'!D58,Лист1!$A$2:$G$102,5) -> 185 | M58: =VLOOKUP('09'!E58,Лист1!$A$2:$G$102,6) -> 168 | N58: =VLOOKUP('09'!F58,Лист1!$A$2:$G$102,7) -> 190 | O58: =getValue('09'!A58,2) -> 172 | P58: =getValue('09'!B58,3) -> 202 | Q58: =getValue('09'!C58,4) -> 165 | R58: =getValue('09'!D58,5) -> 185 | S58: =getValue('09'!E58,6) -> 168 | T58: =getValue('09'!F58,7) -> 190
A59: 59 | B59: =COUNTIF('09'!A:A,$A59) -> 205 | C59: =COUNTIF('09'!B:B,$A59) -> 193 | D59: =COUNTIF('09'!C:C,$A59) -> 171 | E59: =COUNTIF('09'!D:D,$A59) -> 184 | F59: =COUNTIF('09'!E:E,$A59) -> 164 | G59: =COUNTIF('09'!F:F,$A59) -> 181 | I59: =VLOOKUP('09'!A59,Лист1!$A$2:$G$102,2) -> 187 | J59: =VLOOKUP('09'!B59,Лист1!$A$2:$G$102,3) -> 174 | K59: =VLOOKUP('09'!C59,Лист1!$A$2:$G$102,4) -> 177 | L59: =VLOOKUP('09'!D59,Лист1!$A$2:$G$102,5) -> 200 | M59: =VLOOKUP('09'!E59,Лист1!$A$2:$G$102,6) -> 184 | N59: =VLOOKUP('09'!F59,Лист1!$A$2:$G$102,7) -> 179 | O59: =getValue('09'!A59,2) -> 187 | P59: =getValue('09'!B59,3) -> 174 | Q59: =getValue('09'!C59,4) -> 177 | R59: =getValue('09'!D59,5) -> 200 | S59: =getValue('09'!E59,6) -> 184 | T59: =getValue('09'!F59,7) -> 179
A60: 60 | B60: =COUNTIF('09'!A:A,$A60) -> 163 | C60: =COUNTIF('09'!B:B,$A60) -> 187 | D60: =COUNTIF('09'!C:C,$A60) -> 185 | E60: =COUNTIF('09'!D:D,$A60) -> 173 | F60: =COUNTIF('09'!E:E,$A60) -> 175 | G60: =COUNTIF('09'!F:F,$A60) -> 197 | I60: =VLOOKUP('09'!A60,Лист1!$A$2:$G$102,2) -> 177 | J60: =VLOOKUP('09'!B60,Лист1!$A$2:$G$102,3) -> 158 | K60: =VLOOKUP('09'!C60,Лист1!$A$2:$G$102,4) -> 200 | L60: =VLOOKUP('09'!D60,Лист1!$A$2:$G$102,5) -> 194 | M60: =VLOOKUP('09'!E60,Лист1!$A$2:$G$102,6) -> 170 | N60: =VLOOKUP('09'!F60,Лист1!$A$2:$G$102,7) -> 191 | O60: =getValue('09'!A60,2) -> 177 | P60: =getValue('09'!B60,3) -> 158 | Q60: =getValue('09'!C60,4) -> 200 | R60: =getValue('09'!D60,5) -> 194 | S60: =getValue('09'!E60,6) -> 170 | T60: =getValue('09'!F60,7) -> 191
A61: 61 | B61: =COUNTIF('09'!A:A,$A61) -> 186 | C61: =COUNTIF('09'!B:B,$A61) -> 174 | D61: =COUNTIF('09'!C:C,$A61) -> 195 | E61: =COUNTIF('09'!D:D,$A61) -> 176 | F61: =COUNTIF('09'!E:E,$A61) -> 186 | G61: =COUNTIF('09'!F:F,$A61) -> 176 | I61: =VLOOKUP('09'!A61,Лист1!$A$2:$G$102,2) -> 191 | J61: =VLOOKUP('09'!B61,Лист1!$A$2:$G$102,3) -> 172 | K61: =VLOOKUP('09'!C61,Лист1!$A$2:$G$102,4) -> 188 | L61: =VLOOKUP('09'!D61,Лист1!$A$2:$G$102,5) -> 187 | M61: =VLOOKUP('09'!E61,Лист1!$A$2:$G$102,6) -> 170 | N61: =VLOOKUP('09'!F61,Лист1!$A$2:$G$102,7) -> 200 | O61: =getValue('09'!A61,2) -> 191 | P61: =getValue('09'!B61,3) -> 172 | Q61: =getValue('09'!C61,4) -> 188 | R61: =getValue('09'!D61,5) -> 187 | S61: =getValue('09'!E61,6) -> 170 | T61: =getValue('09'!F61,7) -> 200
A62: 62 | B62: =COUNTIF('09'!A:A,$A62) -> 180 | C62: =COUNTIF('09'!B:B,$A62) -> 177 | D62: =COUNTIF('09'!C:C,$A62) -> 188 | E62: =COUNTIF('09'!D:D,$A62) -> 175 | F62: =COUNTIF('09'!E:E,$A62) -> 173 | G62: =COUNTIF('09'!F:F,$A62) -> 157 | I62: =VLOOKUP('09'!A62,Лист1!$A$2:$G$102,2) -> 179 | J62: =VLOOKUP('09'!B62,Лист1!$A$2:$G$102,3) -> 171 | K62: =VLOOKUP('09'!C62,Лист1!$A$2:$G$102,4) -> 165 | L62: =VLOOKUP('09'!D62,Лист1!$A$2:$G$102,5) -> 176 | M62: =VLOOKUP('09'!E62,Лист1!$A$2:$G$102,6) -> 174 | N62: =VLOOKUP('09'!F62,Лист1!$A$2:$G$102,7) -> 178 | O62: =getValue('09'!A62,2) -> 179 | P62: =getValue('09'!B62,3) -> 171 | Q62: =getValue('09'!C62,4) -> 165 | R62: =getValue('09'!D62,5) -> 176 | S62: =getValue('09'!E62,6) -> 174 | T62: =getValue('09'!F62,7) -> 178
A63: 63 | B63: =COUNTIF('09'!A:A,$A63) -> 189 | C63: =COUNTIF('09'!B:B,$A63) -> 167 | D63: =COUNTIF('09'!C:C,$A63) -> 204 | E63: =COUNTIF('09'!D:D,$A63) -> 185 | F63: =COUNTIF('09'!E:E,$A63) -> 171 | G63: =COUNTIF('09'!F:F,$A63) -> 182 | I63: =VLOOKUP('09'!A63,Лист1!$A$2:$G$102,2) -> 199 | J63: =VLOOKUP('09'!B63,Лист1!$A$2:$G$102,3) -> 188 | K63: =VLOOKUP('09'!C63,Лист1!$A$2:$G$102,4) -> 158 | L63: =VLOOKUP('09'!D63,Лист1!$A$2:$G$102,5) -> 164 | M63: =VLOOKUP('09'!E63,Лист1!$A$2:$G$102,6) -> 164 | N63: =VLOOKUP('09'!F63,Лист1!$A$2:$G$102,7) -> 185 | O63: =getValue('09'!A63,2) -> 199 | P63: =getValue('09'!B63,3) -> 188 | Q63: =getValue('09'!C63,4) -> 158 | R63: =getValue('09'!D63,5) -> 164 | S63: =getValue('09'!E63,6) -> 164 | T63: =getValue('09'!F63,7) -> 185
A64: 64 | B64: =COUNTIF('09'!A:A,$A64) -> 164 | C64: =COUNTIF('09'!B:B,$A64) -> 173 | D64: =COUNTIF('09'!C:C,$A64) -> 166 | E64: =COUNTIF('09'!D:D,$A64) -> 174 | F64: =COUNTIF('09'!E:E,$A64) -> 201 | G64: =COUNTIF('09'!F:F,$A64) -> 199 | I64: =VLOOKUP('09'!A64,Лист1!$A$2:$G$102,2) -> 201 | J64: =VLOOKUP('09'!B64,Лист1!$A$2:$G$102,3) -> 181 | K64: =VLOOKUP('09'!C64,Лист1!$A$2:$G$102,4) -> 177 | L64: =VLOOKUP('09'!D64,Лист1!$A$2:$G$102,5) -> 182 | M64: =VLOOKUP('09'!E64,Лист1!$A$2:$G$102,6) -> 191 | N64: =VLOOKUP('09'!F64,Лист1!$A$2:$G$102,7) -> 185 | O64: =getValue('09'!A64,2) -> 201 | P64: =getValue('09'!B64,3) -> 181 | Q64: =getValue('09'!C64,4) -> 177 | R64: =getValue('09'!D64,5) -> 182 | S64: =getValue('09'!E64,6) -> 191 | T64: =getValue('09'!F64,7) -> 185
A65: 65 | B65: =COUNTIF('09'!A:A,$A65) -> 190 | C65: =COUNTIF('09'!B:B,$A65) -> 183 | D65: =COUNTIF('09'!C:C,$A65) -> 193 | E65: =COUNTIF('09'!D:D,$A65) -> 169 | F65: =COUNTIF('09'!E:E,$A65) -> 165 | G65: =COUNTIF('09'!F:F,$A65) -> 184 | I65: =VLOOKUP('09'!A65,Лист1!$A$2:$G$102,2) -> 188 | J65: =VLOOKUP('09'!B65,Лист1!$A$2:$G$102,3) -> 194 | K65: =VLOOKUP('09'!C65,Лист1!$A$2:$G$102,4) -> 189 | L65: =VLOOKUP('09'!D65,Лист1!$A$2:$G$102,5) -> 179 | M65: =VLOOKUP('09'!E65,Лист1!$A$2:$G$102,6) -> 166 | N65: =VLOOKUP('09'!F65,Лист1!$A$2:$G$102,7) -> 168 | O65: =getValue('09'!A65,2) -> 188 | P65: =getValue('09'!B65,3) -> 194 | Q65: =getValue('09'!C65,4) -> 189 | R65: =getValue('09'!D65,5) -> 179 | S65: =getValue('09'!E65,6) -> 166 | T65: =getValue('09'!F65,7) -> 168
A66: 66 | B66: =COUNTIF('09'!A:A,$A66) -> 167 | C66: =COUNTIF('09'!B:B,$A66) -> 193 | D66: =COUNTIF('09'!C:C,$A66) -> 140 | E66: =COUNTIF('09'!D:D,$A66) -> 176 | F66: =COUNTIF('09'!E:E,$A66) -> 170 | G66: =COUNTIF('09'!F:F,$A66) -> 179 | I66: =VLOOKUP('09'!A66,Лист1!$A$2:$G$102,2) -> 186 | J66: =VLOOKUP('09'!B66,Лист1!$A$2:$G$102,3) -> 166 | K66: =VLOOKUP('09'!C66,Лист1!$A$2:$G$102,4) -> 172 | L66: =VLOOKUP('09'!D66,Лист1!$A$2:$G$102,5) -> 181 | M66: =VLOOKUP('09'!E66,Лист1!$A$2:$G$102,6) -> 186 | N66: =VLOOKUP('09'!F66,Лист1!$A$2:$G$102,7) -> 213 | O66: =getValue('09'!A66,2) -> 186 | P66: =getValue('09'!B66,3) -> 166 | Q66: =getValue('09'!C66,4) -> 172 | R66: =getValue('09'!D66,5) -> 181 | S66: =getValue('09'!E66,6) -> 186 | T66: =getValue('09'!F66,7) -> 213
A67: 67 | B67: =COUNTIF('09'!A:A,$A67) -> 164 | C67: =COUNTIF('09'!B:B,$A67) -> 195 | D67: =COUNTIF('09'!C:C,$A67) -> 161 | E67: =COUNTIF('09'!D:D,$A67) -> 186 | F67: =COUNTIF('09'!E:E,$A67) -> 162 | G67: =COUNTIF('09'!F:F,$A67) -> 198 | I67: =VLOOKUP('09'!A67,Лист1!$A$2:$G$102,2) -> 172 | J67: =VLOOKUP('09'!B67,Лист1!$A$2:$G$102,3) -> 166 | K67: =VLOOKUP('09'!C67,Лист1!$A$2:$G$102,4) -> 204 | L67: =VLOOKUP('09'!D67,Лист1!$A$2:$G$102,5) -> 194 | M67: =VLOOKUP('09'!E67,Лист1!$A$2:$G$102,6) -> 191 | N67: =VLOOKUP('09'!F67,Лист1!$A$2:$G$102,7) -> 176 | O67: =getValue('09'!A67,2) -> 172 | P67: =getValue('09'!B67,3) -> 166 | Q67: =getValue('09'!C67,4) -> 204 | R67: =getValue('09'!D67,5) -> 194 | S67: =getValue('09'!E67,6) -> 191 | T67: =getValue('09'!F67,7) -> 176
A68: 68 | B68: =COUNTIF('09'!A:A,$A68) -> 175 | C68: =COUNTIF('09'!B:B,$A68) -> 178 | D68: =COUNTIF('09'!C:C,$A68) -> 194 | E68: =COUNTIF('09'!D:D,$A68) -> 181 | F68: =COUNTIF('09'!E:E,$A68) -> 179 | G68: =COUNTIF('09'!F:F,$A68) -> 186 | I68: =VLOOKUP('09'!A68,Лист1!$A$2:$G$102,2) -> 171 | J68: =VLOOKUP('09'!B68,Лист1!$A$2:$G$102,3) -> 186 | K68: =VLOOKUP('09'!C68,Лист1!$A$2:$G$102,4) -> 163 | L68: =VLOOKUP('09'!D68,Лист1!$A$2:$G$102,5) -> 141 | M68: =VLOOKUP('09'!E68,Лист1!$A$2:$G$102,6) -> 168 | N68: =VLOOKUP('09'!F68,Лист1!$A$2:$G$102,7) -> 192 | O68: =getValue('09'!A68,2) -> 171 | P68: =getValue('09'!B68,3) -> 186 | Q68: =getValue('09'!C68,4) -> 163 | R68: =getValue('09'!D68,5) -> 141 | S68: =getValue('09'!E68,6) -> 168 | T68: =getValue('09'!F68,7) -> 192
A69: 69 | B69: =COUNTIF('09'!A:A,$A69) -> 165 | C69: =COUNTIF('09'!B:B,$A69) -> 176 | D69: =COUNTIF('09'!C:C,$A69) -> 156 | E69: =COUNTIF('09'!D:D,$A69) -> 195 | F69: =COUNTIF('09'!E:E,$A69) -> 168 | G69: =COUNTIF('09'!F:F,$A69) -> 187 | I69: =VLOOKUP('09'!A69,Лист1!$A$2:$G$102,2) -> 204 | J69: =VLOOKUP('09'!B69,Лист1!$A$2:$G$102,3) -> 191 | K69: =VLOOKUP('09'!C69,Лист1!$A$2:$G$102,4) -> 189 | L69: =VLOOKUP('09'!D69,Лист1!$A$2:$G$102,5) -> 188 | M69: =VLOOKUP('09'!E69,Лист1!$A$2:$G$102,6) -> 156 | N69: =VLOOKUP('09'!F69,Лист1!$A$2:$G$102,7) -> 197 | O69: =getValue('09'!A69,2) -> 204 | P69: =getValue('09'!B69,3) -> 191 | Q69: =getValue('09'!C69,4) -> 189 | R69: =getValue('09'!D69,5) -> 188 | S69: =getValue('09'!E69,6) -> 156 | T69: =getValue('09'!F69,7) -> 197
A70: 70 | B70: =COUNTIF('09'!A:A,$A70) -> 188 | C70: =COUNTIF('09'!B:B,$A70) -> 204 | D70: =COUNTIF('09'!C:C,$A70) -> 180 | E70: =COUNTIF('09'!D:D,$A70) -> 181 | F70: =COUNTIF('09'!E:E,$A70) -> 170 | G70: =COUNTIF('09'!F:F,$A70) -> 191 | I70: =VLOOKUP('09'!A70,Лист1!$A$2:$G$102,2) -> 200 | J70: =VLOOKUP('09'!B70,Лист1!$A$2:$G$102,3) -> 192 | K70: =VLOOKUP('09'!C70,Лист1!$A$2:$G$102,4) -> 186 | L70: =VLOOKUP('09'!D70,Лист1!$A$2:$G$102,5) -> 175 | M70: =VLOOKUP('09'!E70,Лист1!$A$2:$G$102,6) -> 165 | N70: =VLOOKUP('09'!F70,Лист1!$A$2:$G$102,7) -> 155 | O70: =getValue('09'!A70,2) -> 200 | P70: =getValue('09'!B70,3) -> 192 | Q70: =getValue('09'!C70,4) -> 186 | R70: =getValue('09'!D70,5) -> 175 | S70: =getValue('09'!E70,6) -> 165 | T70: =getValue('09'!F70,7) -> 155
A71: 71 | B71: =COUNTIF('09'!A:A,$A71) -> 169 | C71: =COUNTIF('09'!B:B,$A71) -> 167 | D71: =COUNTIF('09'!C:C,$A71) -> 191 | E71: =COUNTIF('09'!D:D,$A71) -> 194 | F71: =COUNTIF('09'!E:E,$A71) -> 181 | G71: =COUNTIF('09'!F:F,$A71) -> 143 | I71: =VLOOKUP('09'!A71,Лист1!$A$2:$G$102,2) -> 188 | J71: =VLOOKUP('09'!B71,Лист1!$A$2:$G$102,3) -> 173 | K71: =VLOOKUP('09'!C71,Лист1!$A$2:$G$102,4) -> 181 | L71: =VLOOKUP('09'!D71,Лист1!$A$2:$G$102,5) -> 152 | M71: =VLOOKUP('09'!E71,Лист1!$A$2:$G$102,6) -> 179 | N71: =VLOOKUP('09'!F71,Лист1!$A$2:$G$102,7) -> 182 | O71: =getValue('09'!A71,2) -> 188 | P71: =getValue('09'!B71,3) -> 173 | Q71: =getValue('09'!C71,4) -> 181 | R71: =getValue('09'!D71,5) -> 152 | S71: =getValue('09'!E71,6) -> 179 | T71: =getValue('09'!F71,7) -> 182
A72: 72 | B72: =COUNTIF('09'!A:A,$A72) -> 199 | C72: =COUNTIF('09'!B:B,$A72) -> 158 | D72: =COUNTIF('09'!C:C,$A72) -> 192 | E72: =COUNTIF('09'!D:D,$A72) -> 192 | F72: =COUNTIF('09'!E:E,$A72) -> 156 | G72: =COUNTIF('09'!F:F,$A72) -> 174 | I72: =VLOOKUP('09'!A72,Лист1!$A$2:$G$102,2) -> 132 | J72: =VLOOKUP('09'!B72,Лист1!$A$2:$G$102,3) -> 167 | K72: =VLOOKUP('09'!C72,Лист1!$A$2:$G$102,4) -> 172 | L72: =VLOOKUP('09'!D72,Лист1!$A$2:$G$102,5) -> 184 | M72: =VLOOKUP('09'!E72,Лист1!$A$2:$G$102,6) -> 181 | N72: =VLOOKUP('09'!F72,Лист1!$A$2:$G$102,7) -> 162 | O72: =getValue('09'!A72,2) -> 132 | P72: =getValue('09'!B72,3) -> 167 | Q72: =getValue('09'!C72,4) -> 172 | R72: =getValue('09'!D72,5) -> 184 | S72: =getValue('09'!E72,6) -> 181 | T72: =getValue('09'!F72,7) -> 162
A73: 73 | B73: =COUNTIF('09'!A:A,$A73) -> 177 | C73: =COUNTIF('09'!B:B,$A73) -> 183 | D73: =COUNTIF('09'!C:C,$A73) -> 200 | E73: =COUNTIF('09'!D:D,$A73) -> 194 | F73: =COUNTIF('09'!E:E,$A73) -> 185 | G73: =COUNTIF('09'!F:F,$A73) -> 190 | I73: =VLOOKUP('09'!A73,Лист1!$A$2:$G$102,2) -> 189 | J73: =VLOOKUP('09'!B73,Лист1!$A$2:$G$102,3) -> 177 | K73: =VLOOKUP('09'!C73,Лист1!$A$2:$G$102,4) -> 206 | L73: =VLOOKUP('09'!D73,Лист1!$A$2:$G$102,5) -> 184 | M73: =VLOOKUP('09'!E73,Лист1!$A$2:$G$102,6) -> 163 | N73: =VLOOKUP('09'!F73,Лист1!$A$2:$G$102,7) -> 166 | O73: =getValue('09'!A73,2) -> 189 | P73: =getValue('09'!B73,3) -> 177 | Q73: =getValue('09'!C73,4) -> 206 | R73: =getValue('09'!D73,5) -> 184 | S73: =getValue('09'!E73,6) -> 163 | T73: =getValue('09'!F73,7) -> 166
A74: 74 | B74: =COUNTIF('09'!A:A,$A74) -> 160 | C74: =COUNTIF('09'!B:B,$A74) -> 181 | D74: =COUNTIF('09'!C:C,$A74) -> 176 | E74: =COUNTIF('09'!D:D,$A74) -> 200 | F74: =COUNTIF('09'!E:E,$A74) -> 179 | G74: =COUNTIF('09'!F:F,$A74) -> 170 | I74: =VLOOKUP('09'!A74,Лист1!$A$2:$G$102,2) -> 173 | J74: =VLOOKUP('09'!B74,Лист1!$A$2:$G$102,3) -> 185 | K74: =VLOOKUP('09'!C74,Лист1!$A$2:$G$102,4) -> 169 | L74: =VLOOKUP('09'!D74,Лист1!$A$2:$G$102,5) -> 180 | M74: =VLOOKUP('09'!E74,Лист1!$A$2:$G$102,6) -> 165 | N74: =VLOOKUP('09'!F74,Лист1!$A$2:$G$102,7) -> 168 | O74: =getValue('09'!A74,2) -> 173 | P74: =getValue('09'!B74,3) -> 185 | Q74: =getValue('09'!C74,4) -> 169 | R74: =getValue('09'!D74,5) -> 180 | S74: =getValue('09'!E74,6) -> 165 | T74: =getValue('09'!F74,7) -> 168
A75: 75 | B75: =COUNTIF('09'!A:A,$A75) -> 179 | C75: =COUNTIF('09'!B:B,$A75) -> 157 | D75: =COUNTIF('09'!C:C,$A75) -> 181 | E75: =COUNTIF('09'!D:D,$A75) -> 173 | F75: =COUNTIF('09'!E:E,$A75) -> 176 | G75: =COUNTIF('09'!F:F,$A75) -> 170 | I75: =VLOOKUP('09'!A75,Лист1!$A$2:$G$102,2) -> 189 | J75: =VLOOKUP('09'!B75,Лист1!$A$2:$G$102,3) -> 181 | K75: =VLOOKUP('09'!C75,Лист1!$A$2:$G$102,4) -> 191 | L75: =VLOOKUP('09'!D75,Лист1!$A$2:$G$102,5) -> 182 | M75: =VLOOKUP('09'!E75,Лист1!$A$2:$G$102,6) -> 173 | N75: =VLOOKUP('09'!F75,Лист1!$A$2:$G$102,7) -> 155 | O75: =getValue('09'!A75,2) -> 189 | P75: =getValue('09'!B75,3) -> 181 | Q75: =getValue('09'!C75,4) -> 191 | R75: =getValue('09'!D75,5) -> 182 | S75: =getValue('09'!E75,6) -> 173 | T75: =getValue('09'!F75,7) -> 155
A76: 76 | B76: =COUNTIF('09'!A:A,$A76) -> 190 | C76: =COUNTIF('09'!B:B,$A76) -> 191 | D76: =COUNTIF('09'!C:C,$A76) -> 163 | E76: =COUNTIF('09'!D:D,$A76) -> 188 | F76: =COUNTIF('09'!E:E,$A76) -> 161 | G76: =COUNTIF('09'!F:F,$A76) -> 192 | I76: =VLOOKUP('09'!A76,Лист1!$A$2:$G$102,2) -> 172 | J76: =VLOOKUP('09'!B76,Лист1!$A$2:$G$102,3) -> 175 | K76: =VLOOKUP('09'!C76,Лист1!$A$2:$G$102,4) -> 176 | L76: =VLOOKUP('09'!D76,Лист1!$A$2:$G$102,5) -> 190 | M76: =VLOOKUP('09'!E76,Лист1!$A$2:$G$102,6) -> 161 | N76: =VLOOKUP('09'!F76,Лист1!$A$2:$G$102,7) -> 179 | O76: =getValue('09'!A76,2) -> 172 | P76: =getValue('09'!B76,3) -> 175 | Q76: =getValue('09'!C76,4) -> 176 | R76: =getValue('09'!D76,5) -> 190 | S76: =getValue('09'!E76,6) -> 161 | T76: =getValue('09'!F76,7) -> 179
A77: 77 | B77: =COUNTIF('09'!A:A,$A77) -> 206 | C77: =COUNTIF('09'!B:B,$A77) -> 177 | D77: =COUNTIF('09'!C:C,$A77) -> 190 | E77: =COUNTIF('09'!D:D,$A77) -> 181 | F77: =COUNTIF('09'!E:E,$A77) -> 170 | G77: =COUNTIF('09'!F:F,$A77) -> 193 | I77: =VLOOKUP('09'!A77,Лист1!$A$2:$G$102,2) -> 171 | J77: =VLOOKUP('09'!B77,Лист1!$A$2:$G$102,3) -> 159 | K77: =VLOOKUP('09'!C77,Лист1!$A$2:$G$102,4) -> 176 | L77: =VLOOKUP('09'!D77,Лист1!$A$2:$G$102,5) -> 182 | M77: =VLOOKUP('09'!E77,Лист1!$A$2:$G$102,6) -> 180 | N77: =VLOOKUP('09'!F77,Лист1!$A$2:$G$102,7) -> 189 | O77: =getValue('09'!A77,2) -> 171 | P77: =getValue('09'!B77,3) -> 159 | Q77: =getValue('09'!C77,4) -> 176 | R77: =getValue('09'!D77,5) -> 182 | S77: =getValue('09'!E77,6) -> 180 | T77: =getValue('09'!F77,7) -> 189
A78: 78 | B78: =COUNTIF('09'!A:A,$A78) -> 204 | C78: =COUNTIF('09'!B:B,$A78) -> 200 | D78: =COUNTIF('09'!C:C,$A78) -> 172 | E78: =COUNTIF('09'!D:D,$A78) -> 181 | F78: =COUNTIF('09'!E:E,$A78) -> 180 | G78: =COUNTIF('09'!F:F,$A78) -> 176 | I78: =VLOOKUP('09'!A78,Лист1!$A$2:$G$102,2) -> 204 | J78: =VLOOKUP('09'!B78,Лист1!$A$2:$G$102,3) -> 158 | K78: =VLOOKUP('09'!C78,Лист1!$A$2:$G$102,4) -> 190 | L78: =VLOOKUP('09'!D78,Лист1!$A$2:$G$102,5) -> 182 | M78: =VLOOKUP('09'!E78,Лист1!$A$2:$G$102,6) -> 170 | N78: =VLOOKUP('09'!F78,Лист1!$A$2:$G$102,7) -> 189 | O78: =getValue('09'!A78,2) -> 204 | P78: =getValue('09'!B78,3) -> 158 | Q78: =getValue('09'!C78,4) -> 190 | R78: =getValue('09'!D78,5) -> 182 | S78: =getValue('09'!E78,6) -> 170 | T78: =getValue('09'!F78,7) -> 189
A79: 79 | B79: =COUNTIF('09'!A:A,$A79) -> 176 | C79: =COUNTIF('09'!B:B,$A79) -> 175 | D79: =COUNTIF('09'!C:C,$A79) -> 158 | E79: =COUNTIF('09'!D:D,$A79) -> 182 | F79: =COUNTIF('09'!E:E,$A79) -> 184 | G79: =COUNTIF('09'!F:F,$A79) -> 185 | I79: =VLOOKUP('09'!A79,Лист1!$A$2:$G$102,2) -> 168 | J79: =VLOOKUP('09'!B79,Лист1!$A$2:$G$102,3) -> 201 | K79: =VLOOKUP('09'!C79,Лист1!$A$2:$G$102,4) -> 182 | L79: =VLOOKUP('09'!D79,Лист1!$A$2:$G$102,5) -> 160 | M79: =VLOOKUP('09'!E79,Лист1!$A$2:$G$102,6) -> 176 | N79: =VLOOKUP('09'!F79,Лист1!$A$2:$G$102,7) -> 168 | O79: =getValue('09'!A79,2) -> 168 | P79: =getValue('09'!B79,3) -> 201 | Q79: =getValue('09'!C79,4) -> 182 | R79: =getValue('09'!D79,5) -> 160 | S79: =getValue('09'!E79,6) -> 176 | T79: =getValue('09'!F79,7) -> 168
A80: 80 | B80: =COUNTIF('09'!A:A,$A80) -> 182 | C80: =COUNTIF('09'!B:B,$A80) -> 173 | D80: =COUNTIF('09'!C:C,$A80) -> 193 | E80: =COUNTIF('09'!D:D,$A80) -> 172 | F80: =COUNTIF('09'!E:E,$A80) -> 175 | G80: =COUNTIF('09'!F:F,$A80) -> 171 | I80: =VLOOKUP('09'!A80,Лист1!$A$2:$G$102,2) -> 169 | J80: =VLOOKUP('09'!B80,Лист1!$A$2:$G$102,3) -> 182 | K80: =VLOOKUP('09'!C80,Лист1!$A$2:$G$102,4) -> 193 | L80: =VLOOKUP('09'!D80,Лист1!$A$2:$G$102,5) -> 190 | M80: =VLOOKUP('09'!E80,Лист1!$A$2:$G$102,6) -> 173 | N80: =VLOOKUP('09'!F80,Лист1!$A$2:$G$102,7) -> 180 | O80: =getValue('09'!A80,2) -> 169 | P80: =getValue('09'!B80,3) -> 182 | Q80: =getValue('09'!C80,4) -> 193 | R80: =getValue('09'!D80,5) -> 190 | S80: =getValue('09'!E80,6) -> 173 | T80: =getValue('09'!F80,7) -> 180
A81: 81 | B81: =COUNTIF('09'!A:A,$A81) -> 181 | C81: =COUNTIF('09'!B:B,$A81) -> 186 | D81: =COUNTIF('09'!C:C,$A81) -> 186 | E81: =COUNTIF('09'!D:D,$A81) -> 167 | F81: =COUNTIF('09'!E:E,$A81) -> 162 | G81: =COUNTIF('09'!F:F,$A81) -> 192 | I81: =VLOOKUP('09'!A81,Лист1!$A$2:$G$102,2) -> 176 | J81: =VLOOKUP('09'!B81,Лист1!$A$2:$G$102,3) -> 192 | K81: =VLOOKUP('09'!C81,Лист1!$A$2:$G$102,4) -> 218 | L81: =VLOOKUP('09'!D81,Лист1!$A$2:$G$102,5) -> 184 | M81: =VLOOKUP('09'!E81,Лист1!$A$2:$G$102,6) -> 167 | N81: =VLOOKUP('09'!F81,Лист1!$A$2:$G$102,7) -> 153 | O81: =getValue('09'!A81,2) -> 176 | P81: =getValue('09'!B81,3) -> 192 | Q81: =getValue('09'!C81,4) -> 218 | R81: =getValue('09'!D81,5) -> 184 | S81: =getValue('09'!E81,6) -> 167 | T81: =getValue('09'!F81,7) -> 153
A82: 82 | B82: =COUNTIF('09'!A:A,$A82) -> 162 | C82: =COUNTIF('09'!B:B,$A82) -> 178 | D82: =COUNTIF('09'!C:C,$A82) -> 189 | E82: =COUNTIF('09'!D:D,$A82) -> 160 | F82: =COUNTIF('09'!E:E,$A82) -> 182 | G82: =COUNTIF('09'!F:F,$A82) -> 180 | I82: =VLOOKUP('09'!A82,Лист1!$A$2:$G$102,2) -> 190 | J82: =VLOOKUP('09'!B82,Лист1!$A$2:$G$102,3) -> 152 | K82: =VLOOKUP('09'!C82,Лист1!$A$2:$G$102,4) -> 157 | L82: =VLOOKUP('09'!D82,Лист1!$A$2:$G$102,5) -> 166 | M82: =VLOOKUP('09'!E82,Лист1!$A$2:$G$102,6) -> 196 | N82: =VLOOKUP('09'!F82,Лист1!$A$2:$G$102,7) -> 189 | O82: =getValue('09'!A82,2) -> 190 | P82: =getValue('09'!B82,3) -> 152 | Q82: =getValue('09'!C82,4) -> 157 | R82: =getValue('09'!D82,5) -> 166 | S82: =getValue('09'!E82,6) -> 196 | T82: =getValue('09'!F82,7) -> 189
A83: 83 | B83: =COUNTIF('09'!A:A,$A83) -> 190 | C83: =COUNTIF('09'!B:B,$A83) -> 178 | D83: =COUNTIF('09'!C:C,$A83) -> 190 | E83: =COUNTIF('09'!D:D,$A83) -> 196 | F83: =COUNTIF('09'!E:E,$A83) -> 195 | G83: =COUNTIF('09'!F:F,$A83) -> 185 | I83: =VLOOKUP('09'!A83,Лист1!$A$2:$G$102,2) -> 190 | J83: =VLOOKUP('09'!B83,Лист1!$A$2:$G$102,3) -> 179 | K83: =VLOOKUP('09'!C83,Лист1!$A$2:$G$102,4) -> 161 | L83: =VLOOKUP('09'!D83,Лист1!$A$2:$G$102,5) -> 172 | M83: =VLOOKUP('09'!E83,Лист1!$A$2:$G$102,6) -> 230 | N83: =VLOOKUP('09'!F83,Лист1!$A$2:$G$102,7) -> 170 | O83: =getValue('09'!A83,2) -> 190 | P83: =getValue('09'!B83,3) -> 179 | Q83: =getValue('09'!C83,4) -> 161 | R83: =getValue('09'!D83,5) -> 172 | S83: =getValue('09'!E83,6) -> 230 | T83: =getValue('09'!F83,7) -> 170
A84: 84 | B84: =COUNTIF('09'!A:A,$A84) -> 189 | C84: =COUNTIF('09'!B:B,$A84) -> 152 | D84: =COUNTIF('09'!C:C,$A84) -> 152 | E84: =COUNTIF('09'!D:D,$A84) -> 172 | F84: =COUNTIF('09'!E:E,$A84) -> 173 | G84: =COUNTIF('09'!F:F,$A84) -> 192 | I84: =VLOOKUP('09'!A84,Лист1!$A$2:$G$102,2) -> 203 | J84: =VLOOKUP('09'!B84,Лист1!$A$2:$G$102,3) -> 159 | K84: =VLOOKUP('09'!C84,Лист1!$A$2:$G$102,4) -> 181 | L84: =VLOOKUP('09'!D84,Лист1!$A$2:$G$102,5) -> 167 | M84: =VLOOKUP('09'!E84,Лист1!$A$2:$G$102,6) -> 181 | N84: =VLOOKUP('09'!F84,Лист1!$A$2:$G$102,7) -> 193 | O84: =getValue('09'!A84,2) -> 203 | P84: =getValue('09'!B84,3) -> 159 | Q84: =getValue('09'!C84,4) -> 181 | R84: =getValue('09'!D84,5) -> 167 | S84: =getValue('09'!E84,6) -> 181 | T84: =getValue('09'!F84,7) -> 193
A85: 85 | B85: =COUNTIF('09'!A:A,$A85) -> 188 | C85: =COUNTIF('09'!B:B,$A85) -> 187 | D85: =COUNTIF('09'!C:C,$A85) -> 184 | E85: =COUNTIF('09'!D:D,$A85) -> 160 | F85: =COUNTIF('09'!E:E,$A85) -> 170 | G85: =COUNTIF('09'!F:F,$A85) -> 183 | I85: =VLOOKUP('09'!A85,Лист1!$A$2:$G$102,2) -> 190 | J85: =VLOOKUP('09'!B85,Лист1!$A$2:$G$102,3) -> 175 | K85: =VLOOKUP('09'!C85,Лист1!$A$2:$G$102,4) -> 202 | L85: =VLOOKUP('09'!D85,Лист1!$A$2:$G$102,5) -> 164 | M85: =VLOOKUP('09'!E85,Лист1!$A$2:$G$102,6) -> 195 | N85: =VLOOKUP('09'!F85,Лист1!$A$2:$G$102,7) -> 172 | O85: =getValue('09'!A85,2) -> 190 | P85: =getValue('09'!B85,3) -> 175 | Q85: =getValue('09'!C85,4) -> 202 | R85: =getValue('09'!D85,5) -> 164 | S85: =getValue('09'!E85,6) -> 195 | T85: =getValue('09'!F85,7) -> 172
A86: 86 | B86: =COUNTIF('09'!A:A,$A86) -> 156 | C86: =COUNTIF('09'!B:B,$A86) -> 181 | D86: =COUNTIF('09'!C:C,$A86) -> 170 | E86: =COUNTIF('09'!D:D,$A86) -> 194 | F86: =COUNTIF('09'!E:E,$A86) -> 167 | G86: =COUNTIF('09'!F:F,$A86) -> 175 | I86: =VLOOKUP('09'!A86,Лист1!$A$2:$G$102,2) -> 188 | J86: =VLOOKUP('09'!B86,Лист1!$A$2:$G$102,3) -> 158 | K86: =VLOOKUP('09'!C86,Лист1!$A$2:$G$102,4) -> 152 | L86: =VLOOKUP('09'!D86,Лист1!$A$2:$G$102,5) -> 217 | M86: =VLOOKUP('09'!E86,Лист1!$A$2:$G$102,6) -> 174 | N86: =VLOOKUP('09'!F86,Лист1!$A$2:$G$102,7) -> 168 | O86: =getValue('09'!A86,2) -> 188 | P86: =getValue('09'!B86,3) -> 158 | Q86: =getValue('09'!C86,4) -> 152 | R86: =getValue('09'!D86,5) -> 217 | S86: =getValue('09'!E86,6) -> 174 | T86: =getValue('09'!F86,7) -> 168
A87: 87 | B87: =COUNTIF('09'!A:A,$A87) -> 173 | C87: =COUNTIF('09'!B:B,$A87) -> 175 | D87: =COUNTIF('09'!C:C,$A87) -> 173 | E87: =COUNTIF('09'!D:D,$A87) -> 185 | F87: =COUNTIF('09'!E:E,$A87) -> 211 | G87: =COUNTIF('09'!F:F,$A87) -> 170 | I87: =VLOOKUP('09'!A87,Лист1!$A$2:$G$102,2) -> 178 | J87: =VLOOKUP('09'!B87,Лист1!$A$2:$G$102,3) -> 181 | K87: =VLOOKUP('09'!C87,Лист1!$A$2:$G$102,4) -> 180 | L87: =VLOOKUP('09'!D87,Лист1!$A$2:$G$102,5) -> 187 | M87: =VLOOKUP('09'!E87,Лист1!$A$2:$G$102,6) -> 157 | N87: =VLOOKUP('09'!F87,Лист1!$A$2:$G$102,7) -> 183 | O87: =getValue('09'!A87,2) -> 178 | P87: =getValue('09'!B87,3) -> 181 | Q87: =getValue('09'!C87,4) -> 180 | R87: =getValue('09'!D87,5) -> 187 | S87: =getValue('09'!E87,6) -> 157 | T87: =getValue('09'!F87,7) -> 183
A88: 88 | B88: =COUNTIF('09'!A:A,$A88) -> 188 | C88: =COUNTIF('09'!B:B,$A88) -> 158 | D88: =COUNTIF('09'!C:C,$A88) -> 176 | E88: =COUNTIF('09'!D:D,$A88) -> 186 | F88: =COUNTIF('09'!E:E,$A88) -> 183 | G88: =COUNTIF('09'!F:F,$A88) -> 190 | I88: =VLOOKUP('09'!A88,Лист1!$A$2:$G$102,2) -> 189 | J88: =VLOOKUP('09'!B88,Лист1!$A$2:$G$102,3) -> 179 | K88: =VLOOKUP('09'!C88,Лист1!$A$2:$G$102,4) -> 179 | L88: =VLOOKUP('09'!D88,Лист1!$A$2:$G$102,5) -> 169 | M88: =VLOOKUP('09'!E88,Лист1!$A$2:$G$102,6) -> 204 | N88: =VLOOKUP('09'!F88,Лист1!$A$2:$G$102,7) -> 213 | O88: =getValue('09'!A88,2) -> 189 | P88: =getValue('09'!B88,3) -> 179 | Q88: =getValue('09'!C88,4) -> 179 | R88: =getValue('09'!D88,5) -> 169 | S88: =getValue('09'!E88,6) -> 204 | T88: =getValue('09'!F88,7) -> 213
A89: 89 | B89: =COUNTIF('09'!A:A,$A89) -> 201 | C89: =COUNTIF('09'!B:B,$A89) -> 177 | D89: =COUNTIF('09'!C:C,$A89) -> 165 | E89: =COUNTIF('09'!D:D,$A89) -> 183 | F89: =COUNTIF('09'!E:E,$A89) -> 157 | G89: =COUNTIF('09'!F:F,$A89) -> 161 | I89: =VLOOKUP('09'!A89,Лист1!$A$2:$G$102,2) -> 173 | J89: =VLOOKUP('09'!B89,Лист1!$A$2:$G$102,3) -> 183 | K89: =VLOOKUP('09'!C89,Лист1!$A$2:$G$102,4) -> 202 | L89: =VLOOKUP('09'!D89,Лист1!$A$2:$G$102,5) -> 198 | M89: =VLOOKUP('09'!E89,Лист1!$A$2:$G$102,6) -> 182 | N89: =VLOOKUP('09'!F89,Лист1!$A$2:$G$102,7) -> 184 | O89: =getValue('09'!A89,2) -> 173 | P89: =getValue('09'!B89,3) -> 183 | Q89: =getValue('09'!C89,4) -> 202 | R89: =getValue('09'!D89,5) -> 198 | S89: =getValue('09'!E89,6) -> 182 | T89: =getValue('09'!F89,7) -> 184
A90: 90 | B90: =COUNTIF('09'!A:A,$A90) -> 192 | C90: =COUNTIF('09'!B:B,$A90) -> 173 | D90: =COUNTIF('09'!C:C,$A90) -> 179 | E90: =COUNTIF('09'!D:D,$A90) -> 189 | F90: =COUNTIF('09'!E:E,$A90) -> 208 | G90: =COUNTIF('09'!F:F,$A90) -> 184 | I90: =VLOOKUP('09'!A90,Лист1!$A$2:$G$102,2) -> 189 | J90: =VLOOKUP('09'!B90,Лист1!$A$2:$G$102,3) -> 182 | K90: =VLOOKUP('09'!C90,Лист1!$A$2:$G$102,4) -> 172 | L90: =VLOOKUP('09'!D90,Лист1!$A$2:$G$102,5) -> 189 | M90: =VLOOKUP('09'!E90,Лист1!$A$2:$G$102,6) -> 170 | N90: =VLOOKUP('09'!F90,Лист1!$A$2:$G$102,7) -> 187 | O90: =getValue('09'!A90,2) -> 189 | P90: =getValue('09'!B90,3) -> 182 | Q90: =getValue('09'!C90,4) -> 172 | R90: =getValue('09'!D90,5) -> 189 | S90: =getValue('09'!E90,6) -> 170 | T90: =getValue('09'!F90,7) -> 187
A91: 91 | B91: =COUNTIF('09'!A:A,$A91) -> 167 | C91: =COUNTIF('09'!B:B,$A91) -> 167 | D91: =COUNTIF('09'!C:C,$A91) -> 172 | E91: =COUNTIF('09'!D:D,$A91) -> 190 | F91: =COUNTIF('09'!E:E,$A91) -> 164 | G91: =COUNTIF('09'!F:F,$A91) -> 176 | I91: =VLOOKUP('09'!A91,Лист1!$A$2:$G$102,2) -> 163 | J91: =VLOOKUP('09'!B91,Лист1!$A$2:$G$102,3) -> 185 | K91: =VLOOKUP('09'!C91,Лист1!$A$2:$G$102,4) -> 140 | L91: =VLOOKUP('09'!D91,Лист1!$A$2:$G$102,5) -> 189 | M91: =VLOOKUP('09'!E91,Лист1!$A$2:$G$102,6) -> 174 | N91: =VLOOKUP('09'!F91,Лист1!$A$2:$G$102,7) -> 180 | O91: =getValue('09'!A91,2) -> 163 | P91: =getValue('09'!B91,3) -> 185 | Q91: =getValue('09'!C91,4) -> 140 | R91: =getValue('09'!D91,5) -> 189 | S91: =getValue('09'!E91,6) -> 174 | T91: =getValue('09'!F91,7) -> 180
A92: 92 | B92: =COUNTIF('09'!A:A,$A92) -> 200 | C92: =COUNTIF('09'!B:B,$A92) -> 195 | D92: =COUNTIF('09'!C:C,$A92) -> 186 | E92: =COUNTIF('09'!D:D,$A92) -> 180 | F92: =COUNTIF('09'!E:E,$A92) -> 182 | G92: =COUNTIF('09'!F:F,$A92) -> 179 | I92: =VLOOKUP('09'!A92,Лист1!$A$2:$G$102,2) -> 163 | J92: =VLOOKUP('09'!B92,Лист1!$A$2:$G$102,3) -> 199 | K92: =VLOOKUP('09'!C92,Лист1!$A$2:$G$102,4) -> 183 | L92: =VLOOKUP('09'!D92,Лист1!$A$2:$G$102,5) -> 189 | M92: =VLOOKUP('09'!E92,Лист1!$A$2:$G$102,6) -> 162 | N92: =VLOOKUP('09'!F92,Лист1!$A$2:$G$102,7) -> 161 | O92: =getValue('09'!A92,2) -> 163 | P92: =getValue('09'!B92,3) -> 199 | Q92: =getValue('09'!C92,4) -> 183 | R92: =getValue('09'!D92,5) -> 189 | S92: =getValue('09'!E92,6) -> 162 | T92: =getValue('09'!F92,7) -> 161
A93: 93 | B93: =COUNTIF('09'!A:A,$A93) -> 159 | C93: =COUNTIF('09'!B:B,$A93) -> 172 | D93: =COUNTIF('09'!C:C,$A93) -> 204 | E93: =COUNTIF('09'!D:D,$A93) -> 177 | F93: =COUNTIF('09'!E:E,$A93) -> 168 | G93: =COUNTIF('09'!F:F,$A93) -> 173 | I93: =VLOOKUP('09'!A93,Лист1!$A$2:$G$102,2) -> 190 | J93: =VLOOKUP('09'!B93,Лист1!$A$2:$G$102,3) -> 172 | K93: =VLOOKUP('09'!C93,Лист1!$A$2:$G$102,4) -> 183 | L93: =VLOOKUP('09'!D93,Лист1!$A$2:$G$102,5) -> 195 | M93: =VLOOKUP('09'!E93,Лист1!$A$2:$G$102,6) -> 202 | N93: =VLOOKUP('09'!F93,Лист1!$A$2:$G$102,7) -> 185 | O93: =getValue('09'!A93,2) -> 190 | P93: =getValue('09'!B93,3) -> 172 | Q93: =getValue('09'!C93,4) -> 183 | R93: =getValue('09'!D93,5) -> 195 | S93: =getValue('09'!E93,6) -> 202 | T93: =getValue('09'!F93,7) -> 185
A94: 94 | B94: =COUNTIF('09'!A:A,$A94) -> 166 | C94: =COUNTIF('09'!B:B,$A94) -> 186 | D94: =COUNTIF('09'!C:C,$A94) -> 191 | E94: =COUNTIF('09'!D:D,$A94) -> 199 | F94: =COUNTIF('09'!E:E,$A94) -> 167 | G94: =COUNTIF('09'!F:F,$A94) -> 173 | I94: =VLOOKUP('09'!A94,Лист1!$A$2:$G$102,2) -> 186 | J94: =VLOOKUP('09'!B94,Лист1!$A$2:$G$102,3) -> 181 | K94: =VLOOKUP('09'!C94,Лист1!$A$2:$G$102,4) -> 191 | L94: =VLOOKUP('09'!D94,Лист1!$A$2:$G$102,5) -> 202 | M94: =VLOOKUP('09'!E94,Лист1!$A$2:$G$102,6) -> 191 | N94: =VLOOKUP('09'!F94,Лист1!$A$2:$G$102,7) -> 176 | O94: =getValue('09'!A94,2) -> 186 | P94: =getValue('09'!B94,3) -> 181 | Q94: =getValue('09'!C94,4) -> 191 | R94: =getValue('09'!D94,5) -> 202 | S94: =getValue('09'!E94,6) -> 191 | T94: =getValue('09'!F94,7) -> 176
A95: 95 | B95: =COUNTIF('09'!A:A,$A95) -> 179 | C95: =COUNTIF('09'!B:B,$A95) -> 190 | D95: =COUNTIF('09'!C:C,$A95) -> 202 | E95: =COUNTIF('09'!D:D,$A95) -> 167 | F95: =COUNTIF('09'!E:E,$A95) -> 181 | G95: =COUNTIF('09'!F:F,$A95) -> 176 | I95: =VLOOKUP('09'!A95,Лист1!$A$2:$G$102,2) -> 188 | J95: =VLOOKUP('09'!B95,Лист1!$A$2:$G$102,3) -> 167 | K95: =VLOOKUP('09'!C95,Лист1!$A$2:$G$102,4) -> 169 | L95: =VLOOKUP('09'!D95,Лист1!$A$2:$G$102,5) -> 194 | M95: =VLOOKUP('09'!E95,Лист1!$A$2:$G$102,6) -> 173 | N95: =VLOOKUP('09'!F95,Лист1!$A$2:$G$102,7) -> 174 | O95: =getValue('09'!A95,2) -> 188 | P95: =getValue('09'!B95,3) -> 167 | Q95: =getValue('09'!C95,4) -> 169 | R95: =getValue('09'!D95,5) -> 194 | S95: =getValue('09'!E95,6) -> 173 | T95: =getValue('09'!F95,7) -> 174
A96: 96 | B96: =COUNTIF('09'!A:A,$A96) -> 190 | C96: =COUNTIF('09'!B:B,$A96) -> 205 | D96: =COUNTIF('09'!C:C,$A96) -> 177 | E96: =COUNTIF('09'!D:D,$A96) -> 183 | F96: =COUNTIF('09'!E:E,$A96) -> 191 | G96: =COUNTIF('09'!F:F,$A96) -> 157 | I96: =VLOOKUP('09'!A96,Лист1!$A$2:$G$102,2) -> 204 | J96: =VLOOKUP('09'!B96,Лист1!$A$2:$G$102,3) -> 152 | K96: =VLOOKUP('09'!C96,Лист1!$A$2:$G$102,4) -> 193 | L96: =VLOOKUP('09'!D96,Лист1!$A$2:$G$102,5) -> 199 | M96: =VLOOKUP('09'!E96,Лист1!$A$2:$G$102,6) -> 187 | N96: =VLOOKUP('09'!F96,Лист1!$A$2:$G$102,7) -> 187 | O96: =getValue('09'!A96,2) -> 204 | P96: =getValue('09'!B96,3) -> 152 | Q96: =getValue('09'!C96,4) -> 193 | R96: =getValue('09'!D96,5) -> 199 | S96: =getValue('09'!E96,6) -> 187 | T96: =getValue('09'!F96,7) -> 187
A97: 97 | B97: =COUNTIF('09'!A:A,$A97) -> 172 | C97: =COUNTIF('09'!B:B,$A97) -> 181 | D97: =COUNTIF('09'!C:C,$A97) -> 182 | E97: =COUNTIF('09'!D:D,$A97) -> 157 | F97: =COUNTIF('09'!E:E,$A97) -> 173 | G97: =COUNTIF('09'!F:F,$A97) -> 213 | I97: =VLOOKUP('09'!A97,Лист1!$A$2:$G$102,2) -> 177 | J97: =VLOOKUP('09'!B97,Лист1!$A$2:$G$102,3) -> 213 | K97: =VLOOKUP('09'!C97,Лист1!$A$2:$G$102,4) -> 163 | L97: =VLOOKUP('09'!D97,Лист1!$A$2:$G$102,5) -> 173 | M97: =VLOOKUP('09'!E97,Лист1!$A$2:$G$102,6) -> 181 | N97: =VLOOKUP('09'!F97,Лист1!$A$2:$G$102,7) -> 176 | O97: =getValue('09'!A97,2) -> 177 | P97: =getValue('09'!B97,3) -> 213 | Q97: =getValue('09'!C97,4) -> 163 | R97: =getValue('09'!D97,5) -> 173 | S97: =getValue('09'!E97,6) -> 181 | T97: =getValue('09'!F97,7) -> 176
A98: 98 | B98: =COUNTIF('09'!A:A,$A98) -> 168 | C98: =COUNTIF('09'!B:B,$A98) -> 182 | D98: =COUNTIF('09'!C:C,$A98) -> 182 | E98: =COUNTIF('09'!D:D,$A98) -> 175 | F98: =COUNTIF('09'!E:E,$A98) -> 201 | G98: =COUNTIF('09'!F:F,$A98) -> 191 | I98: =VLOOKUP('09'!A98,Лист1!$A$2:$G$102,2) -> 200 | J98: =VLOOKUP('09'!B98,Лист1!$A$2:$G$102,3) -> 181 | K98: =VLOOKUP('09'!C98,Лист1!$A$2:$G$102,4) -> 158 | L98: =VLOOKUP('09'!D98,Лист1!$A$2:$G$102,5) -> 181 | M98: =VLOOKUP('09'!E98,Лист1!$A$2:$G$102,6) -> 186 | N98: =VLOOKUP('09'!F98,Лист1!$A$2:$G$102,7) -> 185 | O98: =getValue('09'!A98,2) -> 200 | P98: =getValue('09'!B98,3) -> 181 | Q98: =getValue('09'!C98,4) -> 158 | R98: =getValue('09'!D98,5) -> 181 | S98: =getValue('09'!E98,6) -> 186 | T98: =getValue('09'!F98,7) -> 185
A99: 99 | B99: =COUNTIF('09'!A:A,$A99) -> 0 | C99: =COUNTIF('09'!B:B,$A99) -> 0 | D99: =COUNTIF('09'!C:C,$A99) -> 0 | E99: =COUNTIF('09'!D:D,$A99) -> 0 | F99: =COUNTIF('09'!E:E,$A99) -> 0 | G99: =COUNTIF('09'!F:F,$A99) -> 0 | I99: =VLOOKUP('09'!A99,Лист1!$A$2:$G$102,2) -> 206 | J99: =VLOOKUP('09'!B99,Лист1!$A$2:$G$102,3) -> 176 | K99: =VLOOKUP('09'!C99,Лист1!$A$2:$G$102,4) -> 158 | L99: =VLOOKUP('09'!D99,Лист1!$A$2:$G$102,5) -> 198 | M99: =VLOOKUP('09'!E99,Лист1!$A$2:$G$102,6) -> 230 | N99: =VLOOKUP('09'!F99,Лист1!$A$2:$G$102,7) -> 187 | O99: =getValue('09'!A99,2) -> 206 | P99: =getValue('09'!B99,3) -> 176 | Q99: =getValue('09'!C99,4) -> 158 | R99: =getValue('09'!D99,5) -> 198 | S99: =getValue('09'!E99,6) -> 230 | T99: =getValue('09'!F99,7) -> 187
I100: =VLOOKUP('09'!A100,Лист1!$A$2:$G$102,2) -> 167 | J100: =VLOOKUP('09'!B100,Лист1!$A$2:$G$102,3) -> 176 | K100: =VLOOKUP('09'!C100,Лист1!$A$2:$G$102,4) -> 190 | L100: =VLOOKUP('09'!D100,Лист1!$A$2:$G$102,5) -> 179 | M100: =VLOOKUP('09'!E100,Лист1!$A$2:$G$102,6) -> 179 | N100: =VLOOKUP('09'!F100,Лист1!$A$2:$G$102,7) -> 179 | O100: =getValue('09'!A100,2) -> 167 | P100: =getValue('09'!B100,3) -> 176 | Q100: =getValue('09'!C100,4) -> 190 | R100: =getValue('09'!D100,5) -> 179 | S100: =getValue('09'!E100,6) -> 179 | T100: =getValue('09'!F100,7) -> 179
I101: =VLOOKUP('09'!A101,Лист1!$A$2:$G$102,2) -> 179 | J101: =VLOOKUP('09'!B101,Лист1!$A$2:$G$102,3) -> 193 | K101: =VLOOKUP('09'!C101,Лист1!$A$2:$G$102,4) -> 172 | L101: =VLOOKUP('09'!D101,Лист1!$A$2:$G$102,5) -> 200 | M101: =VLOOKUP('09'!E101,Лист1!$A$2:$G$102,6) -> 162 | N101: =VLOOKUP('09'!F101,Лист1!$A$2:$G$102,7) -> 200 | O101: =getValue('09'!A101,2) -> 179 | P101: =getValue('09'!B101,3) -> 193 | Q101: =getValue('09'!C101,4) -> 172 | R101: =getValue('09'!D101,5) -> 200 | S101: =getValue('09'!E101,6) -> 162 | T101: =getValue('09'!F101,7) -> 200
I102: =VLOOKUP('09'!A102,Лист1!$A$2:$G$102,2) -> 163 | J102: =VLOOKUP('09'!B102,Лист1!$A$2:$G$102,3) -> 176 | K102: =VLOOKUP('09'!C102,Лист1!$A$2:$G$102,4) -> 181 | L102: =VLOOKUP('09'!D102,Лист1!$A$2:$G$102,5) -> 182 | M102: =VLOOKUP('09'!E102,Лист1!$A$2:$G$102,6) -> 155 | N102: =VLOOKUP('09'!F102,Лист1!$A$2:$G$102,7) -> 181 | O102: =getValue('09'!A102,2) -> 163 | P102: =getValue('09'!B102,3) -> 176 | Q102: =getValue('09'!C102,4) -> 181 | R102: =getValue('09'!D102,5) -> 182 | S102: =getValue('09'!E102,6) -> 155 | T102: =getValue('09'!F102,7) -> 181
I103: =VLOOKUP('09'!A103,Лист1!$A$2:$G$102,2) -> 179 | J103: =VLOOKUP('09'!B103,Лист1!$A$2:$G$102,3) -> 171 | K103: =VLOOKUP('09'!C103,Лист1!$A$2:$G$102,4) -> 187 | L103: =VLOOKUP('09'!D103,Лист1!$A$2:$G$102,5) -> 161 | M103: =VLOOKUP('09'!E103,Лист1!$A$2:$G$102,6) -> 179 | N103: =VLOOKUP('09'!F103,Лист1!$A$2:$G$102,7) -> 173 | O103: =getValue('09'!A103,2) -> 179 | P103: =getValue('09'!B103,3) -> 171 | Q103: =getValue('09'!C103,4) -> 187 | R103: =getValue('09'!D103,5) -> 161 | S103: =getValue('09'!E103,6) -> 179 | T103: =getValue('09'!F103,7) -> 173
I104: =VLOOKUP('09'!A104,Лист1!$A$2:$G$102,2) -> 200 | J104: =VLOOKUP('09'!B104,Лист1!$A$2:$G$102,3) -> 214 | K104: =VLOOKUP('09'!C104,Лист1!$A$2:$G$102,4) -> 204 | L104: =VLOOKUP('09'!D104,Лист1!$A$2:$G$102,5) -> 186 | M104: =VLOOKUP('09'!E104,Лист1!$A$2:$G$102,6) -> 184 | N104: =VLOOKUP('09'!F104,Лист1!$A$2:$G$102,7) -> 180 | O104: =getValue('09'!A104,2) -> 200 | P104: =getValue('09'!B104,3) -> 214 | Q104: =getValue('09'!C104,4) -> 204 | R104: =getValue('09'!D104,5) -> 186 | S104: =getValue('09'!E104,6) -> 184 | T104: =getValue('09'!F104,7) -> 180
I105: =VLOOKUP('09'!A105,Лист1!$A$2:$G$102,2) -> 171 | J105: =VLOOKUP('09'!B105,Лист1!$A$2:$G$102,3) -> 199 | K105: =VLOOKUP('09'!C105,Лист1!$A$2:$G$102,4) -> 180 | L105: =VLOOKUP('09'!D105,Лист1!$A$2:$G$102,5) -> 186 | M105: =VLOOKUP('09'!E105,Лист1!$A$2:$G$102,6) -> 167 | N105: =VLOOKUP('09'!F105,Лист1!$A$2:$G$102,7) -> 191 | O105: =getValue('09'!A105,2) -> 171 | P105: =getValue('09'!B105,3) -> 199 | Q105: =getValue('09'!C105,4) -> 180 | R105: =getValue('09'!D105,5) -> 186 | S105: =getValue('09'!E105,6) -> 167 | T105: =getValue('09'!F105,7) -> 191
I106: =VLOOKUP('09'!A106,Лист1!$A$2:$G$102,2) -> 188 | J106: =VLOOKUP('09'!B106,Лист1!$A$2:$G$102,3) -> 204 | K106: =VLOOKUP('09'!C106,Лист1!$A$2:$G$102,4) -> 158 | L106: =VLOOKUP('09'!D106,Лист1!$A$2:$G$102,5) -> 200 | M106: =VLOOKUP('09'!E106,Лист1!$A$2:$G$102,6) -> 170 | N106: =VLOOKUP('09'!F106,Лист1!$A$2:$G$102,7) -> 184 | O106: =getValue('09'!A106,2) -> 188 | P106: =getValue('09'!B106,3) -> 204 | Q106: =getValue('09'!C106,4) -> 158 | R106: =getValue('09'!D106,5) -> 200 | S106: =getValue('09'!E106,6) -> 170 | T106: =getValue('09'!F106,7) -> 184
I107: =VLOOKUP('09'!A107,Лист1!$A$2:$G$102,2) -> 190 | J107: =VLOOKUP('09'!B107,Лист1!$A$2:$G$102,3) -> 168 | K107: =VLOOKUP('09'!C107,Лист1!$A$2:$G$102,4) -> 171 | L107: =VLOOKUP('09'!D107,Лист1!$A$2:$G$102,5) -> 180 | M107: =VLOOKUP('09'!E107,Лист1!$A$2:$G$102,6) -> 175 | N107: =VLOOKUP('09'!F107,Лист1!$A$2:$G$102,7) -> 176 | O107: =getValue('09'!A107,2) -> 190 | P107: =getValue('09'!B107,3) -> 168 | Q107: =getValue('09'!C107,4) -> 171 | R107: =getValue('09'!D107,5) -> 180 | S107: =getValue('09'!E107,6) -> 175 | T107: =getValue('09'!F107,7) -> 176
I108: =VLOOKUP('09'!A108,Лист1!$A$2:$G$102,2) -> 171 | J108: =VLOOKUP('09'!B108,Лист1!$A$2:$G$102,3) -> 186 | K108: =VLOOKUP('09'!C108,Лист1!$A$2:$G$102,4) -> 197 | L108: =VLOOKUP('09'!D108,Лист1!$A$2:$G$102,5) -> 183 | M108: =VLOOKUP('09'!E108,Лист1!$A$2:$G$102,6) -> 175 | N108: =VLOOKUP('09'!F108,Лист1!$A$2:$G$102,7) -> 155 | O108: =getValue('09'!A108,2) -> 171 | P108: =getValue('09'!B108,3) -> 186 | Q108: =getValue('09'!C108,4) -> 197 | R108: =getValue('09'!D108,5) -> 183 | S108: =getValue('09'!E108,6) -> 175 | T108: =getValue('09'!F108,7) -> 155
I109: =VLOOKUP('09'!A109,Лист1!$A$2:$G$102,2) -> 189 | J109: =VLOOKUP('09'!B109,Лист1!$A$2:$G$102,3) -> 171 | K109: =VLOOKUP('09'!C109,Лист1!$A$2:$G$102,4) -> 166 | L109: =VLOOKUP('09'!D109,Лист1!$A$2:$G$102,5) -> 152 | M109: =VLOOKUP('09'!E109,Лист1!$A$2:$G$102,6) -> 184 | N109: =VLOOKUP('09'!F109,Лист1!$A$2:$G$102,7) -> 183 | O109: =getValue('09'!A109,2) -> 189 | P109: =getValue('09'!B109,3) -> 171 | Q109: =getValue('09'!C109,4) -> 166 | R109: =getValue('09'!D109,5) -> 152 | S109: =getValue('09'!E109,6) -> 184 | T109: =getValue('09'!F109,7) -> 183
I110: =VLOOKUP('09'!A110,Лист1!$A$2:$G$102,2) -> 177 | J110: =VLOOKUP('09'!B110,Лист1!$A$2:$G$102,3) -> 183 | K110: =VLOOKUP('09'!C110,Лист1!$A$2:$G$102,4) -> 181 | L110: =VLOOKUP('09'!D110,Лист1!$A$2:$G$102,5) -> 184 | M110: =VLOOKUP('09'!E110,Лист1!$A$2:$G$102,6) -> 173 | N110: =VLOOKUP('09'!F110,Лист1!$A$2:$G$102,7) -> 186 | O110: =getValue('09'!A110,2) -> 177 | P110: =getValue('09'!B110,3) -> 183 | Q110: =getValue('09'!C110,4) -> 181 | R110: =getValue('09'!D110,5) -> 184 | S110: =getValue('09'!E110,6) -> 173 | T110: =getValue('09'!F110,7) -> 186
I111: =VLOOKUP('09'!A111,Лист1!$A$2:$G$102,2) -> 190 | J111: =VLOOKUP('09'!B111,Лист1!$A$2:$G$102,3) -> 173 | K111: =VLOOKUP('09'!C111,Лист1!$A$2:$G$102,4) -> 159 | L111: =VLOOKUP('09'!D111,Лист1!$A$2:$G$102,5) -> 211 | M111: =VLOOKUP('09'!E111,Лист1!$A$2:$G$102,6) -> 178 | N111: =VLOOKUP('09'!F111,Лист1!$A$2:$G$102,7) -> 187 | O111: =getValue('09'!A111,2) -> 190 | P111: =getValue('09'!B111,3) -> 173 | Q111: =getValue('09'!C111,4) -> 159 | R111: =getValue('09'!D111,5) -> 211 | S111: =getValue('09'!E111,6) -> 178 | T111: =getValue('09'!F111,7) -> 187
I112: =VLOOKUP('09'!A112,Лист1!$A$2:$G$102,2) -> 204 | J112: =VLOOKUP('09'!B112,Лист1!$A$2:$G$102,3) -> 152 | K112: =VLOOKUP('09'!C112,Лист1!$A$2:$G$102,4) -> 183 | L112: =VLOOKUP('09'!D112,Лист1!$A$2:$G$102,5) -> 170 | M112: =VLOOKUP('09'!E112,Лист1!$A$2:$G$102,6) -> 168 | N112: =VLOOKUP('09'!F112,Лист1!$A$2:$G$102,7) -> 187 | O112: =getValue('09'!A112,2) -> 204 | P112: =getValue('09'!B112,3) -> 152 | Q112: =getValue('09'!C112,4) -> 183 | R112: =getValue('09'!D112,5) -> 170 | S112: =getValue('09'!E112,6) -> 168 | T112: =getValue('09'!F112,7) -> 187
I113: =VLOOKUP('09'!A113,Лист1!$A$2:$G$102,2) -> 190 | J113: =VLOOKUP('09'!B113,Лист1!$A$2:$G$102,3) -> 192 | K113: =VLOOKUP('09'!C113,Лист1!$A$2:$G$102,4) -> 184 | L113: =VLOOKUP('09'!D113,Лист1!$A$2:$G$102,5) -> 168 | M113: =VLOOKUP('09'!E113,Лист1!$A$2:$G$102,6) -> 201 | N113: =VLOOKUP('09'!F113,Лист1!$A$2:$G$102,7) -> 199 | O113: =getValue('09'!A113,2) -> 190 | P113: =getValue('09'!B113,3) -> 192 | Q113: =getValue('09'!C113,4) -> 184 | R113: =getValue('09'!D113,5) -> 168 | S113: =getValue('09'!E113,6) -> 201 | T113: =getValue('09'!F113,7) -> 199
I114: =VLOOKUP('09'!A114,Лист1!$A$2:$G$102,2) -> 182 | J114: =VLOOKUP('09'!B114,Лист1!$A$2:$G$102,3) -> 174 | K114: =VLOOKUP('09'!C114,Лист1!$A$2:$G$102,4) -> 186 | L114: =VLOOKUP('09'!D114,Лист1!$A$2:$G$102,5) -> 172 | M114: =VLOOKUP('09'!E114,Лист1!$A$2:$G$102,6) -> 172 | N114: =VLOOKUP('09'!F114,Лист1!$A$2:$G$102,7) -> 191 | O114: =getValue('09'!A114,2) -> 182 | P114: =getValue('09'!B114,3) -> 174 | Q114: =getValue('09'!C114,4) -> 186 | R114: =getValue('09'!D114,5) -> 172 | S114: =getValue('09'!E114,6) -> 172 | T114: =getValue('09'!F114,7) -> 191
I115: =VLOOKUP('09'!A115,Лист1!$A$2:$G$102,2) -> 206 | J115: =VLOOKUP('09'!B115,Лист1!$A$2:$G$102,3) -> 158 | K115: =VLOOKUP('09'!C115,Лист1!$A$2:$G$102,4) -> 170 | L115: =VLOOKUP('09'!D115,Лист1!$A$2:$G$102,5) -> 180 | M115: =VLOOKUP('09'!E115,Лист1!$A$2:$G$102,6) -> 179 | N115: =VLOOKUP('09'!F115,Лист1!$A$2:$G$102,7) -> 169 | O115: =getValue('09'!A115,2) -> 206 | P115: =getValue('09'!B115,3) -> 158 | Q115: =getValue('09'!C115,4) -> 170 | R115: =getValue('09'!D115,5) -> 180 | S115: =getValue('09'!E115,6) -> 179 | T115: =getValue('09'!F115,7) -> 169
I116: =VLOOKUP('09'!A116,Лист1!$A$2:$G$102,2) -> 204 | J116: =VLOOKUP('09'!B116,Лист1!$A$2:$G$102,3) -> 183 | K116: =VLOOKUP('09'!C116,Лист1!$A$2:$G$102,4) -> 204 | L116: =VLOOKUP('09'!D116,Лист1!$A$2:$G$102,5) -> 211 | M116: =VLOOKUP('09'!E116,Лист1!$A$2:$G$102,6) -> 183 | N116: =VLOOKUP('09'!F116,Лист1!$A$2:$G$102,7) -> 196 | O116: =getValue('09'!A116,2) -> 204 | P116: =getValue('09'!B116,3) -> 183 | Q116: =getValue('09'!C116,4) -> 204 | R116: =getValue('09'!D116,5) -> 211 | S116: =getValue('09'!E116,6) -> 183 | T116: =getValue('09'!F116,7) -> 196
I117: =VLOOKUP('09'!A117,Лист1!$A$2:$G$102,2) -> 204 | J117: =VLOOKUP('09'!B117,Лист1!$A$2:$G$102,3) -> 167 | K117: =VLOOKUP('09'!C117,Лист1!$A$2:$G$102,4) -> 202 | L117: =VLOOKUP('09'!D117,Лист1!$A$2:$G$102,5) -> 157 | M117: =VLOOKUP('09'!E117,Лист1!$A$2:$G$102,6) -> 201 | N117: =VLOOKUP('09'!F117,Лист1!$A$2:$G$102,7) -> 200 | O117: =getValue('09'!A117,2) -> 204 | P117: =getValue('09'!B117,3) -> 167 | Q117: =getValue('09'!C117,4) -> 202 | R117: =getValue('09'!D117,5) -> 157 | S117: =getValue('09'!E117,6) -> 201 | T117: =getValue('09'!F117,7) -> 200
I118: =VLOOKUP('09'!A118,Лист1!$A$2:$G$102,2) -> 179 | J118: =VLOOKUP('09'!B118,Лист1!$A$2:$G$102,3) -> 193 | K118: =VLOOKUP('09'!C118,Лист1!$A$2:$G$102,4) -> 181 | L118: =VLOOKUP('09'!D118,Лист1!$A$2:$G$102,5) -> 198 | M118: =VLOOKUP('09'!E118,Лист1!$A$2:$G$102,6) -> 170 | N118: =VLOOKUP('09'!F118,Лист1!$A$2:$G$102,7) -> 166 | O118: =getValue('09'!A118,2) -> 179 | P118: =getValue('09'!B118,3) -> 193 | Q118: =getValue('09'!C118,4) -> 181 | R118: =getValue('09'!D118,5) -> 198 | S118: =getValue('09'!E118,6) -> 170 | T118: =getValue('09'!F118,7) -> 166
I119: =VLOOKUP('09'!A119,Лист1!$A$2:$G$102,2) -> 201 | J119: =VLOOKUP('09'!B119,Лист1!$A$2:$G$102,3) -> 175 | K119: =VLOOKUP('09'!C119,Лист1!$A$2:$G$102,4) -> 167 | L119: =VLOOKUP('09'!D119,Лист1!$A$2:$G$102,5) -> 141 | M119: =VLOOKUP('09'!E119,Лист1!$A$2:$G$102,6) -> 179 | N119: =VLOOKUP('09'!F119,Лист1!$A$2:$G$102,7) -> 179 | O119: =getValue('09'!A119,2) -> 201 | P119: =getValue('09'!B119,3) -> 175 | Q119: =getValue('09'!C119,4) -> 167 | R119: =getValue('09'!D119,5) -> 141 | S119: =getValue('09'!E119,6) -> 179 | T119: =getValue('09'!F119,7) -> 179
I120: =VLOOKUP('09'!A120,Лист1!$A$2:$G$102,2) -> 199 | J120: =VLOOKUP('09'!B120,Лист1!$A$2:$G$102,3) -> 202 | K120: =VLOOKUP('09'!C120,Лист1!$A$2:$G$102,4) -> 182 | L120: =VLOOKUP('09'!D120,Лист1!$A$2:$G$102,5) -> 176 | M120: =VLOOKUP('09'!E120,Лист1!$A$2:$G$102,6) -> 173 | N120: =VLOOKUP('09'!F120,Лист1!$A$2:$G$102,7) -> 157 | O120: =getValue('09'!A120,2) -> 199 | P120: =getValue('09'!B120,3) -> 202 | Q120: =getValue('09'!C120,4) -> 182 | R120: =getValue('09'!D120,5) -> 176 | S120: =getValue('09'!E120,6) -> 173 | T120: =getValue('09'!F120,7) -> 157
I121: =VLOOKUP('09'!A121,Лист1!$A$2:$G$102,2) -> 188 | J121: =VLOOKUP('09'!B121,Лист1!$A$2:$G$102,3) -> 186 | K121: =VLOOKUP('09'!C121,Лист1!$A$2:$G$102,4) -> 178 | L121: =VLOOKUP('09'!D121,Лист1!$A$2:$G$102,5) -> 161 | M121: =VLOOKUP('09'!E121,Лист1!$A$2:$G$102,6) -> 202 | N121: =VLOOKUP('09'!F121,Лист1!$A$2:$G$102,7) -> 182 | O121: =getValue('09'!A121,2) -> 188 | P121: =getValue('09'!B121,3) -> 186 | Q121: =getValue('09'!C121,4) -> 178 | R121: =getValue('09'!D121,5) -> 161 | S121: =getValue('09'!E121,6) -> 202 | T121: =getValue('09'!F121,7) -> 182
I122: =VLOOKUP('09'!A122,Лист1!$A$2:$G$102,2) -> 188 | J122: =VLOOKUP('09'!B122,Лист1!$A$2:$G$102,3) -> 174 | K122: =VLOOKUP('09'!C122,Лист1!$A$2:$G$102,4) -> 190 | L122: =VLOOKUP('09'!D122,Лист1!$A$2:$G$102,5) -> 168 | M122: =VLOOKUP('09'!E122,Лист1!$A$2:$G$102,6) -> 188 | N122: =VLOOKUP('09'!F122,Лист1!$A$2:$G$102,7) -> 173 | O122: =getValue('09'!A122,2) -> 188 | P122: =getValue('09'!B122,3) -> 174 | Q122: =getValue('09'!C122,4) -> 190 | R122: =getValue('09'!D122,5) -> 168 | S122: =getValue('09'!E122,6) -> 188 | T122: =getValue('09'!F122,7) -> 173
I123: =VLOOKUP('09'!A123,Лист1!$A$2:$G$102,2) -> 181 | J123: =VLOOKUP('09'!B123,Лист1!$A$2:$G$102,3) -> 185 | K123: =VLOOKUP('09'!C123,Лист1!$A$2:$G$102,4) -> 188 | L123: =VLOOKUP('09'!D123,Лист1!$A$2:$G$102,5) -> 176 | M123: =VLOOKUP('09'!E123,Лист1!$A$2:$G$102,6) -> 157 | N123: =VLOOKUP('09'!F123,Лист1!$A$2:$G$102,7) -> 190 | O123: =getValue('09'!A123,2) -> 181 | P123: =getValue('09'!B123,3) -> 185 | Q123: =getValue('09'!C123,4) -> 188 | R123: =getValue('09'!D123,5) -> 176 | S123: =getValue('09'!E123,6) -> 157 | T123: =getValue('09'!F123,7) -> 190
I124: =VLOOKUP('09'!A124,Лист1!$A$2:$G$102,2) -> 204 | J124: =VLOOKUP('09'!B124,Лист1!$A$2:$G$102,3) -> 143 | K124: =VLOOKUP('09'!C124,Лист1!$A$2:$G$102,4) -> 193 | L124: =VLOOKUP('09'!D124,Лист1!$A$2:$G$102,5) -> 217 | M124: =VLOOKUP('09'!E124,Лист1!$A$2:$G$102,6) -> 164 | N124: =VLOOKUP('09'!F124,Лист1!$A$2:$G$102,7) -> 180 | O124: =getValue('09'!A124,2) -> 204 | P124: =getValue('09'!B124,3) -> 143 | Q124: =getValue('09'!C124,4) -> 193 | R124: =getValue('09'!D124,5) -> 217 | S124: =getValue('09'!E124,6) -> 164 | T124: =getValue('09'!F124,7) -> 180
I125: =VLOOKUP('09'!A125,Лист1!$A$2:$G$102,2) -> 203 | J125: =VLOOKUP('09'!B125,Лист1!$A$2:$G$102,3) -> 167 | K125: =VLOOKUP('09'!C125,Лист1!$A$2:$G$102,4) -> 140 | L125: =VLOOKUP('09'!D125,Лист1!$A$2:$G$102,5) -> 194 | M125: =VLOOKUP('09'!E125,Лист1!$A$2:$G$102,6) -> 202 | N125: =VLOOKUP('09'!F125,Лист1!$A$2:$G$102,7) -> 169 | O125: =getValue('09'!A125,2) -> 203 | P125: =getValue('09'!B125,3) -> 167 | Q125: =getValue('09'!C125,4) -> 140 | R125: =getValue('09'!D125,5) -> 194 | S125: =getValue('09'!E125,6) -> 202 | T125: =getValue('09'!F125,7) -> 169
I126: =VLOOKUP('09'!A126,Лист1!$A$2:$G$102,2) -> 201 | J126: =VLOOKUP('09'!B126,Лист1!$A$2:$G$102,3) -> 176 | K126: =VLOOKUP('09'!C126,Лист1!$A$2:$G$102,4) -> 179 | L126: =VLOOKUP('09'!D126,Лист1!$A$2:$G$102,5) -> 157 | M126: =VLOOKUP('09'!E126,Лист1!$A$2:$G$102,6) -> 205 | N126: =VLOOKUP('09'!F126,Лист1!$A$2:$G$102,7) -> 166 | O126: =getValue('09'!A126,2) -> 201 | P126: =getValue('09'!B126,3) -> 176 | Q126: =getValue('09'!C126,4) -> 179 | R126: =getValue('09'!D126,5) -> 157 | S126: =getValue('09'!E126,6) -> 205 | T126: =getValue('09'!F126,7) -> 166
I127: =VLOOKUP('09'!A127,Лист1!$A$2:$G$102,2) -> 173 | J127: =VLOOKUP('09'!B127,Лист1!$A$2:$G$102,3) -> 195 | K127: =VLOOKUP('09'!C127,Лист1!$A$2:$G$102,4) -> 177 | L127: =VLOOKUP('09'!D127,Лист1!$A$2:$G$102,5) -> 176 | M127: =VLOOKUP('09'!E127,Лист1!$A$2:$G$102,6) -> 174 | N127: =VLOOKUP('09'!F127,Лист1!$A$2:$G$102,7) -> 168 | O127: =getValue('09'!A127,2) -> 173 | P127: =getValue('09'!B127,3) -> 195 | Q127: =getValue('09'!C127,4) -> 177 | R127: =getValue('09'!D127,5) -> 176 | S127: =getValue('09'!E127,6) -> 174 | T127: =getValue('09'!F127,7) -> 168
I128: =VLOOKUP('09'!A128,Лист1!$A$2:$G$102,2) -> 180 | J128: =VLOOKUP('09'!B128,Лист1!$A$2:$G$102,3) -> 166 | K128: =VLOOKUP('09'!C128,Лист1!$A$2:$G$102,4) -> 197 | L128: =VLOOKUP('09'!D128,Лист1!$A$2:$G$102,5) -> 184 | M128: =VLOOKUP('09'!E128,Лист1!$A$2:$G$102,6) -> 179 | N128: =VLOOKUP('09'!F128,Лист1!$A$2:$G$102,7) -> 180 | O128: =getValue('09'!A128,2) -> 180 | P128: =getValue('09'!B128,3) -> 166 | Q128: =getValue('09'!C128,4) -> 197 | R128: =getValue('09'!D128,5) -> 184 | S128: =getValue('09'!E128,6) -> 179 | T128: =getValue('09'!F128,7) -> 180
I129: =VLOOKUP('09'!A129,Лист1!$A$2:$G$102,2) -> 183 | J129: =VLOOKUP('09'!B129,Лист1!$A$2:$G$102,3) -> 193 | K129: =VLOOKUP('09'!C129,Лист1!$A$2:$G$102,4) -> 180 | L129: =VLOOKUP('09'!D129,Лист1!$A$2:$G$102,5) -> 184 | M129: =VLOOKUP('09'!E129,Лист1!$A$2:$G$102,6) -> 165 | N129: =VLOOKUP('09'!F129,Лист1!$A$2:$G$102,7) -> 182 | O129: =getValue('09'!A129,2) -> 183 | P129: =getValue('09'!B129,3) -> 193 | Q129: =getValue('09'!C129,4) -> 180 | R129: =getValue('09'!D129,5) -> 184 | S129: =getValue('09'!E129,6) -> 165 | T129: =getValue('09'!F129,7) -> 182
I130: =VLOOKUP('09'!A130,Лист1!$A$2:$G$102,2) -> 193 | J130: =VLOOKUP('09'!B130,Лист1!$A$2:$G$102,3) -> 183 | K130: =VLOOKUP('09'!C130,Лист1!$A$2:$G$102,4) -> 191 | L130: =VLOOKUP('09'!D130,Лист1!$A$2:$G$102,5) -> 174 | M130: =VLOOKUP('09'!E130,Лист1!$A$2:$G$102,6) -> 195 | N130: =VLOOKUP('09'!F130,Лист1!$A$2:$G$102,7) -> 176 | O130: =getValue('09'!A130,2) -> 193 | P130: =getValue('09'!B130,3) -> 183 | Q130: =getValue('09'!C130,4) -> 191 | R130: =getValue('09'!D130,5) -> 174 | S130: =getValue('09'!E130,6) -> 195 | T130: =getValue('09'!F130,7) -> 176
I131: =VLOOKUP('09'!A131,Лист1!$A$2:$G$102,2) -> 180 | J131: =VLOOKUP('09'!B131,Лист1!$A$2:$G$102,3) -> 222 | K131: =VLOOKUP('09'!C131,Лист1!$A$2:$G$102,4) -> 190 | L131: =VLOOKUP('09'!D131,Лист1!$A$2:$G$102,5) -> 194 | M131: =VLOOKUP('09'!E131,Лист1!$A$2:$G$102,6) -> 170 | N131: =VLOOKUP('09'!F131,Лист1!$A$2:$G$102,7) -> 189 | O131: =getValue('09'!A131,2) -> 180 | P131: =getValue('09'!B131,3) -> 222 | Q131: =getValue('09'!C131,4) -> 190 | R131: =getValue('09'!D131,5) -> 194 | S131: =getValue('09'!E131,6) -> 170 | T131: =getValue('09'!F131,7) -> 189
I132: =VLOOKUP('09'!A132,Лист1!$A$2:$G$102,2) -> 174 | J132: =VLOOKUP('09'!B132,Лист1!$A$2:$G$102,3) -> 143 | K132: =VLOOKUP('09'!C132,Лист1!$A$2:$G$102,4) -> 180 | L132: =VLOOKUP('09'!D132,Лист1!$A$2:$G$102,5) -> 190 | M132: =VLOOKUP('09'!E132,Лист1!$A$2:$G$102,6) -> 230 | N132: =VLOOKUP('09'!F132,Лист1!$A$2:$G$102,7) -> 200 | O132: =getValue('09'!A132,2) -> 174 | P132: =getValue('09'!B132,3) -> 143 | Q132: =getValue('09'!C132,4) -> 180 | R132: =getValue('09'!D132,5) -> 190 | S132: =getValue('09'!E132,6) -> 230 | T132: =getValue('09'!F132,7) -> 200
I133: =VLOOKUP('09'!A133,Лист1!$A$2:$G$102,2) -> 172 | J133: =VLOOKUP('09'!B133,Лист1!$A$2:$G$102,3) -> 181 | K133: =VLOOKUP('09'!C133,Лист1!$A$2:$G$102,4) -> 189 | L133: =VLOOKUP('09'!D133,Лист1!$A$2:$G$102,5) -> 190 | M133: =VLOOKUP('09'!E133,Лист1!$A$2:$G$102,6) -> 208 | N133: =VLOOKUP('09'!F133,Лист1!$A$2:$G$102,7) -> 180 | O133: =getValue('09'!A133,2) -> 172 | P133: =getValue('09'!B133,3) -> 181 | Q133: =getValue('09'!C133,4) -> 189 | R133: =getValue('09'!D133,5) -> 190 | S133: =getValue('09'!E133,6) -> 208 | T133: =getValue('09'!F133,7) -> 180
I134: =VLOOKUP('09'!A134,Лист1!$A$2:$G$102,2) -> 161 | J134: =VLOOKUP('09'!B134,Лист1!$A$2:$G$102,3) -> 178 | K134: =VLOOKUP('09'!C134,Лист1!$A$2:$G$102,4) -> 191 | L134: =VLOOKUP('09'!D134,Лист1!$A$2:$G$102,5) -> 185 | M134: =VLOOKUP('09'!E134,Лист1!$A$2:$G$102,6) -> 167 | N134: =VLOOKUP('09'!F134,Лист1!$A$2:$G$102,7) -> 183 | O134: =getValue('09'!A134,2) -> 161 | P134: =getValue('09'!B134,3) -> 178 | Q134: =getValue('09'!C134,4) -> 191 | R134: =getValue('09'!D134,5) -> 185 | S134: =getValue('09'!E134,6) -> 167 | T134: =getValue('09'!F134,7) -> 183
I135: =VLOOKUP('09'!A135,Лист1!$A$2:$G$102,2) -> 165 | J135: =VLOOKUP('09'!B135,Лист1!$A$2:$G$102,3) -> 166 | K135: =VLOOKUP('09'!C135,Лист1!$A$2:$G$102,4) -> 170 | L135: =VLOOKUP('09'!D135,Лист1!$A$2:$G$102,5) -> 168 | M135: =VLOOKUP('09'!E135,Лист1!$A$2:$G$102,6) -> 230 | N135: =VLOOKUP('09'!F135,Лист1!$A$2:$G$102,7) -> 169 | O135: =getValue('09'!A135,2) -> 165 | P135: =getValue('09'!B135,3) -> 166 | Q135: =getValue('09'!C135,4) -> 170 | R135: =getValue('09'!D135,5) -> 168 | S135: =getValue('09'!E135,6) -> 230 | T135: =getValue('09'!F135,7) -> 169
I136: =VLOOKUP('09'!A136,Лист1!$A$2:$G$102,2) -> 188 | J136: =VLOOKUP('09'!B136,Лист1!$A$2:$G$102,3) -> 171 | K136: =VLOOKUP('09'!C136,Лист1!$A$2:$G$102,4) -> 204 | L136: =VLOOKUP('09'!D136,Лист1!$A$2:$G$102,5) -> 185 | M136: =VLOOKUP('09'!E136,Лист1!$A$2:$G$102,6) -> 183 | N136: =VLOOKUP('09'!F136,Лист1!$A$2:$G$102,7) -> 174 | O136: =getValue('09'!A136,2) -> 188 | P136: =getValue('09'!B136,3) -> 171 | Q136: =getValue('09'!C136,4) -> 204 | R136: =getValue('09'!D136,5) -> 185 | S136: =getValue('09'!E136,6) -> 183 | T136: =getValue('09'!F136,7) -> 174
I137: =VLOOKUP('09'!A137,Лист1!$A$2:$G$102,2) -> 189 | J137: =VLOOKUP('09'!B137,Лист1!$A$2:$G$102,3) -> 183 | K137: =VLOOKUP('09'!C137,Лист1!$A$2:$G$102,4) -> 181 | L137: =VLOOKUP('09'!D137,Лист1!$A$2:$G$102,5) -> 192 | M137: =VLOOKUP('09'!E137,Лист1!$A$2:$G$102,6) -> 173 | N137: =VLOOKUP('09'!F137,Лист1!$A$2:$G$102,7) -> 179 | O137: =getValue('09'!A137,2) -> 189 | P137: =getValue('09'!B137,3) -> 183 | Q137: =getValue('09'!C137,4) -> 181 | R137: =getValue('09'!D137,5) -> 192 | S137: =getValue('09'!E137,6) -> 173 | T137: =getValue('09'!F137,7) -> 179
I138: =VLOOKUP('09'!A138,Лист1!$A$2:$G$102,2) -> 192 | J138: =VLOOKUP('09'!B138,Лист1!$A$2:$G$102,3) -> 185 | K138: =VLOOKUP('09'!C138,Лист1!$A$2:$G$102,4) -> 177 | L138: =VLOOKUP('09'!D138,Лист1!$A$2:$G$102,5) -> 188 | M138: =VLOOKUP('09'!E138,Лист1!$A$2:$G$102,6) -> 176 | N138: =VLOOKUP('09'!F138,Лист1!$A$2:$G$102,7) -> 176 | O138: =getValue('09'!A138,2) -> 192 | P138: =getValue('09'!B138,3) -> 185 | Q138: =getValue('09'!C138,4) -> 177 | R138: =getValue('09'!D138,5) -> 188 | S138: =getValue('09'!E138,6) -> 176 | T138: =getValue('09'!F138,7) -> 176
I139: =VLOOKUP('09'!A139,Лист1!$A$2:$G$102,2) -> 167 | J139: =VLOOKUP('09'!B139,Лист1!$A$2:$G$102,3) -> 175 | K139: =VLOOKUP('09'!C139,Лист1!$A$2:$G$102,4) -> 177 | L139: =VLOOKUP('09'!D139,Лист1!$A$2:$G$102,5) -> 145 | M139: =VLOOKUP('09'!E139,Лист1!$A$2:$G$102,6) -> 202 | N139: =VLOOKUP('09'!F139,Лист1!$A$2:$G$102,7) -> 185 | O139: =getValue('09'!A139,2) -> 167 | P139: =getValue('09'!B139,3) -> 175 | Q139: =getValue('09'!C139,4) -> 177 | R139: =getValue('09'!D139,5) -> 145 | S139: =getValue('09'!E139,6) -> 202 | T139: =getValue('09'!F139,7) -> 185
I140: =VLOOKUP('09'!A140,Лист1!$A$2:$G$102,2) -> 182 | J140: =VLOOKUP('09'!B140,Лист1!$A$2:$G$102,3) -> 158 | K140: =VLOOKUP('09'!C140,Лист1!$A$2:$G$102,4) -> 204 | L140: =VLOOKUP('09'!D140,Лист1!$A$2:$G$102,5) -> 175 | M140: =VLOOKUP('09'!E140,Лист1!$A$2:$G$102,6) -> 171 | N140: =VLOOKUP('09'!F140,Лист1!$A$2:$G$102,7) -> 175 | O140: =getValue('09'!A140,2) -> 182 | P140: =getValue('09'!B140,3) -> 158 | Q140: =getValue('09'!C140,4) -> 204 | R140: =getValue('09'!D140,5) -> 175 | S140: =getValue('09'!E140,6) -> 171 | T140: =getValue('09'!F140,7) -> 175
I141: =VLOOKUP('09'!A141,Лист1!$A$2:$G$102,2) -> 183 | J141: =VLOOKUP('09'!B141,Лист1!$A$2:$G$102,3) -> 186 | K141: =VLOOKUP('09'!C141,Лист1!$A$2:$G$102,4) -> 140 | L141: =VLOOKUP('09'!D141,Лист1!$A$2:$G$102,5) -> 181 | M141: =VLOOKUP('09'!E141,Лист1!$A$2:$G$102,6) -> 201 | N141: =VLOOKUP('09'!F141,Лист1!$A$2:$G$102,7) -> 196 | O141: =getValue('09'!A141,2) -> 183 | P141: =getValue('09'!B141,3) -> 186 | Q141: =getValue('09'!C141,4) -> 140 | R141: =getValue('09'!D141,5) -> 181 | S141: =getValue('09'!E141,6) -> 201 | T141: =getValue('09'!F141,7) -> 196
I142: =VLOOKUP('09'!A142,Лист1!$A$2:$G$102,2) -> 188 | J142: =VLOOKUP('09'!B142,Лист1!$A$2:$G$102,3) -> 222 | K142: =VLOOKUP('09'!C142,Лист1!$A$2:$G$102,4) -> 176 | L142: =VLOOKUP('09'!D142,Лист1!$A$2:$G$102,5) -> 194 | M142: =VLOOKUP('09'!E142,Лист1!$A$2:$G$102,6) -> 208 | N142: =VLOOKUP('09'!F142,Лист1!$A$2:$G$102,7) -> 164 | O142: =getValue('09'!A142,2) -> 188 | P142: =getValue('09'!B142,3) -> 222 | Q142: =getValue('09'!C142,4) -> 176 | R142: =getValue('09'!D142,5) -> 194 | S142: =getValue('09'!E142,6) -> 208 | T142: =getValue('09'!F142,7) -> 164
I143: =VLOOKUP('09'!A143,Лист1!$A$2:$G$102,2) -> 171 | J143: =VLOOKUP('09'!B143,Лист1!$A$2:$G$102,3) -> 166 | K143: =VLOOKUP('09'!C143,Лист1!$A$2:$G$102,4) -> 195 | L143: =VLOOKUP('09'!D143,Лист1!$A$2:$G$102,5) -> 167 | M143: =VLOOKUP('09'!E143,Лист1!$A$2:$G$102,6) -> 179 | N143: =VLOOKUP('09'!F143,Лист1!$A$2:$G$102,7) -> 173 | O143: =getValue('09'!A143,2) -> 171 | P143: =getValue('09'!B143,3) -> 166 | Q143: =getValue('09'!C143,4) -> 195 | R143: =getValue('09'!D143,5) -> 167 | S143: =getValue('09'!E143,6) -> 179 | T143: =getValue('09'!F143,7) -> 173
I144: =VLOOKUP('09'!A144,Лист1!$A$2:$G$102,2) -> 192 | J144: =VLOOKUP('09'!B144,Лист1!$A$2:$G$102,3) -> 172 | K144: =VLOOKUP('09'!C144,Лист1!$A$2:$G$102,4) -> 164 | L144: =VLOOKUP('09'!D144,Лист1!$A$2:$G$102,5) -> 176 | M144: =VLOOKUP('09'!E144,Лист1!$A$2:$G$102,6) -> 174 | N144: =VLOOKUP('09'!F144,Лист1!$A$2:$G$102,7) -> 182 | O144: =getValue('09'!A144,2) -> 192 | P144: =getValue('09'!B144,3) -> 172 | Q144: =getValue('09'!C144,4) -> 164 | R144: =getValue('09'!D144,5) -> 176 | S144: =getValue('09'!E144,6) -> 174 | T144: =getValue('09'!F144,7) -> 182
I145: =VLOOKUP('09'!A145,Лист1!$A$2:$G$102,2) -> 179 | J145: =VLOOKUP('09'!B145,Лист1!$A$2:$G$102,3) -> 159 | K145: =VLOOKUP('09'!C145,Лист1!$A$2:$G$102,4) -> 200 | L145: =VLOOKUP('09'!D145,Лист1!$A$2:$G$102,5) -> 187 | M145: =VLOOKUP('09'!E145,Лист1!$A$2:$G$102,6) -> 191 | N145: =VLOOKUP('09'!F145,Лист1!$A$2:$G$102,7) -> 179 | O145: =getValue('09'!A145,2) -> 179 | P145: =getValue('09'!B145,3) -> 159 | Q145: =getValue('09'!C145,4) -> 200 | R145: =getValue('09'!D145,5) -> 187 | S145: =getValue('09'!E145,6) -> 191 | T145: =getValue('09'!F145,7) -> 179
I146: =VLOOKUP('09'!A146,Лист1!$A$2:$G$102,2) -> 190 | J146: =VLOOKUP('09'!B146,Лист1!$A$2:$G$102,3) -> 200 | K146: =VLOOKUP('09'!C146,Лист1!$A$2:$G$102,4) -> 193 | L146: =VLOOKUP('09'!D146,Лист1!$A$2:$G$102,5) -> 173 | M146: =VLOOKUP('09'!E146,Лист1!$A$2:$G$102,6) -> 176 | N146: =VLOOKUP('09'!F146,Лист1!$A$2:$G$102,7) -> 185 | O146: =getValue('09'!A146,2) -> 190 | P146: =getValue('09'!B146,3) -> 200 | Q146: =getValue('09'!C146,4) -> 193 | R146: =getValue('09'!D146,5) -> 173 | S146: =getValue('09'!E146,6) -> 176 | T146: =getValue('09'!F146,7) -> 185
I147: =VLOOKUP('09'!A147,Лист1!$A$2:$G$102,2) -> 165 | J147: =VLOOKUP('09'!B147,Лист1!$A$2:$G$102,3) -> 195 | K147: =VLOOKUP('09'!C147,Лист1!$A$2:$G$102,4) -> 177 | L147: =VLOOKUP('09'!D147,Лист1!$A$2:$G$102,5) -> 189 | M147: =VLOOKUP('09'!E147,Лист1!$A$2:$G$102,6) -> 166 | N147: =VLOOKUP('09'!F147,Лист1!$A$2:$G$102,7) -> 189 | O147: =getValue('09'!A147,2) -> 165 | P147: =getValue('09'!B147,3) -> 195 | Q147: =getValue('09'!C147,4) -> 177 | R147: =getValue('09'!D147,5) -> 189 | S147: =getValue('09'!E147,6) -> 166 | T147: =getValue('09'!F147,7) -> 189
I148: =VLOOKUP('09'!A148,Лист1!$A$2:$G$102,2) -> 179 | J148: =VLOOKUP('09'!B148,Лист1!$A$2:$G$102,3) -> 195 | K148: =VLOOKUP('09'!C148,Лист1!$A$2:$G$102,4) -> 190 | L148: =VLOOKUP('09'!D148,Лист1!$A$2:$G$102,5) -> 183 | M148: =VLOOKUP('09'!E148,Лист1!$A$2:$G$102,6) -> 178 | N148: =VLOOKUP('09'!F148,Лист1!$A$2:$G$102,7) -> 180 | O148: =getValue('09'!A148,2) -> 179 | P148: =getValue('09'!B148,3) -> 195 | Q148: =getValue('09'!C148,4) -> 190 | R148: =getValue('09'!D148,5) -> 183 | S148: =getValue('09'!E148,6) -> 178 | T148: =getValue('09'!F148,7) -> 180
I149: =VLOOKUP('09'!A149,Лист1!$A$2:$G$102,2) -> 186 | J149: =VLOOKUP('09'!B149,Лист1!$A$2:$G$102,3) -> 181 | K149: =VLOOKUP('09'!C149,Лист1!$A$2:$G$102,4) -> 190 | L149: =VLOOKUP('09'!D149,Лист1!$A$2:$G$102,5) -> 194 | M149: =VLOOKUP('09'!E149,Лист1!$A$2:$G$102,6) -> 173 | N149: =VLOOKUP('09'!F149,Лист1!$A$2:$G$102,7) -> 189 | O149: =getValue('09'!A149,2) -> 186 | P149: =getValue('09'!B149,3) -> 181 | Q149: =getValue('09'!C149,4) -> 190 | R149: =getValue('09'!D149,5) -> 194 | S149: =getValue('09'!E149,6) -> 173 | T149: =getValue('09'!F149,7) -> 189
I150: =VLOOKUP('09'!A150,Лист1!$A$2:$G$102,2) -> 204 | J150: =VLOOKUP('09'!B150,Лист1!$A$2:$G$102,3) -> 143 | K150: =VLOOKUP('09'!C150,Лист1!$A$2:$G$102,4) -> 195 | L150: =VLOOKUP('09'!D150,Лист1!$A$2:$G$102,5) -> 182 | M150: =VLOOKUP('09'!E150,Лист1!$A$2:$G$102,6) -> 169 | N150: =VLOOKUP('09'!F150,Лист1!$A$2:$G$102,7) -> 184 | O150: =getValue('09'!A150,2) -> 204 | P150: =getValue('09'!B150,3) -> 143 | Q150: =getValue('09'!C150,4) -> 195 | R150: =getValue('09'!D150,5) -> 182 | S150: =getValue('09'!E150,6) -> 169 | T150: =getValue('09'!F150,7) -> 184
I151: =VLOOKUP('09'!A151,Лист1!$A$2:$G$102,2) -> 178 | J151: =VLOOKUP('09'!B151,Лист1!$A$2:$G$102,3) -> 158 | K151: =VLOOKUP('09'!C151,Лист1!$A$2:$G$102,4) -> 181 | L151: =VLOOKUP('09'!D151,Лист1!$A$2:$G$102,5) -> 185 | M151: =VLOOKUP('09'!E151,Лист1!$A$2:$G$102,6) -> 176 | N151: =VLOOKUP('09'!F151,Лист1!$A$2:$G$102,7) -> 200 | O151: =getValue('09'!A151,2) -> 178 | P151: =getValue('09'!B151,3) -> 158 | Q151: =getValue('09'!C151,4) -> 181 | R151: =getValue('09'!D151,5) -> 185 | S151: =getValue('09'!E151,6) -> 176 | T151: =getValue('09'!F151,7) -> 200
I152: =VLOOKUP('09'!A152,Лист1!$A$2:$G$102,2) -> 158 | J152: =VLOOKUP('09'!B152,Лист1!$A$2:$G$102,3) -> 143 | K152: =VLOOKUP('09'!C152,Лист1!$A$2:$G$102,4) -> 172 | L152: =VLOOKUP('09'!D152,Лист1!$A$2:$G$102,5) -> 190 | M152: =VLOOKUP('09'!E152,Лист1!$A$2:$G$102,6) -> 204 | N152: =VLOOKUP('09'!F152,Лист1!$A$2:$G$102,7) -> 173 | O152: =getValue('09'!A152,2) -> 158 | P152: =getValue('09'!B152,3) -> 143 | Q152: =getValue('09'!C152,4) -> 172 | R152: =getValue('09'!D152,5) -> 190 | S152: =getValue('09'!E152,6) -> 204 | T152: =getValue('09'!F152,7) -> 173
I153: =VLOOKUP('09'!A153,Лист1!$A$2:$G$102,2) -> 168 | J153: =VLOOKUP('09'!B153,Лист1!$A$2:$G$102,3) -> 159 | K153: =VLOOKUP('09'!C153,Лист1!$A$2:$G$102,4) -> 177 | L153: =VLOOKUP('09'!D153,Лист1!$A$2:$G$102,5) -> 198 | M153: =VLOOKUP('09'!E153,Лист1!$A$2:$G$102,6) -> 186 | N153: =VLOOKUP('09'!F153,Лист1!$A$2:$G$102,7) -> 176 | O153: =getValue('09'!A153,2) -> 168 | P153: =getValue('09'!B153,3) -> 159 | Q153: =getValue('09'!C153,4) -> 177 | R153: =getValue('09'!D153,5) -> 198 | S153: =getValue('09'!E153,6) -> 186 | T153: =getValue('09'!F153,7) -> 176
I154: =VLOOKUP('09'!A154,Лист1!$A$2:$G$102,2) -> 188 | J154: =VLOOKUP('09'!B154,Лист1!$A$2:$G$102,3) -> 158 | K154: =VLOOKUP('09'!C154,Лист1!$A$2:$G$102,4) -> 170 | L154: =VLOOKUP('09'!D154,Лист1!$A$2:$G$102,5) -> 190 | M154: =VLOOKUP('09'!E154,Лист1!$A$2:$G$102,6) -> 167 | N154: =VLOOKUP('09'!F154,Лист1!$A$2:$G$102,7) -> 198 | O154: =getValue('09'!A154,2) -> 188 | P154: =getValue('09'!B154,3) -> 158 | Q154: =getValue('09'!C154,4) -> 170 | R154: =getValue('09'!D154,5) -> 190 | S154: =getValue('09'!E154,6) -> 167 | T154: =getValue('09'!F154,7) -> 198
I155: =VLOOKUP('09'!A155,Лист1!$A$2:$G$102,2) -> 179 | J155: =VLOOKUP('09'!B155,Лист1!$A$2:$G$102,3) -> 186 | K155: =VLOOKUP('09'!C155,Лист1!$A$2:$G$102,4) -> 152 | L155: =VLOOKUP('09'!D155,Лист1!$A$2:$G$102,5) -> 175 | M155: =VLOOKUP('09'!E155,Лист1!$A$2:$G$102,6) -> 191 | N155: =VLOOKUP('09'!F155,Лист1!$A$2:$G$102,7) -> 157 | O155: =getValue('09'!A155,2) -> 179 | P155: =getValue('09'!B155,3) -> 186 | Q155: =getValue('09'!C155,4) -> 152 | R155: =getValue('09'!D155,5) -> 175 | S155: =getValue('09'!E155,6) -> 191 | T155: =getValue('09'!F155,7) -> 157
I156: =VLOOKUP('09'!A156,Лист1!$A$2:$G$102,2) -> 204 | J156: =VLOOKUP('09'!B156,Лист1!$A$2:$G$102,3) -> 173 | K156: =VLOOKUP('09'!C156,Лист1!$A$2:$G$102,4) -> 191 | L156: =VLOOKUP('09'!D156,Лист1!$A$2:$G$102,5) -> 189 | M156: =VLOOKUP('09'!E156,Лист1!$A$2:$G$102,6) -> 166 | N156: =VLOOKUP('09'!F156,Лист1!$A$2:$G$102,7) -> 181 | O156: =getValue('09'!A156,2) -> 204 | P156: =getValue('09'!B156,3) -> 173 | Q156: =getValue('09'!C156,4) -> 191 | R156: =getValue('09'!D156,5) -> 189 | S156: =getValue('09'!E156,6) -> 166 | T156: =getValue('09'!F156,7) -> 181
I157: =VLOOKUP('09'!A157,Лист1!$A$2:$G$102,2) -> 189 | J157: =VLOOKUP('09'!B157,Лист1!$A$2:$G$102,3) -> 177 | K157: =VLOOKUP('09'!C157,Лист1!$A$2:$G$102,4) -> 206 | L157: =VLOOKUP('09'!D157,Лист1!$A$2:$G$102,5) -> 186 | M157: =VLOOKUP('09'!E157,Лист1!$A$2:$G$102,6) -> 191 | N157: =VLOOKUP('09'!F157,Лист1!$A$2:$G$102,7) -> 183 | O157: =getValue('09'!A157,2) -> 189 | P157: =getValue('09'!B157,3) -> 177 | Q157: =getValue('09'!C157,4) -> 206 | R157: =getValue('09'!D157,5) -> 186 | S157: =getValue('09'!E157,6) -> 191 | T157: =getValue('09'!F157,7) -> 183
I158: =VLOOKUP('09'!A158,Лист1!$A$2:$G$102,2) -> 190 | J158: =VLOOKUP('09'!B158,Лист1!$A$2:$G$102,3) -> 191 | K158: =VLOOKUP('09'!C158,Лист1!$A$2:$G$102,4) -> 191 | L158: =VLOOKUP('09'!D158,Лист1!$A$2:$G$102,5) -> 189 | M158: =VLOOKUP('09'!E158,Лист1!$A$2:$G$102,6) -> 183 | N158: =VLOOKUP('09'!F158,Лист1!$A$2:$G$102,7) -> 200 | O158: =getValue('09'!A158,2) -> 190 | P158: =getValue('09'!B158,3) -> 191 | Q158: =getValue('09'!C158,4) -> 191 | R158: =getValue('09'!D158,5) -> 189 | S158: =getValue('09'!E158,6) -> 183 | T158: =getValue('09'!F158,7) -> 200
I159: =VLOOKUP('09'!A159,Лист1!$A$2:$G$102,2) -> 188 | J159: =VLOOKUP('09'!B159,Лист1!$A$2:$G$102,3) -> 182 | K159: =VLOOKUP('09'!C159,Лист1!$A$2:$G$102,4) -> 200 | L159: =VLOOKUP('09'!D159,Лист1!$A$2:$G$102,5) -> 182 | M159: =VLOOKUP('09'!E159,Лист1!$A$2:$G$102,6) -> 165 | N159: =VLOOKUP('09'!F159,Лист1!$A$2:$G$102,7) -> 187 | O159: =getValue('09'!A159,2) -> 188 | P159: =getValue('09'!B159,3) -> 182 | Q159: =getValue('09'!C159,4) -> 200 | R159: =getValue('09'!D159,5) -> 182 | S159: =getValue('09'!E159,6) -> 165 | T159: =getValue('09'!F159,7) -> 187
I160: =VLOOKUP('09'!A160,Лист1!$A$2:$G$102,2) -> 178 | J160: =VLOOKUP('09'!B160,Лист1!$A$2:$G$102,3) -> 213 | K160: =VLOOKUP('09'!C160,Лист1!$A$2:$G$102,4) -> 180 | L160: =VLOOKUP('09'!D160,Лист1!$A$2:$G$102,5) -> 189 | M160: =VLOOKUP('09'!E160,Лист1!$A$2:$G$102,6) -> 178 | N160: =VLOOKUP('09'!F160,Лист1!$A$2:$G$102,7) -> 171 | O160: =getValue('09'!A160,2) -> 178 | P160: =getValue('09'!B160,3) -> 213 | Q160: =getValue('09'!C160,4) -> 180 | R160: =getValue('09'!D160,5) -> 189 | S160: =getValue('09'!E160,6) -> 178 | T160: =getValue('09'!F160,7) -> 171
I161: =VLOOKUP('09'!A161,Лист1!$A$2:$G$102,2) -> 163 | J161: =VLOOKUP('09'!B161,Лист1!$A$2:$G$102,3) -> 174 | K161: =VLOOKUP('09'!C161,Лист1!$A$2:$G$102,4) -> 176 | L161: =VLOOKUP('09'!D161,Лист1!$A$2:$G$102,5) -> 189 | M161: =VLOOKUP('09'!E161,Лист1!$A$2:$G$102,6) -> 184 | N161: =VLOOKUP('09'!F161,Лист1!$A$2:$G$102,7) -> 182 | O161: =getValue('09'!A161,2) -> 163 | P161: =getValue('09'!B161,3) -> 174 | Q161: =getValue('09'!C161,4) -> 176 | R161: =getValue('09'!D161,5) -> 189 | S161: =getValue('09'!E161,6) -> 184 | T161: =getValue('09'!F161,7) -> 182
I162: =VLOOKUP('09'!A162,Лист1!$A$2:$G$102,2) -> 204 | J162: =VLOOKUP('09'!B162,Лист1!$A$2:$G$102,3) -> 186 | K162: =VLOOKUP('09'!C162,Лист1!$A$2:$G$102,4) -> 209 | L162: =VLOOKUP('09'!D162,Лист1!$A$2:$G$102,5) -> 164 | M162: =VLOOKUP('09'!E162,Лист1!$A$2:$G$102,6) -> 173 | N162: =VLOOKUP('09'!F162,Лист1!$A$2:$G$102,7) -> 176 | O162: =getValue('09'!A162,2) -> 204 | P162: =getValue('09'!B162,3) -> 186 | Q162: =getValue('09'!C162,4) -> 209 | R162: =getValue('09'!D162,5) -> 164 | S162: =getValue('09'!E162,6) -> 173 | T162: =getValue('09'!F162,7) -> 176
I163: =VLOOKUP('09'!A163,Лист1!$A$2:$G$102,2) -> 179 | J163: =VLOOKUP('09'!B163,Лист1!$A$2:$G$102,3) -> 167 | K163: =VLOOKUP('09'!C163,Лист1!$A$2:$G$102,4) -> 173 | L163: =VLOOKUP('09'!D163,Лист1!$A$2:$G$102,5) -> 157 | M163: =VLOOKUP('09'!E163,Лист1!$A$2:$G$102,6) -> 202 | N163: =VLOOKUP('09'!F163,Лист1!$A$2:$G$102,7) -> 206 | O163: =getValue('09'!A163,2) -> 179 | P163: =getValue('09'!B163,3) -> 167 | Q163: =getValue('09'!C163,4) -> 173 | R163: =getValue('09'!D163,5) -> 157 | S163: =getValue('09'!E163,6) -> 202 | T163: =getValue('09'!F163,7) -> 206
I164: =VLOOKUP('09'!A164,Лист1!$A$2:$G$102,2) -> 206 | J164: =VLOOKUP('09'!B164,Лист1!$A$2:$G$102,3) -> 174 | K164: =VLOOKUP('09'!C164,Лист1!$A$2:$G$102,4) -> 183 | L164: =VLOOKUP('09'!D164,Лист1!$A$2:$G$102,5) -> 193 | M164: =VLOOKUP('09'!E164,Лист1!$A$2:$G$102,6) -> 171 | N164: =VLOOKUP('09'!F164,Лист1!$A$2:$G$102,7) -> 187 | O164: =getValue('09'!A164,2) -> 206 | P164: =getValue('09'!B164,3) -> 174 | Q164: =getValue('09'!C164,4) -> 183 | R164: =getValue('09'!D164,5) -> 193 | S164: =getValue('09'!E164,6) -> 171 | T164: =getValue('09'!F164,7) -> 187
I165: =VLOOKUP('09'!A165,Лист1!$A$2:$G$102,2) -> 173 | J165: =VLOOKUP('09'!B165,Лист1!$A$2:$G$102,3) -> 180 | K165: =VLOOKUP('09'!C165,Лист1!$A$2:$G$102,4) -> 197 | L165: =VLOOKUP('09'!D165,Лист1!$A$2:$G$102,5) -> 199 | M165: =VLOOKUP('09'!E165,Лист1!$A$2:$G$102,6) -> 187 | N165: =VLOOKUP('09'!F165,Лист1!$A$2:$G$102,7) -> 193 | O165: =getValue('09'!A165,2) -> 173 | P165: =getValue('09'!B165,3) -> 180 | Q165: =getValue('09'!C165,4) -> 197 | R165: =getValue('09'!D165,5) -> 199 | S165: =getValue('09'!E165,6) -> 187 | T165: =getValue('09'!F165,7) -> 193
I166: =VLOOKUP('09'!A166,Лист1!$A$2:$G$102,2) -> 189 | J166: =VLOOKUP('09'!B166,Лист1!$A$2:$G$102,3) -> 171 | K166: =VLOOKUP('09'!C166,Лист1!$A$2:$G$102,4) -> 179 | L166: =VLOOKUP('09'!D166,Лист1!$A$2:$G$102,5) -> 182 | M166: =VLOOKUP('09'!E166,Лист1!$A$2:$G$102,6) -> 157 | N166: =VLOOKUP('09'!F166,Лист1!$A$2:$G$102,7) -> 170 | O166: =getValue('09'!A166,2) -> 189 | P166: =getValue('09'!B166,3) -> 171 | Q166: =getValue('09'!C166,4) -> 179 | R166: =getValue('09'!D166,5) -> 182 | S166: =getValue('09'!E166,6) -> 157 | T166: =getValue('09'!F166,7) -> 170
I167: =VLOOKUP('09'!A167,Лист1!$A$2:$G$102,2) -> 204 | J167: =VLOOKUP('09'!B167,Лист1!$A$2:$G$102,3) -> 191 | K167: =VLOOKUP('09'!C167,Лист1!$A$2:$G$102,4) -> 194 | L167: =VLOOKUP('09'!D167,Лист1!$A$2:$G$102,5) -> 181 | M167: =VLOOKUP('09'!E167,Лист1!$A$2:$G$102,6) -> 184 | N167: =VLOOKUP('09'!F167,Лист1!$A$2:$G$102,7) -> 176 | O167: =getValue('09'!A167,2) -> 204 | P167: =getValue('09'!B167,3) -> 191 | Q167: =getValue('09'!C167,4) -> 194 | R167: =getValue('09'!D167,5) -> 181 | S167: =getValue('09'!E167,6) -> 184 | T167: =getValue('09'!F167,7) -> 176
I168: =VLOOKUP('09'!A168,Лист1!$A$2:$G$102,2) -> 206 | J168: =VLOOKUP('09'!B168,Лист1!$A$2:$G$102,3) -> 169 | K168: =VLOOKUP('09'!C168,Лист1!$A$2:$G$102,4) -> 178 | L168: =VLOOKUP('09'!D168,Лист1!$A$2:$G$102,5) -> 171 | M168: =VLOOKUP('09'!E168,Лист1!$A$2:$G$102,6) -> 167 | N168: =VLOOKUP('09'!F168,Лист1!$A$2:$G$102,7) -> 185 | O168: =getValue('09'!A168,2) -> 206 | P168: =getValue('09'!B168,3) -> 169 | Q168: =getValue('09'!C168,4) -> 178 | R168: =getValue('09'!D168,5) -> 171 | S168: =getValue('09'!E168,6) -> 167 | T168: =getValue('09'!F168,7) -> 185
I169: =VLOOKUP('09'!A169,Лист1!$A$2:$G$102,2) -> 189 | J169: =VLOOKUP('09'!B169,Лист1!$A$2:$G$102,3) -> 178 | K169: =VLOOKUP('09'!C169,Лист1!$A$2:$G$102,4) -> 158 | L169: =VLOOKUP('09'!D169,Лист1!$A$2:$G$102,5) -> 162 | M169: =VLOOKUP('09'!E169,Лист1!$A$2:$G$102,6) -> 184 | N169: =VLOOKUP('09'!F169,Лист1!$A$2:$G$102,7) -> 187 | O169: =getValue('09'!A169,2) -> 189 | P169: =getValue('09'!B169,3) -> 178 | Q169: =getValue('09'!C169,4) -> 158 | R169: =getValue('09'!D169,5) -> 162 | S169: =getValue('09'!E169,6) -> 184 | T169: =getValue('09'!F169,7) -> 187
I170: =VLOOKUP('09'!A170,Лист1!$A$2:$G$102,2) -> 184 | J170: =VLOOKUP('09'!B170,Лист1!$A$2:$G$102,3) -> 181 | K170: =VLOOKUP('09'!C170,Лист1!$A$2:$G$102,4) -> 182 | L170: =VLOOKUP('09'!D170,Лист1!$A$2:$G$102,5) -> 196 | M170: =VLOOKUP('09'!E170,Лист1!$A$2:$G$102,6) -> 182 | N170: =VLOOKUP('09'!F170,Лист1!$A$2:$G$102,7) -> 185 | O170: =getValue('09'!A170,2) -> 184 | P170: =getValue('09'!B170,3) -> 181 | Q170: =getValue('09'!C170,4) -> 182 | R170: =getValue('09'!D170,5) -> 196 | S170: =getValue('09'!E170,6) -> 182 | T170: =getValue('09'!F170,7) -> 185
I171: =VLOOKUP('09'!A171,Лист1!$A$2:$G$102,2) -> 189 | J171: =VLOOKUP('09'!B171,Лист1!$A$2:$G$102,3) -> 191 | K171: =VLOOKUP('09'!C171,Лист1!$A$2:$G$102,4) -> 177 | L171: =VLOOKUP('09'!D171,Лист1!$A$2:$G$102,5) -> 182 | M171: =VLOOKUP('09'!E171,Лист1!$A$2:$G$102,6) -> 178 | N171: =VLOOKUP('09'!F171,Лист1!$A$2:$G$102,7) -> 184 | O171: =getValue('09'!A171,2) -> 189 | P171: =getValue('09'!B171,3) -> 191 | Q171: =getValue('09'!C171,4) -> 177 | R171: =getValue('09'!D171,5) -> 182 | S171: =getValue('09'!E171,6) -> 178 | T171: =getValue('09'!F171,7) -> 184
I172: =VLOOKUP('09'!A172,Лист1!$A$2:$G$102,2) -> 205 | J172: =VLOOKUP('09'!B172,Лист1!$A$2:$G$102,3) -> 187 | K172: =VLOOKUP('09'!C172,Лист1!$A$2:$G$102,4) -> 158 | L172: =VLOOKUP('09'!D172,Лист1!$A$2:$G$102,5) -> 172 | M172: =VLOOKUP('09'!E172,Лист1!$A$2:$G$102,6) -> 184 | N172: =VLOOKUP('09'!F172,Лист1!$A$2:$G$102,7) -> 170 | O172: =getValue('09'!A172,2) -> 205 | P172: =getValue('09'!B172,3) -> 187 | Q172: =getValue('09'!C172,4) -> 158 | R172: =getValue('09'!D172,5) -> 172 | S172: =getValue('09'!E172,6) -> 184 | T172: =getValue('09'!F172,7) -> 170
I173: =VLOOKUP('09'!A173,Лист1!$A$2:$G$102,2) -> 188 | J173: =VLOOKUP('09'!B173,Лист1!$A$2:$G$102,3) -> 214 | K173: =VLOOKUP('09'!C173,Лист1!$A$2:$G$102,4) -> 187 | L173: =VLOOKUP('09'!D173,Лист1!$A$2:$G$102,5) -> 190 | M173: =VLOOKUP('09'!E173,Лист1!$A$2:$G$102,6) -> 182 | N173: =VLOOKUP('09'!F173,Лист1!$A$2:$G$102,7) -> 181 | O173: =getValue('09'!A173,2) -> 188 | P173: =getValue('09'!B173,3) -> 214 | Q173: =getValue('09'!C173,4) -> 187 | R173: =getValue('09'!D173,5) -> 190 | S173: =getValue('09'!E173,6) -> 182 | T173: =getValue('09'!F173,7) -> 181
I174: =VLOOKUP('09'!A174,Лист1!$A$2:$G$102,2) -> 162 | J174: =VLOOKUP('09'!B174,Лист1!$A$2:$G$102,3) -> 178 | K174: =VLOOKUP('09'!C174,Лист1!$A$2:$G$102,4) -> 167 | L174: =VLOOKUP('09'!D174,Лист1!$A$2:$G$102,5) -> 198 | M174: =VLOOKUP('09'!E174,Лист1!$A$2:$G$102,6) -> 175 | N174: =VLOOKUP('09'!F174,Лист1!$A$2:$G$102,7) -> 193 | O174: =getValue('09'!A174,2) -> 162 | P174: =getValue('09'!B174,3) -> 178 | Q174: =getValue('09'!C174,4) -> 167 | R174: =getValue('09'!D174,5) -> 198 | S174: =getValue('09'!E174,6) -> 175 | T174: =getValue('09'!F174,7) -> 193
I175: =VLOOKUP('09'!A175,Лист1!$A$2:$G$102,2) -> 132 | J175: =VLOOKUP('09'!B175,Лист1!$A$2:$G$102,3) -> 192 | K175: =VLOOKUP('09'!C175,Лист1!$A$2:$G$102,4) -> 173 | L175: =VLOOKUP('09'!D175,Лист1!$A$2:$G$102,5) -> 160 | M175: =VLOOKUP('09'!E175,Лист1!$A$2:$G$102,6) -> 175 | N175: =VLOOKUP('09'!F175,Лист1!$A$2:$G$102,7) -> 164 | O175: =getValue('09'!A175,2) -> 132 | P175: =getValue('09'!B175,3) -> 192 | Q175: =getValue('09'!C175,4) -> 173 | R175: =getValue('09'!D175,5) -> 160 | S175: =getValue('09'!E175,6) -> 175 | T175: =getValue('09'!F175,7) -> 164
I176: =VLOOKUP('09'!A176,Лист1!$A$2:$G$102,2) -> 173 | J176: =VLOOKUP('09'!B176,Лист1!$A$2:$G$102,3) -> 159 | K176: =VLOOKUP('09'!C176,Лист1!$A$2:$G$102,4) -> 152 | L176: =VLOOKUP('09'!D176,Лист1!$A$2:$G$102,5) -> 160 | M176: =VLOOKUP('09'!E176,Лист1!$A$2:$G$102,6) -> 171 | N176: =VLOOKUP('09'!F176,Лист1!$A$2:$G$102,7) -> 168 | O176: =getValue('09'!A176,2) -> 173 | P176: =getValue('09'!B176,3) -> 159 | Q176: =getValue('09'!C176,4) -> 152 | R176: =getValue('09'!D176,5) -> 160 | S176: =getValue('09'!E176,6) -> 171 | T176: =getValue('09'!F176,7) -> 168
I177: =VLOOKUP('09'!A177,Лист1!$A$2:$G$102,2) -> 169 | J177: =VLOOKUP('09'!B177,Лист1!$A$2:$G$102,3) -> 167 | K177: =VLOOKUP('09'!C177,Лист1!$A$2:$G$102,4) -> 152 | L177: =VLOOKUP('09'!D177,Лист1!$A$2:$G$102,5) -> 176 | M177: =VLOOKUP('09'!E177,Лист1!$A$2:$G$102,6) -> 201 | N177: =VLOOKUP('09'!F177,Лист1!$A$2:$G$102,7) -> 170 | O177: =getValue('09'!A177,2) -> 169 | P177: =getValue('09'!B177,3) -> 167 | Q177: =getValue('09'!C177,4) -> 152 | R177: =getValue('09'!D177,5) -> 176 | S177: =getValue('09'!E177,6) -> 201 | T177: =getValue('09'!F177,7) -> 170
I178: =VLOOKUP('09'!A178,Лист1!$A$2:$G$102,2) -> 178 | J178: =VLOOKUP('09'!B178,Лист1!$A$2:$G$102,3) -> 174 | K178: =VLOOKUP('09'!C178,Лист1!$A$2:$G$102,4) -> 188 | L178: =VLOOKUP('09'!D178,Лист1!$A$2:$G$102,5) -> 176 | M178: =VLOOKUP('09'!E178,Лист1!$A$2:$G$102,6) -> 179 | N178: =VLOOKUP('09'!F178,Лист1!$A$2:$G$102,7) -> 187 | O178: =getValue('09'!A178,2) -> 178 | P178: =getValue('09'!B178,3) -> 174 | Q178: =getValue('09'!C178,4) -> 188 | R178: =getValue('09'!D178,5) -> 176 | S178: =getValue('09'!E178,6) -> 179 | T178: =getValue('09'!F178,7) -> 187
I179: =VLOOKUP('09'!A179,Лист1!$A$2:$G$102,2) -> 192 | J179: =VLOOKUP('09'!B179,Лист1!$A$2:$G$102,3) -> 202 | K179: =VLOOKUP('09'!C179,Лист1!$A$2:$G$102,4) -> 190 | L179: =VLOOKUP('09'!D179,Лист1!$A$2:$G$102,5) -> 186 | M179: =VLOOKUP('09'!E179,Лист1!$A$2:$G$102,6) -> 173 | N179: =VLOOKUP('09'!F179,Лист1!$A$2:$G$102,7) -> 176 | O179: =getValue('09'!A179,2) -> 192 | P179: =getValue('09'!B179,3) -> 202 | Q179: =getValue('09'!C179,4) -> 190 | R179: =getValue('09'!D179,5) -> 186 | S179: =getValue('09'!E179,6) -> 173 | T179: =getValue('09'!F179,7) -> 176
I180: =VLOOKUP('09'!A180,Лист1!$A$2:$G$102,2) -> 205 | J180: =VLOOKUP('09'!B180,Лист1!$A$2:$G$102,3) -> 166 | K180: =VLOOKUP('09'!C180,Лист1!$A$2:$G$102,4) -> 180 | L180: =VLOOKUP('09'!D180,Лист1!$A$2:$G$102,5) -> 194 | M180: =VLOOKUP('09'!E180,Лист1!$A$2:$G$102,6) -> 176 | N180: =VLOOKUP('09'!F180,Лист1!$A$2:$G$102,7) -> 184 | O180: =getValue('09'!A180,2) -> 205 | P180: =getValue('09'!B180,3) -> 166 | Q180: =getValue('09'!C180,4) -> 180 | R180: =getValue('09'!D180,5) -> 194 | S180: =getValue('09'!E180,6) -> 176 | T180: =getValue('09'!F180,7) -> 184
I181: =VLOOKUP('09'!A181,Лист1!$A$2:$G$102,2) -> 189 | J181: =VLOOKUP('09'!B181,Лист1!$A$2:$G$102,3) -> 167 | K181: =VLOOKUP('09'!C181,Лист1!$A$2:$G$102,4) -> 189 | L181: =VLOOKUP('09'!D181,Лист1!$A$2:$G$102,5) -> 202 | M181: =VLOOKUP('09'!E181,Лист1!$A$2:$G$102,6) -> 162 | N181: =VLOOKUP('09'!F181,Лист1!$A$2:$G$102,7) -> 190 | O181: =getValue('09'!A181,2) -> 189 | P181: =getValue('09'!B181,3) -> 167 | Q181: =getValue('09'!C181,4) -> 189 | R181: =getValue('09'!D181,5) -> 202 | S181: =getValue('09'!E181,6) -> 162 | T181: =getValue('09'!F181,7) -> 190
I182: =VLOOKUP('09'!A182,Лист1!$A$2:$G$102,2) -> 179 | J182: =VLOOKUP('09'!B182,Лист1!$A$2:$G$102,3) -> 186 | K182: =VLOOKUP('09'!C182,Лист1!$A$2:$G$102,4) -> 204 | L182: =VLOOKUP('09'!D182,Лист1!$A$2:$G$102,5) -> 192 | M182: =VLOOKUP('09'!E182,Лист1!$A$2:$G$102,6) -> 176 | N182: =VLOOKUP('09'!F182,Лист1!$A$2:$G$102,7) -> 183 | O182: =getValue('09'!A182,2) -> 179 | P182: =getValue('09'!B182,3) -> 186 | Q182: =getValue('09'!C182,4) -> 204 | R182: =getValue('09'!D182,5) -> 192 | S182: =getValue('09'!E182,6) -> 176 | T182: =getValue('09'!F182,7) -> 183
I183: =VLOOKUP('09'!A183,Лист1!$A$2:$G$102,2) -> 179 | J183: =VLOOKUP('09'!B183,Лист1!$A$2:$G$102,3) -> 197 | K183: =VLOOKUP('09'!C183,Лист1!$A$2:$G$102,4) -> 170 | L183: =VLOOKUP('09'!D183,Лист1!$A$2:$G$102,5) -> 179 | M183: =VLOOKUP('09'!E183,Лист1!$A$2:$G$102,6) -> 184 | N183: =VLOOKUP('09'!F183,Лист1!$A$2:$G$102,7) -> 179 | O183: =getValue('09'!A183,2) -> 179 | P183: =getValue('09'!B183,3) -> 197 | Q183: =getValue('09'!C183,4) -> 170 | R183: =getValue('09'!D183,5) -> 179 | S183: =getValue('09'!E183,6) -> 184 | T183: =getValue('09'!F183,7) -> 179
I184: =VLOOKUP('09'!A184,Лист1!$A$2:$G$102,2) -> 178 | J184: =VLOOKUP('09'!B184,Лист1!$A$2:$G$102,3) -> 180 | K184: =VLOOKUP('09'!C184,Лист1!$A$2:$G$102,4) -> 190 | L184: =VLOOKUP('09'!D184,Лист1!$A$2:$G$102,5) -> 164 | M184: =VLOOKUP('09'!E184,Лист1!$A$2:$G$102,6) -> 178 | N184: =VLOOKUP('09'!F184,Лист1!$A$2:$G$102,7) -> 176 | O184: =getValue('09'!A184,2) -> 178 | P184: =getValue('09'!B184,3) -> 180 | Q184: =getValue('09'!C184,4) -> 190 | R184: =getValue('09'!D184,5) -> 164 | S184: =getValue('09'!E184,6) -> 178 | T184: =getValue('09'!F184,7) -> 176
I185: =VLOOKUP('09'!A185,Лист1!$A$2:$G$102,2) -> 188 | J185: =VLOOKUP('09'!B185,Лист1!$A$2:$G$102,3) -> 193 | K185: =VLOOKUP('09'!C185,Лист1!$A$2:$G$102,4) -> 191 | L185: =VLOOKUP('09'!D185,Лист1!$A$2:$G$102,5) -> 181 | M185: =VLOOKUP('09'!E185,Лист1!$A$2:$G$102,6) -> 165 | N185: =VLOOKUP('09'!F185,Лист1!$A$2:$G$102,7) -> 189 | O185: =getValue('09'!A185,2) -> 188 | P185: =getValue('09'!B185,3) -> 193 | Q185: =getValue('09'!C185,4) -> 191 | R185: =getValue('09'!D185,5) -> 181 | S185: =getValue('09'!E185,6) -> 165 | T185: =getValue('09'!F185,7) -> 189
I186: =VLOOKUP('09'!A186,Лист1!$A$2:$G$102,2) -> 164 | J186: =VLOOKUP('09'!B186,Лист1!$A$2:$G$102,3) -> 191 | K186: =VLOOKUP('09'!C186,Лист1!$A$2:$G$102,4) -> 179 | L186: =VLOOKUP('09'!D186,Лист1!$A$2:$G$102,5) -> 200 | M186: =VLOOKUP('09'!E186,Лист1!$A$2:$G$102,6) -> 175 | N186: =VLOOKUP('09'!F186,Лист1!$A$2:$G$102,7) -> 200 | O186: =getValue('09'!A186,2) -> 164 | P186: =getValue('09'!B186,3) -> 191 | Q186: =getValue('09'!C186,4) -> 179 | R186: =getValue('09'!D186,5) -> 200 | S186: =getValue('09'!E186,6) -> 175 | T186: =getValue('09'!F186,7) -> 200
I187: =VLOOKUP('09'!A187,Лист1!$A$2:$G$102,2) -> 178 | J187: =VLOOKUP('09'!B187,Лист1!$A$2:$G$102,3) -> 153 | K187: =VLOOKUP('09'!C187,Лист1!$A$2:$G$102,4) -> 178 | L187: =VLOOKUP('09'!D187,Лист1!$A$2:$G$102,5) -> 171 | M187: =VLOOKUP('09'!E187,Лист1!$A$2:$G$102,6) -> 166 | N187: =VLOOKUP('09'!F187,Лист1!$A$2:$G$102,7) -> 182 | O187: =getValue('09'!A187,2) -> 178 | P187: =getValue('09'!B187,3) -> 153 | Q187: =getValue('09'!C187,4) -> 178 | R187: =getValue('09'!D187,5) -> 171 | S187: =getValue('09'!E187,6) -> 166 | T187: =getValue('09'!F187,7) -> 182
I188: =VLOOKUP('09'!A188,Лист1!$A$2:$G$102,2) -> 184 | J188: =VLOOKUP('09'!B188,Лист1!$A$2:$G$102,3) -> 191 | K188: =VLOOKUP('09'!C188,Лист1!$A$2:$G$102,4) -> 184 | L188: =VLOOKUP('09'!D188,Лист1!$A$2:$G$102,5) -> 191 | M188: =VLOOKUP('09'!E188,Лист1!$A$2:$G$102,6) -> 182 | N188: =VLOOKUP('09'!F188,Лист1!$A$2:$G$102,7) -> 190 | O188: =getValue('09'!A188,2) -> 184 | P188: =getValue('09'!B188,3) -> 191 | Q188: =getValue('09'!C188,4) -> 184 | R188: =getValue('09'!D188,5) -> 191 | S188: =getValue('09'!E188,6) -> 182 | T188: =getValue('09'!F188,7) -> 190
I189: =VLOOKUP('09'!A189,Лист1!$A$2:$G$102,2) -> 190 | J189: =VLOOKUP('09'!B189,Лист1!$A$2:$G$102,3) -> 178 | K189: =VLOOKUP('09'!C189,Лист1!$A$2:$G$102,4) -> 189 | L189: =VLOOKUP('09'!D189,Лист1!$A$2:$G$102,5) -> 184 | M189: =VLOOKUP('09'!E189,Лист1!$A$2:$G$102,6) -> 157 | N189: =VLOOKUP('09'!F189,Лист1!$A$2:$G$102,7) -> 193 | O189: =getValue('09'!A189,2) -> 190 | P189: =getValue('09'!B189,3) -> 178 | Q189: =getValue('09'!C189,4) -> 189 | R189: =getValue('09'!D189,5) -> 184 | S189: =getValue('09'!E189,6) -> 157 | T189: =getValue('09'!F189,7) -> 193
I190: =VLOOKUP('09'!A190,Лист1!$A$2:$G$102,2) -> 164 | J190: =VLOOKUP('09'!B190,Лист1!$A$2:$G$102,3) -> 185 | K190: =VLOOKUP('09'!C190,Лист1!$A$2:$G$102,4) -> 193 | L190: =VLOOKUP('09'!D190,Лист1!$A$2:$G$102,5) -> 190 | M190: =VLOOKUP('09'!E190,Лист1!$A$2:$G$102,6) -> 173 | N190: =VLOOKUP('09'!F190,Лист1!$A$2:$G$102,7) -> 190 | O190: =getValue('09'!A190,2) -> 164 | P190: =getValue('09'!B190,3) -> 185 | Q190: =getValue('09'!C190,4) -> 193 | R190: =getValue('09'!D190,5) -> 190 | S190: =getValue('09'!E190,6) -> 173 | T190: =getValue('09'!F190,7) -> 190
I191: =VLOOKUP('09'!A191,Лист1!$A$2:$G$102,2) -> 173 | J191: =VLOOKUP('09'!B191,Лист1!$A$2:$G$102,3) -> 195 | K191: =VLOOKUP('09'!C191,Лист1!$A$2:$G$102,4) -> 194 | L191: =VLOOKUP('09'!D191,Лист1!$A$2:$G$102,5) -> 184 | M191: =VLOOKUP('09'!E191,Лист1!$A$2:$G$102,6) -> 179 | N191: =VLOOKUP('09'!F191,Лист1!$A$2:$G$102,7) -> 192 | O191: =getValue('09'!A191,2) -> 173 | P191: =getValue('09'!B191,3) -> 195 | Q191: =getValue('09'!C191,4) -> 194 | R191: =getValue('09'!D191,5) -> 184 | S191: =getValue('09'!E191,6) -> 179 | T191: =getValue('09'!F191,7) -> 192
I192: =VLOOKUP('09'!A192,Лист1!$A$2:$G$102,2) -> 172 | J192: =VLOOKUP('09'!B192,Лист1!$A$2:$G$102,3) -> 159 | K192: =VLOOKUP('09'!C192,Лист1!$A$2:$G$102,4) -> 181 | L192: =VLOOKUP('09'!D192,Лист1!$A$2:$G$102,5) -> 179 | M192: =VLOOKUP('09'!E192,Лист1!$A$2:$G$102,6) -> 176 | N192: =VLOOKUP('09'!F192,Лист1!$A$2:$G$102,7) -> 180 | O192: =getValue('09'!A192,2) -> 172 | P192: =getValue('09'!B192,3) -> 159 | Q192: =getValue('09'!C192,4) -> 181 | R192: =getValue('09'!D192,5) -> 179 | S192: =getValue('09'!E192,6) -> 176 | T192: =getValue('09'!F192,7) -> 180
I193: =VLOOKUP('09'!A193,Лист1!$A$2:$G$102,2) -> 175 | J193: =VLOOKUP('09'!B193,Лист1!$A$2:$G$102,3) -> 171 | K193: =VLOOKUP('09'!C193,Лист1!$A$2:$G$102,4) -> 182 | L193: =VLOOKUP('09'!D193,Лист1!$A$2:$G$102,5) -> 187 | M193: =VLOOKUP('09'!E193,Лист1!$A$2:$G$102,6) -> 191 | N193: =VLOOKUP('09'!F193,Лист1!$A$2:$G$102,7) -> 155 | O193: =getValue('09'!A193,2) -> 175 | P193: =getValue('09'!B193,3) -> 171 | Q193: =getValue('09'!C193,4) -> 182 | R193: =getValue('09'!D193,5) -> 187 | S193: =getValue('09'!E193,6) -> 191 | T193: =getValue('09'!F193,7) -> 155
I194: =VLOOKUP('09'!A194,Лист1!$A$2:$G$102,2) -> 201 | J194: =VLOOKUP('09'!B194,Лист1!$A$2:$G$102,3) -> 178 | K194: =VLOOKUP('09'!C194,Лист1!$A$2:$G$102,4) -> 181 | L194: =VLOOKUP('09'!D194,Лист1!$A$2:$G$102,5) -> 189 | M194: =VLOOKUP('09'!E194,Лист1!$A$2:$G$102,6) -> 171 | N194: =VLOOKUP('09'!F194,Лист1!$A$2:$G$102,7) -> 180 | O194: =getValue('09'!A194,2) -> 201 | P194: =getValue('09'!B194,3) -> 178 | Q194: =getValue('09'!C194,4) -> 181 | R194: =getValue('09'!D194,5) -> 189 | S194: =getValue('09'!E194,6) -> 171 | T194: =getValue('09'!F194,7) -> 180
I195: =VLOOKUP('09'!A195,Лист1!$A$2:$G$102,2) -> 190 | J195: =VLOOKUP('09'!B195,Лист1!$A$2:$G$102,3) -> 191 | K195: =VLOOKUP('09'!C195,Лист1!$A$2:$G$102,4) -> 188 | L195: =VLOOKUP('09'!D195,Лист1!$A$2:$G$102,5) -> 162 | M195: =VLOOKUP('09'!E195,Лист1!$A$2:$G$102,6) -> 197 | N195: =VLOOKUP('09'!F195,Лист1!$A$2:$G$102,7) -> 183 | O195: =getValue('09'!A195,2) -> 190 | P195: =getValue('09'!B195,3) -> 191 | Q195: =getValue('09'!C195,4) -> 188 | R195: =getValue('09'!D195,5) -> 162 | S195: =getValue('09'!E195,6) -> 197 | T195: =getValue('09'!F195,7) -> 183
I196: =VLOOKUP('09'!A196,Лист1!$A$2:$G$102,2) -> 179 | J196: =VLOOKUP('09'!B196,Лист1!$A$2:$G$102,3) -> 193 | K196: =VLOOKUP('09'!C196,Лист1!$A$2:$G$102,4) -> 180 | L196: =VLOOKUP('09'!D196,Лист1!$A$2:$G$102,5) -> 194 | M196: =VLOOKUP('09'!E196,Лист1!$A$2:$G$102,6) -> 174 | N196: =VLOOKUP('09'!F196,Лист1!$A$2:$G$102,7) -> 192 | O196: =getValue('09'!A196,2) -> 179 | P196: =getValue('09'!B196,3) -> 193 | Q196: =getValue('09'!C196,4) -> 180 | R196: =getValue('09'!D196,5) -> 194 | S196: =getValue('09'!E196,6) -> 174 | T196: =getValue('09'!F196,7) -> 192
I197: =VLOOKUP('09'!A197,Лист1!$A$2:$G$102,2) -> 158 | J197: =VLOOKUP('09'!B197,Лист1!$A$2:$G$102,3) -> 193 | K197: =VLOOKUP('09'!C197,Лист1!$A$2:$G$102,4) -> 170 | L197: =VLOOKUP('09'!D197,Лист1!$A$2:$G$102,5) -> 175 | M197: =VLOOKUP('09'!E197,Лист1!$A$2:$G$102,6) -> 163 | N197: =VLOOKUP('09'!F197,Лист1!$A$2:$G$102,7) -> 178 | O197: =getValue('09'!A197,2) -> 158 | P197: =getValue('09'!B197,3) -> 193 | Q197: =getValue('09'!C197,4) -> 170 | R197: =getValue('09'!D197,5) -> 175 | S197: =getValue('09'!E197,6) -> 163 | T197: =getValue('09'!F197,7) -> 178
I198: =VLOOKUP('09'!A198,Лист1!$A$2:$G$102,2) -> 185 | J198: =VLOOKUP('09'!B198,Лист1!$A$2:$G$102,3) -> 187 | K198: =VLOOKUP('09'!C198,Лист1!$A$2:$G$102,4) -> 172 | L198: =VLOOKUP('09'!D198,Лист1!$A$2:$G$102,5) -> 170 | M198: =VLOOKUP('09'!E198,Лист1!$A$2:$G$102,6) -> 191 | N198: =VLOOKUP('09'!F198,Лист1!$A$2:$G$102,7) -> 183 | O198: =getValue('09'!A198,2) -> 185 | P198: =getValue('09'!B198,3) -> 187 | Q198: =getValue('09'!C198,4) -> 172 | R198: =getValue('09'!D198,5) -> 170 | S198: =getValue('09'!E198,6) -> 191 | T198: =getValue('09'!F198,7) -> 183
I199: =VLOOKUP('09'!A199,Лист1!$A$2:$G$102,2) -> 132 | J199: =VLOOKUP('09'!B199,Лист1!$A$2:$G$102,3) -> 167 | K199: =VLOOKUP('09'!C199,Лист1!$A$2:$G$102,4) -> 167 | L199: =VLOOKUP('09'!D199,Лист1!$A$2:$G$102,5) -> 174 | M199: =VLOOKUP('09'!E199,Лист1!$A$2:$G$102,6) -> 174 | N199: =VLOOKUP('09'!F199,Лист1!$A$2:$G$102,7) -> 197 | O199: =getValue('09'!A199,2) -> 132 | P199: =getValue('09'!B199,3) -> 167 | Q199: =getValue('09'!C199,4) -> 167 | R199: =getValue('09'!D199,5) -> 174 | S199: =getValue('09'!E199,6) -> 174 | T199: =getValue('09'!F199,7) -> 197
I200: =VLOOKUP('09'!A200,Лист1!$A$2:$G$102,2) -> 168 | J200: =VLOOKUP('09'!B200,Лист1!$A$2:$G$102,3) -> 171 | K200: =VLOOKUP('09'!C200,Лист1!$A$2:$G$102,4) -> 173 | L200: =VLOOKUP('09'!D200,Лист1!$A$2:$G$102,5) -> 157 | M200: =VLOOKUP('09'!E200,Лист1!$A$2:$G$102,6) -> 168 | N200: =VLOOKUP('09'!F200,Лист1!$A$2:$G$102,7) -> 206 | O200: =getValue('09'!A200,2) -> 168 | P200: =getValue('09'!B200,3) -> 171 | Q200: =getValue('09'!C200,4) -> 173 | R200: =getValue('09'!D200,5) -> 157 | S200: =getValue('09'!E200,6) -> 168 | T200: =getValue('09'!F200,7) -> 206
... 4300 more rows
